Workbook

Sheet 16 (hidden)
A1: 農林水産関係市町村別データ
A2: 平成16年
A3: 耕地面積
A4: 神奈川県
A5: 都道 | B5: 市町 | D5: 耕地面積 | E5: 田耕地面積 | F5: 田本地面積 | G5: 畑耕地面積 | H5: 普通畑 | I5: 樹園地 | J5: 牧草地 | K5: 田畑計の作 | L5: 田畑計の耕
A6: 府県 | B6: 村 | C6: 市町村名 | K6: 付延べ面積 | L6: 地利用率
A7: ｺｰﾄﾞ | B7: ｺｰﾄﾞ
D8: ha | E8: ha | F8: ha | G8: ha | H8: ha | I8: ha | J8: ha | K8: ha | L8: 0.0%
A9: 14 | B9: 100 | C9: 横浜市 | D9: 3,120 | E9: 209 | F9: 199 | G9: 2,910 | H9: 2,560 | I9: 356 | J9: - | K9: 3,420 | L9: 109.6
A10: 14 | B10: 130 | C10: 川崎市 | D10: 646 | E10: 31 | F10: 29 | G10: 615 | H10: 458 | I10: 157 | J10: - | K10: 695 | L10: 107.6
A11: 14 | B11: 201 | C11: 横須賀市 | D11: 508 | E11: 19 | F11: 18 | G11: 489 | H11: 446 | I11: 43 | J11: - | K11: 739 | L11: 145.5
A12: 14 | B12: 203 | C12: 平塚市 | D12: 1,580 | E12: 777 | F12: 755 | G12: 798 | H12: 725 | I12: 73 | J12: - | K12: 1,420 | L12: 90.0
A13: 14 | B13: 204 | C13: 鎌倉市 | D13: 122 | E13: 1 | F13: 1 | G13: 121 | H13: 112 | I13: 9 | J13: - | K13: 97 | L13: 79.5
A14: 14 | B14: 205 | C14: 藤沢市 | D14: 988 | E14: 148 | F14: 139 | G14: 840 | H14: 711 | I14: 129 | J14: - | K14: 1,120 | L14: 113.6
A15: 14 | B15: 206 | C15: 小田原市 | D15: 1,980 | E15: 577 | F15: 552 | G15: 1,400 | H15: 347 | I15: 1,050 | J15: - | K15: 1,920 | L15: 97.0
A16: 14 | B16: 207 | C16: 茅ヶ崎市 | D16: 399 | E16: 61 | F16: 57 | G16: 338 | H16: 297 | I16: 41 | J16: - | K16: 536 | L16: 134.3
A17: 14 | B17: 208 | C17: 逗子市 | D17: 9 | E17: - | F17: - | G17: 9 | H17: 9 | I17: 0 | J17: - | K17: 7 | L17: 77.8
A18: 14 | B18: 209 | C18: 相模原市 | D18: 933 | E18: 99 | F18: 96 | G18: 834 | H18: 747 | I18: 87 | J18: 0 | K18: 646 | L18: 69.2
A19: 14 | B19: 210 | C19: 三浦市 | D19: 1,190 | E19: 10 | F19: 9 | G19: 1,180 | H19: 1,170 | I19: 11 | J19: - | K19: 2,260 | L19: 189.3
A20: 14 | B20: 211 | C20: 秦野市 | D20: 1,300 | E20: 146 | F20: 126 | G20: 1,150 | H20: 897 | I20: 256 | J20: - | K20: 941 | L20: 72.4
A21: 14 | B21: 212 | C21: 厚木市 | D21: 1,250 | E21: 550 | F21: 533 | G21: 700 | H21: 581 | I21: 119 | J21: 0 | K21: 1,060 | L21: 85.1
A22: 14 | B22: 213 | C22: 大和市 | D22: 250 | E22: 17 | F22: 16 | G22: 233 | H22: 186 | I22: 47 | J22: - | K22: 255 | L22: 102.0
A23: 14 | B23: 214 | C23: 伊勢原市 | D23: 1,190 | E23: 433 | F23: 413 | G23: 754 | H23: 549 | I23: 205 | J23: - | K23: 1,040 | L23: 87.4
A24: 14 | B24: 215 | C24: 海老名市 | D24: 597 | E24: 281 | F24: 272 | G24: 316 | H24: 288 | I24: 27 | J24: 1 | K24: 548 | L24: 91.8
A25: 14 | B25: 216 | C25: 座間市 | D25: 233 | E25: 92 | F25: 89 | G25: 141 | H25: 124 | I25: 17 | J25: - | K25: 209 | L25: 89.7
A26: 14 | B26: 217 | C26: 南足柄市 | D26: 706 | E26: 201 | F26: 188 | G26: 505 | H26: 147 | I26: 357 | J26: - | K26: 592 | L26: 83.9
A27: 14 | B27: 218 | C27: 綾瀬市 | D27: 284 | E27: 19 | F27: 18 | G27: 265 | H27: 233 | I27: 32 | J27: - | K27: 262 | L27: 92.3
A28: 14 | B28: 301 | C28: 葉山町 | D28: 41 | E28: 4 | F28: 4 | G28: 37 | H28: 32 | I28: 5 | J28: - | K28: 37 | L28: 90.2
A29: 14 | B29: 321 | C29: 寒川町 | D29: 267 | E29: 83 | F29: 79 | G29: 184 | H29: 164 | I29: 20 | J29: - | K29: 231 | L29: 86.5
A30: 14 | B30: 341 | C30: 大磯町 | D30: 285 | E30: 27 | F30: 24 | G30: 258 | H30: 162 | I30: 96 | J30: - | K30: 268 | L30: 94.0
A31: 14 | B31: 342 | C31: 二宮町 | D31: 135 | E31: 1 | F31: 1 | G31: 134 | H31: 75 | I31: 59 | J31: - | K31: 103 | L31: 76.3
A32: 14 | B32: 361 | C32: 中井町 | D32: 510 | E32: 34 | F32: 30 | G32: 476 | H32: 323 | I32: 154 | J32: - | K32: 418 | L32: 82.0
A33: 14 | B33: 362 | C33: 大井町 | D33: 357 | E33: 121 | F33: 112 | G33: 236 | H33: 119 | I33: 117 | J33: - | K33: 315 | L33: 88.2
A34: 14 | B34: 363 | C34: 松田町 | D34: 168 | E34: 13 | F34: 11 | G34: 155 | H34: 61 | I34: 95 | J34: - | K34: 123 | L34: 73.2
A35: 14 | B35: 364 | C35: 山北町 | D35: 412 | E35: 38 | F35: 34 | G35: 374 | H35: 107 | I35: 201 | J35: 67 | K35: 324 | L35: 78.6
A36: 14 | B36: 366 | C36: 開成町 | D36: 216 | E36: 185 | F36: 173 | G36: 31 | H36: 20 | I36: 10 | J36: - | K36: 221 | L36: 102.3
A37: 14 | B37: 382 | C37: 箱根町 | D37: 10 | E37: 2 | F37: 2 | G37: 8 | H37: 1 | I37: 7 | J37: - | K37: 9 | L37: 90.0
A38: 14 | B38: 383 | C38: 真鶴町 | D38: 54 | E38: - | F38: - | G38: 54 | H38: 7 | I38: 47 | J38: - | K38: 49 | L38: 90.7
A39: 14 | B39: 384 | C39: 湯河原町 | D39: 280 | E39: - | F39: - | G39: 280 | H39: 13 | I39: 266 | J39: - | K39: 267 | L39: 95.4
A40: 14 | B40: 401 | C40: 愛川町 | D40: 356 | E40: 78 | F40: 75 | G40: 278 | H40: 248 | I40: 30 | J40: 0 | K40: 252 | L40: 70.8
A41: 14 | B41: 402 | C41: 清川村 | D41: 50 | E41: 9 | F41: 8 | G41: 41 | H41: 13 | I41: 28 | J41: - | K41: 39 | L41: 78.0
A42: 14 | B42: 421 | C42: 城山町 | D42: 149 | E42: 19 | F42: 18 | G42: 130 | H42: 99 | I42: 31 | J42: - | K42: 127 | L42: 85.2
A43: 14 | B43: 422 | C43: 津久井町 | D43: 379 | E43: 14 | F43: 13 | G43: 365 | H43: 310 | I43: 53 | J43: 2 | K43: 208 | L43: 54.9
A44: 14 | B44: 423 | C44: 相模湖町 | D44: 119 | E44: 7 | F44: 6 | G44: 112 | H44: 91 | I44: 21 | J44: - | K44: 71 | L44: 59.7
A45: 14 | B45: 424 | C45: 藤野町 | D45: 161 | E45: 3 | F45: 3 | G45: 158 | H45: 116 | I45: 40 | J45: 2 | K45: 93 | L45: 57.8
A47: 利用上の注意
A48: この市町村別データは、「耕地面積調査」の県計値を当該市町村における調査結果、関係機関・団体からの情報等により加工したものである。

Sheet 17 (hidden)
A1: 農林水産関係市町村別データ
A2: 平成17年
A3: 耕地面積
A4: 神奈川県
A5: 都道 | B5: 市町 | D5: 耕地面積 | E5: 田耕地面積 | F5: 田本地面積 | G5: 畑耕地面積 | H5: 普通畑 | I5: 樹園地 | J5: 牧草地 | K5: 田畑計の作 | L5: 田畑計の耕
A6: 府県 | B6: 村 | C6: 市町村名 | K6: 付延べ面積 | L6: 地利用率
A7: ｺｰﾄﾞ | B7: ｺｰﾄﾞ
D8: ha | E8: ha | F8: ha | G8: ha | H8: ha | I8: ha | J8: ha | K8: ha | L8: 0.0%
A9: 14 | B9: 100 | C9: 横浜市 | D9: 3,120 | E9: 208 | F9: 198 | G9: 2,910 | H9: 2,560 | I9: 352 | J9: - | K9: 3,360 | L9: 107.7
A10: 14 | B10: 130 | C10: 川崎市 | D10: 644 | E10: 30 | F10: 28 | G10: 614 | H10: 459 | I10: 155 | J10: - | K10: 683 | L10: 106.1
A11: 14 | B11: 201 | C11: 横須賀市 | D11: 535 | E11: 19 | F11: 18 | G11: 516 | H11: 473 | I11: 43 | J11: - | K11: 739 | L11: 138.1
A12: 14 | B12: 203 | C12: 平塚市 | D12: 1,570 | E12: 777 | F12: 755 | G12: 788 | H12: 715 | I12: 73 | J12: - | K12: 1,400 | L12: 89.2
A13: 14 | B13: 204 | C13: 鎌倉市 | D13: 122 | E13: 1 | F13: 1 | G13: 121 | H13: 112 | I13: 9 | J13: - | K13: 98 | L13: 80.3
A14: 14 | B14: 205 | C14: 藤沢市 | D14: 984 | E14: 148 | F14: 139 | G14: 836 | H14: 706 | I14: 130 | J14: - | K14: 1,100 | L14: 111.8
A15: 14 | B15: 206 | C15: 小田原市 | D15: 1,950 | E15: 569 | F15: 545 | G15: 1,380 | H15: 341 | I15: 1,040 | J15: - | K15: 1,880 | L15: 96.4
A16: 14 | B16: 207 | C16: 茅ヶ崎市 | D16: 394 | E16: 61 | F16: 57 | G16: 333 | H16: 292 | I16: 41 | J16: - | K16: 521 | L16: 132.2
A17: 14 | B17: 208 | C17: 逗子市 | D17: 9 | E17: - | F17: - | G17: 9 | H17: 9 | I17: 0 | J17: - | K17: 7 | L17: 77.8
A18: 14 | B18: 209 | C18: 相模原市 | D18: 1,430 | E18: 119 | F18: 114 | G18: 1,310 | H18: 1,150 | I18: 161 | J18: 2 | K18: 909 | L18: 63.6
A19: 14 | B19: 210 | C19: 三浦市 | D19: 1,200 | E19: 10 | F19: 9 | G19: 1,190 | H19: 1,180 | I19: 11 | J19: - | K19: 2,250 | L19: 187.5
A20: 14 | B20: 211 | C20: 秦野市 | D20: 1,280 | E20: 143 | F20: 124 | G20: 1,140 | H20: 882 | I20: 254 | J20: - | K20: 945 | L20: 73.8
A21: 14 | B21: 212 | C21: 厚木市 | D21: 1,250 | E21: 550 | F21: 533 | G21: 697 | H21: 578 | I21: 119 | J21: 0 | K21: 1,060 | L21: 84.8
A22: 14 | B22: 213 | C22: 大和市 | D22: 250 | E22: 17 | F22: 16 | G22: 233 | H22: 186 | I22: 47 | J22: - | K22: 254 | L22: 101.6
A23: 14 | B23: 214 | C23: 伊勢原市 | D23: 1,180 | E23: 431 | F23: 411 | G23: 746 | H23: 540 | I23: 206 | J23: - | K23: 1,020 | L23: 86.4
A24: 14 | B24: 215 | C24: 海老名市 | D24: 596 | E24: 281 | F24: 272 | G24: 315 | H24: 287 | I24: 27 | J24: 1 | K24: 548 | L24: 91.9
A25: 14 | B25: 216 | C25: 座間市 | D25: 232 | E25: 92 | F25: 89 | G25: 140 | H25: 123 | I25: 17 | J25: - | K25: 204 | L25: 87.9
A26: 14 | B26: 217 | C26: 南足柄市 | D26: 702 | E26: 199 | F26: 187 | G26: 503 | H26: 144 | I26: 359 | J26: - | K26: 594 | L26: 84.6
A27: 14 | B27: 218 | C27: 綾瀬市 | D27: 283 | E27: 19 | F27: 18 | G27: 264 | H27: 234 | I27: 30 | J27: - | K27: 258 | L27: 91.2
A28: 14 | B28: 301 | C28: 葉山町 | D28: 41 | E28: 4 | F28: 4 | G28: 37 | H28: 32 | I28: 5 | J28: - | K28: 37 | L28: 90.2
A29: 14 | B29: 321 | C29: 寒川町 | D29: 263 | E29: 81 | F29: 77 | G29: 182 | H29: 162 | I29: 20 | J29: - | K29: 226 | L29: 85.9
A30: 14 | B30: 341 | C30: 大磯町 | D30: 284 | E30: 27 | F30: 24 | G30: 257 | H30: 161 | I30: 96 | J30: - | K30: 266 | L30: 93.7
A31: 14 | B31: 342 | C31: 二宮町 | D31: 134 | E31: 1 | F31: 1 | G31: 133 | H31: 74 | I31: 59 | J31: - | K31: 101 | L31: 75.4
A32: 14 | B32: 361 | C32: 中井町 | D32: 503 | E32: 31 | F32: 27 | G32: 472 | H32: 319 | I32: 153 | J32: - | K32: 409 | L32: 81.3
A33: 14 | B33: 362 | C33: 大井町 | D33: 355 | E33: 119 | F33: 110 | G33: 236 | H33: 119 | I33: 117 | J33: - | K33: 307 | L33: 86.5
A34: 14 | B34: 363 | C34: 松田町 | D34: 168 | E34: 13 | F34: 11 | G34: 155 | H34: 60 | I34: 95 | J34: - | K34: 121 | L34: 72.0
A35: 14 | B35: 364 | C35: 山北町 | D35: 412 | E35: 38 | F35: 34 | G35: 374 | H35: 106 | I35: 201 | J35: 67 | K35: 320 | L35: 77.7
A36: 14 | B36: 366 | C36: 開成町 | D36: 211 | E36: 180 | F36: 168 | G36: 31 | H36: 20 | I36: 11 | J36: - | K36: 210 | L36: 99.5
A37: 14 | B37: 382 | C37: 箱根町 | D37: 10 | E37: 2 | F37: 2 | G37: 8 | H37: 1 | I37: 7 | J37: - | K37: 8 | L37: 80.0
A38: 14 | B38: 383 | C38: 真鶴町 | D38: 53 | E38: - | F38: - | G38: 53 | H38: 7 | I38: 46 | J38: - | K38: 48 | L38: 90.6
A39: 14 | B39: 384 | C39: 湯河原町 | D39: 276 | E39: - | F39: - | G39: 276 | H39: 12 | I39: 264 | J39: - | K39: 264 | L39: 95.7
A40: 14 | B40: 401 | C40: 愛川町 | D40: 356 | E40: 78 | F40: 75 | G40: 278 | H40: 246 | I40: 32 | J40: 0 | K40: 251 | L40: 70.5
A41: 14 | B41: 402 | C41: 清川村 | D41: 50 | E41: 9 | F41: 8 | G41: 41 | H41: 13 | I41: 28 | J41: - | K41: 38 | L41: 76.0
A42: 14 | B42: 421 | C42: 城山町 | D42: 149 | E42: 19 | F42: 18 | G42: 130 | H42: 99 | I42: 31 | J42: - | K42: 122 | L42: 81.9
A43: 14 | B43: 424 | C43: 藤野町 | D43: 161 | E43: 3 | F43: 3 | G43: 158 | H43: 116 | I43: 40 | J43: 2 | K43: 92 | L43: 57.1
A45: 利用上の注意
A46: この市町村別データは、「耕地面積調査」の県計値を当該市町村における調査結果、関係機関・団体からの情報等により加工したものである。

Sheet 18 (hidden)
A1: 農林水産関係市町村別データ
A2: 平成18年
A3: 耕地面積
A4: 神奈川県
A5: 都道 | B5: 市町 | D5: 耕地面積 | E5: 田耕地面積 | F5: 田本地面積 | G5: 畑耕地面積 | H5: 普通畑 | I5: 樹園地 | J5: 牧草地 | K5: 田畑計の作 | L5: 田畑計の耕
A6: 府県 | B6: 村 | C6: 市町村名 | K6: 付延べ面積 | L6: 地利用率
A7: ｺｰﾄﾞ | B7: ｺｰﾄﾞ
D8: ha | E8: ha | F8: ha | G8: ha | H8: ha | I8: ha | J8: ha | K8: ha | L8: 0.0%
A9: 14 | B9: 100 | C9: 横浜市 | D9: 3,090 | E9: 198 | F9: 188 | G9: 2,890 | H9: 2,550 | I9: 346 | J9: - | K9: 3,290 | L9: 106.5
A10: 14 | B10: 130 | C10: 川崎市 | D10: 637 | E10: 28 | F10: 27 | G10: 609 | H10: 459 | I10: 150 | J10: - | K10: 668 | L10: 104.9
A11: 14 | B11: 201 | C11: 横須賀市 | D11: 559 | E11: 18 | F11: 17 | G11: 541 | H11: 498 | I11: 43 | J11: - | K11: 732 | L11: 130.9
A12: 14 | B12: 203 | C12: 平塚市 | D12: 1,560 | E12: 777 | F12: 755 | G12: 780 | H12: 707 | I12: 73 | J12: - | K12: 1,390 | L12: 89.1
A13: 14 | B13: 204 | C13: 鎌倉市 | D13: 120 | E13: 1 | F13: 1 | G13: 119 | H13: 109 | I13: 10 | J13: - | K13: 97 | L13: 80.8
A14: 14 | B14: 205 | C14: 藤沢市 | D14: 982 | E14: 148 | F14: 139 | G14: 834 | H14: 701 | I14: 133 | J14: - | K14: 1,090 | L14: 111.0
A15: 14 | B15: 206 | C15: 小田原市 | D15: 1,940 | E15: 562 | F15: 539 | G15: 1,370 | H15: 350 | I15: 1,020 | J15: - | K15: 1,850 | L15: 95.7
A16: 14 | B16: 207 | C16: 茅ヶ崎市 | D16: 391 | E16: 61 | F16: 57 | G16: 330 | H16: 288 | I16: 42 | J16: - | K16: 514 | L16: 131.8
A17: 14 | B17: 208 | C17: 逗子市 | D17: 9 | E17: 0 | F17: 0 | G17: 9 | H17: 9 | I17: 0 | J17: - | K17: 7 | L17: 77.8
A18: 14 | B18: 209 | C18: 相模原市 | D18: 1,730 | E18: 141 | F18: 135 | G18: 1,590 | H18: 1,360 | I18: 230 | J18: 4 | K18: 1,110 | L18: 73.7
A19: 14 | B19: 210 | C19: 三浦市 | D19: 1,210 | E19: 10 | F19: 9 | G19: 1,200 | H19: 1,190 | I19: 11 | J19: - | K19: 2,250 | L19: 186.0
A20: 14 | B20: 211 | C20: 秦野市 | D20: 1,270 | E20: 137 | F20: 118 | G20: 1,130 | H20: 875 | I20: 253 | J20: - | K20: 934 | L20: 73.5
A21: 14 | B21: 212 | C21: 厚木市 | D21: 1,240 | E21: 549 | F21: 532 | G21: 694 | H21: 577 | I21: 117 | J21: 0 | K21: 1,020 | L21: 82.3
A22: 14 | B22: 213 | C22: 大和市 | D22: 249 | E22: 17 | F22: 16 | G22: 232 | H22: 186 | I22: 46 | J22: - | K22: 247 | L22: 99.2
A23: 14 | B23: 214 | C23: 伊勢原市 | D23: 1,170 | E23: 431 | F23: 411 | G23: 742 | H23: 538 | I23: 204 | J23: - | K23: 1,010 | L23: 86.2
A24: 14 | B24: 215 | C24: 海老名市 | D24: 593 | E24: 279 | F24: 270 | G24: 314 | H24: 286 | I24: 27 | J24: 1 | K24: 539 | L24: 90.9
A25: 14 | B25: 216 | C25: 座間市 | D25: 232 | E25: 92 | F25: 89 | G25: 140 | H25: 123 | I25: 17 | J25: - | K25: 203 | L25: 87.5
A26: 14 | B26: 217 | C26: 南足柄市 | D26: 696 | E26: 193 | F26: 181 | G26: 503 | H26: 143 | I26: 360 | J26: - | K26: 588 | L26: 84.5
A27: 14 | B27: 218 | C27: 綾瀬市 | D27: 282 | E27: 19 | F27: 18 | G27: 263 | H27: 234 | I27: 29 | J27: - | K27: 251 | L27: 89.0
A28: 14 | B28: 301 | C28: 葉山町 | D28: 41 | E28: 4 | F28: 4 | G28: 37 | H28: 32 | I28: 5 | J28: - | K28: 36 | L28: 87.8
A29: 14 | B29: 321 | C29: 寒川町 | D29: 260 | E29: 81 | F29: 77 | G29: 179 | H29: 159 | I29: 20 | J29: - | K29: 225 | L29: 86.5
A30: 14 | B30: 341 | C30: 大磯町 | D30: 281 | E30: 26 | F30: 23 | G30: 255 | H30: 160 | I30: 95 | J30: - | K30: 265 | L30: 94.6
A31: 14 | B31: 342 | C31: 二宮町 | D31: 133 | E31: 1 | F31: 1 | G31: 132 | H31: 73 | I31: 59 | J31: - | K31: 104 | L31: 78.2
A32: 14 | B32: 361 | C32: 中井町 | D32: 488 | E32: 31 | F32: 27 | G32: 457 | H32: 306 | I32: 151 | J32: - | K32: 404 | L32: 82.8
A33: 14 | B33: 362 | C33: 大井町 | D33: 354 | E33: 118 | F33: 109 | G33: 236 | H33: 120 | I33: 116 | J33: - | K33: 298 | L33: 84.2
A34: 14 | B34: 363 | C34: 松田町 | D34: 167 | E34: 12 | F34: 10 | G34: 155 | H34: 61 | I34: 94 | J34: - | K34: 123 | L34: 73.7
A35: 14 | B35: 364 | C35: 山北町 | D35: 410 | E35: 37 | F35: 33 | G35: 373 | H35: 107 | I35: 199 | J35: 67 | K35: 315 | L35: 76.8
A36: 14 | B36: 366 | C36: 開成町 | D36: 207 | E36: 177 | F36: 165 | G36: 30 | H36: 19 | I36: 11 | J36: - | K36: 214 | L36: 103.4
A37: 14 | B37: 382 | C37: 箱根町 | D37: 10 | E37: 2 | F37: 2 | G37: 8 | H37: 1 | I37: 7 | J37: - | K37: 9 | L37: 90.0
A38: 14 | B38: 383 | C38: 真鶴町 | D38: 52 | E38: - | F38: - | G38: 52 | H38: 7 | I38: 45 | J38: - | K38: 48 | L38: 92.3
A39: 14 | B39: 384 | C39: 湯河原町 | D39: 262 | E39: - | F39: - | G39: 262 | H39: 12 | I39: 250 | J39: - | K39: 251 | L39: 95.8
A40: 14 | B40: 401 | C40: 愛川町 | D40: 356 | E40: 78 | F40: 75 | G40: 278 | H40: 246 | I40: 32 | J40: 0 | K40: 248 | L40: 69.7
A41: 14 | B41: 402 | C41: 清川村 | D41: 50 | E41: 9 | F41: 8 | G41: 41 | H41: 13 | I41: 28 | J41: - | K41: 41 | L41: 82.0
A43: 利用上の注意
A44: この市町村別データは、「耕地面積調査」の県計値を当該市町村における調査結果、関係機関からの情報等
A45: により加工したものである。

Sheet 19 (hidden)
A1: 農林水産関係市町村別データ
A2: 平成19年
A3: 耕地面積
A4: 神奈川県
A5: 都道 | B5: 市町 | D5: 耕地面積 | E5: 田耕地面積 | F5: 田本地面積 | G5: 畑耕地面積
A6: 府県 | B6: 村 | C6: 市町村名
A7: ｺｰﾄﾞ | B7: ｺｰﾄﾞ
D8: ha | E8: ha | F8: ha | G8: ha
A9: 14 | B9: 100 | C9: 横浜市 | D9: 3,060 | E9: 190 | F9: 181 | G9: 2,870
A10: 14 | B10: 130 | C10: 川崎市 | D10: 626 | E10: 28 | F10: 26 | G10: 598
A11: 14 | B11: 201 | C11: 横須賀市 | D11: 555 | E11: 17 | F11: 16 | G11: 538
A12: 14 | B12: 203 | C12: 平塚市 | D12: 1,560 | E12: 777 | F12: 755 | G12: 778
A13: 14 | B13: 204 | C13: 鎌倉市 | D13: 118 | E13: 1 | F13: 1 | G13: 117
A14: 14 | B14: 205 | C14: 藤沢市 | D14: 982 | E14: 148 | F14: 139 | G14: 834
A15: 14 | B15: 206 | C15: 小田原市 | D15: 1,930 | E15: 556 | F15: 534 | G15: 1,370
A16: 14 | B16: 207 | C16: 茅ヶ崎市 | D16: 391 | E16: 58 | F16: 54 | G16: 333
A17: 14 | B17: 208 | C17: 逗子市 | D17: 9 | E17: 0 | F17: 0 | G17: 9
A18: 14 | B18: 209 | C18: 相模原市 | D18: 1,720 | E18: 138 | F18: 132 | G18: 1,590
A19: 14 | B19: 210 | C19: 三浦市 | D19: 1,210 | E19: 10 | F19: 9 | G19: 1,200
A20: 14 | B20: 211 | C20: 秦野市 | D20: 1,260 | E20: 135 | F20: 117 | G20: 1,120
A21: 14 | B21: 212 | C21: 厚木市 | D21: 1,230 | E21: 534 | F21: 518 | G21: 693
A22: 14 | B22: 213 | C22: 大和市 | D22: 247 | E22: 16 | F22: 15 | G22: 231
A23: 14 | B23: 214 | C23: 伊勢原市 | D23: 1,170 | E23: 430 | F23: 410 | G23: 739
A24: 14 | B24: 215 | C24: 海老名市 | D24: 573 | E24: 266 | F24: 258 | G24: 307
A25: 14 | B25: 216 | C25: 座間市 | D25: 229 | E25: 91 | F25: 88 | G25: 138
A26: 14 | B26: 217 | C26: 南足柄市 | D26: 689 | E26: 187 | F26: 175 | G26: 502
A27: 14 | B27: 218 | C27: 綾瀬市 | D27: 275 | E27: 18 | F27: 17 | G27: 257
A28: 14 | B28: 301 | C28: 葉山町 | D28: 39 | E28: 4 | F28: 4 | G28: 35
A29: 14 | B29: 321 | C29: 寒川町 | D29: 257 | E29: 78 | F29: 74 | G29: 179
A30: 14 | B30: 341 | C30: 大磯町 | D30: 280 | E30: 26 | F30: 23 | G30: 254
A31: 14 | B31: 342 | C31: 二宮町 | D31: 133 | E31: 1 | F31: 1 | G31: 132
A32: 14 | B32: 361 | C32: 中井町 | D32: 481 | E32: 31 | F32: 27 | G32: 450
A33: 14 | B33: 362 | C33: 大井町 | D33: 352 | E33: 117 | F33: 108 | G33: 235
A34: 14 | B34: 363 | C34: 松田町 | D34: 166 | E34: 12 | F34: 10 | G34: 154
A35: 14 | B35: 364 | C35: 山北町 | D35: 409 | E35: 37 | F35: 33 | G35: 372
A36: 14 | B36: 366 | C36: 開成町 | D36: 207 | E36: 177 | F36: 165 | G36: 30
A37: 14 | B37: 382 | C37: 箱根町 | D37: 10 | E37: 2 | F37: 2 | G37: 8
A38: 14 | B38: 383 | C38: 真鶴町 | D38: 52 | E38: - | F38: - | G38: 52
A39: 14 | B39: 384 | C39: 湯河原町 | D39: 257 | E39: - | F39: - | G39: 257
A40: 14 | B40: 401 | C40: 愛川町 | D40: 353 | E40: 77 | F40: 74 | G40: 276
A41: 14 | B41: 402 | C41: 清川村 | D41: 50 | E41: 9 | F41: 8 | G41: 41
A43: 利用上の注意
A44: １ この市町村別データは、「作物統計調査」を実施する上で把握した地域における標本調査及び現地見積りの結果、
A45: 関係機関からの情報等をもとに都道府県計値の内訳として市町村別に作成した加工統計であり、作成するうえで
A46: 精度を設定しているものではない。
A47: なお、「作物統計調査」は都道府県計値を求めるために設計されている。
A48: ２ 市町村間の出作・入作を考慮していない（属地統計）。
A49: ３ 数値については、四捨五入しており、都道府県計値と市町村別の内訳の計が一致しないことがある。

Sheet 20 (hidden)
A1: 農林水産関係市町村別データ
A2: 平成20年
A3: 耕地面積
A4: 神奈川県
A5: 都道 | B5: 市町 | D5: 耕地面積 | E5: 田耕地面積 | G5: 畑耕地面積
A6: 府県 | B6: 村 | C6: 市町村名 | F6: 田本地面積
A7: ｺｰﾄﾞ | B7: ｺｰﾄﾞ
D8: ha | E8: ha | F8: ha | G8: ha
A9: 14 | B9: 100 | C9: 横浜市 | D9: 3,010 | E9: 180 | F9: 171 | G9: 2,830
A10: 14 | B10: 130 | C10: 川崎市 | D10: 620 | E10: 27 | F10: 25 | G10: 593
A11: 14 | B11: 201 | C11: 横須賀市 | D11: 553 | E11: 16 | F11: 15 | G11: 537
A12: 14 | B12: 203 | C12: 平塚市 | D12: 1,550 | E12: 777 | F12: 755 | G12: 775
A13: 14 | B13: 204 | C13: 鎌倉市 | D13: 115 | E13: 1 | F13: 1 | G13: 114
A14: 14 | B14: 205 | C14: 藤沢市 | D14: 976 | E14: 146 | F14: 137 | G14: 830
A15: 14 | B15: 206 | C15: 小田原市 | D15: 1,920 | E15: 550 | F15: 528 | G15: 1,370
A16: 14 | B16: 207 | C16: 茅ヶ崎市 | D16: 387 | E16: 54 | F16: 50 | G16: 333
A17: 14 | B17: 208 | C17: 逗子市 | D17: 9 | E17: 0 | F17: 0 | G17: 9
A18: 14 | B18: 209 | C18: 相模原市 | D18: 1,710 | E18: 137 | F18: 131 | G18: 1,570
A19: 14 | B19: 210 | C19: 三浦市 | D19: 1,210 | E19: 10 | F19: 9 | G19: 1,200
A20: 14 | B20: 211 | C20: 秦野市 | D20: 1,250 | E20: 134 | F20: 116 | G20: 1,120
A21: 14 | B21: 212 | C21: 厚木市 | D21: 1,210 | E21: 522 | F21: 507 | G21: 691
A22: 14 | B22: 213 | C22: 大和市 | D22: 241 | E22: 12 | F22: 11 | G22: 229
A23: 14 | B23: 214 | C23: 伊勢原市 | D23: 1,150 | E23: 421 | F23: 402 | G23: 733
A24: 14 | B24: 215 | C24: 海老名市 | D24: 564 | E24: 258 | F24: 250 | G24: 306
A25: 14 | B25: 216 | C25: 座間市 | D25: 228 | E25: 91 | F25: 88 | G25: 137
A26: 14 | B26: 217 | C26: 南足柄市 | D26: 683 | E26: 184 | F26: 172 | G26: 499
A27: 14 | B27: 218 | C27: 綾瀬市 | D27: 272 | E27: 17 | F27: 16 | G27: 255
A28: 14 | B28: 301 | C28: 葉山町 | D28: 39 | E28: 4 | F28: 4 | G28: 35
A29: 14 | B29: 321 | C29: 寒川町 | D29: 255 | E29: 76 | F29: 72 | G29: 179
A30: 14 | B30: 341 | C30: 大磯町 | D30: 277 | E30: 25 | F30: 22 | G30: 252
A31: 14 | B31: 342 | C31: 二宮町 | D31: 132 | E31: 1 | F31: 1 | G31: 131
A32: 14 | B32: 361 | C32: 中井町 | D32: 479 | E32: 31 | F32: 27 | G32: 448
A33: 14 | B33: 362 | C33: 大井町 | D33: 351 | E33: 116 | F33: 107 | G33: 235
A34: 14 | B34: 363 | C34: 松田町 | D34: 164 | E34: 12 | F34: 10 | G34: 152
A35: 14 | B35: 364 | C35: 山北町 | D35: 406 | E35: 36 | F35: 32 | G35: 370
A36: 14 | B36: 366 | C36: 開成町 | D36: 206 | E36: 176 | F36: 164 | G36: 30
A37: 14 | B37: 382 | C37: 箱根町 | D37: 10 | E37: 2 | F37: 2 | G37: 8
A38: 14 | B38: 383 | C38: 真鶴町 | D38: 52 | E38: - | F38: - | G38: 52
A39: 14 | B39: 384 | C39: 湯河原町 | D39: 256 | E39: - | F39: - | G39: 256
A40: 14 | B40: 401 | C40: 愛川町 | D40: 349 | E40: 74 | F40: 71 | G40: 275
A41: 14 | B41: 402 | C41: 清川村 | D41: 48 | E41: 8 | F41: 7 | G41: 40
A43: 利用上の注意
A44: １ この市町村別データは、「作物統計調査」を実施する上で把握した地域における標本調査及び現地見積りの結果、
A45: 関係機関からの情報等をもとに都道府県計値の内訳として市町村別に作成した加工統計であり、作成するうえで
A46: 精度を設定しているものではない。
A47: なお、「作物統計調査」は都道府県計値を求めるために設計されている。
A48: ２ 市町村間の出作・入作を考慮していない（属地統計）。
A49: ３ 数値については、四捨五入しており、都道府県計値と市町村別の内訳の計が一致しないことがある。

Sheet 21 (hidden)
A1: 農林水産関係市町村別データ
A2: 平成21年
A3: 耕地面積
A4: 神奈川県
A5: 都道 | B5: 市町 | D5: 耕地面積 | E5: 田耕地面積 | G5: 畑耕地面積
A6: 府県 | B6: 村 | C6: 市町村名 | F6: 田本地面積
A7: ｺｰﾄﾞ | B7: ｺｰﾄﾞ
D8: ha | E8: ha | F8: ha | G8: ha
A9: 14 | B9: 100 | C9: 横浜市 | D9: 2,990 | E9: 178 | F9: 169 | G9: 2,810
A10: 14 | B10: 130 | C10: 川崎市 | D10: 613 | E10: 27 | F10: 25 | G10: 586
A11: 14 | B11: 201 | C11: 横須賀市 | D11: 553 | E11: 16 | F11: 15 | G11: 537
A12: 14 | B12: 203 | C12: 平塚市 | D12: 1,550 | E12: 774 | F12: 752 | G12: 775
A13: 14 | B13: 204 | C13: 鎌倉市 | D13: 114 | E13: 1 | F13: 1 | G13: 113
A14: 14 | B14: 205 | C14: 藤沢市 | D14: 963 | E14: 143 | F14: 134 | G14: 820
A15: 14 | B15: 206 | C15: 小田原市 | D15: 1,910 | E15: 546 | F15: 524 | G15: 1,360
A16: 14 | B16: 207 | C16: 茅ヶ崎市 | D16: 381 | E16: 52 | F16: 48 | G16: 329
A17: 14 | B17: 208 | C17: 逗子市 | D17: 9 | E17: 0 | F17: 0 | G17: 9
A18: 14 | B18: 209 | C18: 相模原市 | D18: 1,680 | E18: 137 | F18: 131 | G18: 1,550
A19: 14 | B19: 210 | C19: 三浦市 | D19: 1,210 | E19: 9 | F19: 8 | G19: 1,200
A20: 14 | B20: 211 | C20: 秦野市 | D20: 1,220 | E20: 119 | F20: 103 | G20: 1,100
A21: 14 | B21: 212 | C21: 厚木市 | D21: 1,210 | E21: 519 | F21: 504 | G21: 686
A22: 14 | B22: 213 | C22: 大和市 | D22: 226 | E22: 12 | F22: 11 | G22: 214
A23: 14 | B23: 214 | C23: 伊勢原市 | D23: 1,150 | E23: 419 | F23: 400 | G23: 728
A24: 14 | B24: 215 | C24: 海老名市 | D24: 563 | E24: 258 | F24: 250 | G24: 305
A25: 14 | B25: 216 | C25: 座間市 | D25: 228 | E25: 91 | F25: 88 | G25: 137
A26: 14 | B26: 217 | C26: 南足柄市 | D26: 679 | E26: 182 | F26: 170 | G26: 497
A27: 14 | B27: 218 | C27: 綾瀬市 | D27: 272 | E27: 17 | F27: 16 | G27: 255
A28: 14 | B28: 301 | C28: 葉山町 | D28: 40 | E28: 4 | F28: 4 | G28: 36
A29: 14 | B29: 321 | C29: 寒川町 | D29: 253 | E29: 76 | F29: 72 | G29: 177
A30: 14 | B30: 341 | C30: 大磯町 | D30: 275 | E30: 25 | F30: 22 | G30: 250
A31: 14 | B31: 342 | C31: 二宮町 | D31: 130 | E31: 1 | F31: 1 | G31: 129
A32: 14 | B32: 361 | C32: 中井町 | D32: 478 | E32: 31 | F32: 27 | G32: 447
A33: 14 | B33: 362 | C33: 大井町 | D33: 350 | E33: 115 | F33: 106 | G33: 235
A34: 14 | B34: 363 | C34: 松田町 | D34: 162 | E34: 11 | F34: 9 | G34: 151
A35: 14 | B35: 364 | C35: 山北町 | D35: 405 | E35: 36 | F35: 32 | G35: 369
A36: 14 | B36: 366 | C36: 開成町 | D36: 202 | E36: 173 | F36: 161 | G36: 29
A37: 14 | B37: 382 | C37: 箱根町 | D37: 10 | E37: 2 | F37: 2 | G37: 8
A38: 14 | B38: 383 | C38: 真鶴町 | D38: 52 | E38: - | F38: - | G38: 52
A39: 14 | B39: 384 | C39: 湯河原町 | D39: 255 | E39: - | F39: - | G39: 255
A40: 14 | B40: 401 | C40: 愛川町 | D40: 346 | E40: 74 | F40: 71 | G40: 272
A41: 14 | B41: 402 | C41: 清川村 | D41: 48 | E41: 8 | F41: 7 | G41: 40
A43: 利用上の注意
A44: １ この市町村別データは、「作物統計調査」を実施する上で把握した地域における標本調査及び現地見積りの結果、
A45: 関係機関からの情報等をもとに都道府県計値の内訳として市町村別に作成した加工統計であり、作成するうえで
A46: 精度を設定しているものではない。
A47: なお、「作物統計調査」は都道府県計値を求めるために設計されている。
A48: ２ 市町村間の出作・入作を考慮していない（属地統計）。
A49: ３ 数値については、四捨五入しており、都道府県計値と市町村別の内訳の計が一致しないことがある。

Sheet 22 (hidden)
A1: 農林水産関係市町村別統計
A2: 平成22年
A3: 耕地面積
A4: 神奈川県
A5: 都道 | B5: 市町 | D5: 耕地面積 | E5: 田耕地面積 | G5: 畑耕地面積
A6: 府県 | B6: 村 | C6: 市町村名 | F6: 田本地面積
A7: ｺｰﾄﾞ | B7: ｺｰﾄﾞ
D8: ha | E8: ha | F8: ha | G8: ha
A9: 14 | B9: 100 | C9: 横浜市 | D9: 2,970 | E9: 176 | F9: 169 | G9: 2,800
A10: 14 | B10: 130 | C10: 川崎市 | D10: 608 | E10: 24 | F10: 23 | G10: 584
A11: 14 | B11: 150 | C11: 相模原市 | D11: 1,660 | E11: 130 | F11: 125 | G11: 1,530
A12: 14 | B12: 201 | C12: 横須賀市 | D12: 543 | E12: 12 | F12: 12 | G12: 531
A13: 14 | B13: 203 | C13: 平塚市 | D13: 1,540 | E13: 772 | F13: 750 | G13: 766
A14: 14 | B14: 204 | C14: 鎌倉市 | D14: 110 | E14: 1 | F14: 1 | G14: 109
A15: 14 | B15: 205 | C15: 藤沢市 | D15: 949 | E15: 142 | F15: 133 | G15: 807
A16: 14 | B16: 206 | C16: 小田原市 | D16: 1,900 | E16: 545 | F16: 523 | G16: 1,360
A17: 14 | B17: 207 | C17: 茅ヶ崎市 | D17: 374 | E17: 51 | F17: 47 | G17: 323
A18: 14 | B18: 208 | C18: 逗子市 | D18: 9 | E18: 0 | F18: 0 | G18: 9
A19: 14 | B19: 210 | C19: 三浦市 | D19: 1,200 | E19: 6 | F19: 6 | G19: 1,190
A20: 14 | B20: 211 | C20: 秦野市 | D20: 1,210 | E20: 119 | F20: 103 | G20: 1,090
A21: 14 | B21: 212 | C21: 厚木市 | D21: 1,200 | E21: 520 | F21: 500 | G21: 683
A22: 14 | B22: 213 | C22: 大和市 | D22: 224 | E22: 11 | F22: 11 | G22: 213
A23: 14 | B23: 214 | C23: 伊勢原市 | D23: 1,140 | E23: 417 | F23: 398 | G23: 725
A24: 14 | B24: 215 | C24: 海老名市 | D24: 565 | E24: 260 | F24: 250 | G24: 305
A25: 14 | B25: 216 | C25: 座間市 | D25: 227 | E25: 90 | F25: 87 | G25: 137
A26: 14 | B26: 217 | C26: 南足柄市 | D26: 678 | E26: 182 | F26: 170 | G26: 496
A27: 14 | B27: 218 | C27: 綾瀬市 | D27: 272 | E27: 17 | F27: 16 | G27: 255
A28: 14 | B28: 301 | C28: 葉山町 | D28: 39 | E28: 4 | F28: 4 | G28: 35
A29: 14 | B29: 321 | C29: 寒川町 | D29: 250 | E29: 76 | F29: 72 | G29: 174
A30: 14 | B30: 341 | C30: 大磯町 | D30: 273 | E30: 25 | F30: 22 | G30: 248
A31: 14 | B31: 342 | C31: 二宮町 | D31: 129 | E31: 1 | F31: 1 | G31: 128
A32: 14 | B32: 361 | C32: 中井町 | D32: 478 | E32: 31 | F32: 27 | G32: 447
A33: 14 | B33: 362 | C33: 大井町 | D33: 349 | E33: 114 | F33: 105 | G33: 235
A34: 14 | B34: 363 | C34: 松田町 | D34: 162 | E34: 11 | F34: 9 | G34: 151
A35: 14 | B35: 364 | C35: 山北町 | D35: 405 | E35: 36 | F35: 32 | G35: 369
A36: 14 | B36: 366 | C36: 開成町 | D36: 202 | E36: 173 | F36: 161 | G36: 29
A37: 14 | B37: 382 | C37: 箱根町 | D37: 10 | E37: 2 | F37: 2 | G37: 8
A38: 14 | B38: 383 | C38: 真鶴町 | D38: 52 | E38: - | F38: - | G38: 52
A39: 14 | B39: 384 | C39: 湯河原町 | D39: 253 | E39: - | F39: - | G39: 253
A40: 14 | B40: 401 | C40: 愛川町 | D40: 345 | E40: 74 | F40: 71 | G40: 271
A41: 14 | B41: 402 | C41: 清川村 | D41: 46 | E41: 7 | F41: 7 | G41: 39
A43: 利用上の注意
A44: １ この市町村別統計は、「作物統計調査」を実施する上で把握した地域における標本調査及び現地見積りの結果、
A45: 関係機関からの情報等を踏まえ、都道府県計値の内訳として市町村別に作成した加工統計であり、作成するうえで
A46: 精度を設定しているものではない。
A47: なお、「作物統計調査」は都道府県計値を求めるために設計されている。
A48: ２ 耕作者の市町村間の出作・入作を考慮していない（属地統計）。
A49: ３ 数値は四捨五入しており、市町村値の計が都道府県値と一致しないことがある。

Sheet 23 (hidden)
A1: 農林水産関係市町村別統計
A2: 平成23年
A3: 耕地面積
A4: 神奈川県
A5: 都道 | B5: 市町 | D5: 耕地面積 | E5: 田耕地面積 | G5: 畑耕地面積
A6: 府県 | B6: 村 | C6: 市町村名 | F6: 田本地面積
A7: ｺｰﾄﾞ | B7: ｺｰﾄﾞ
D8: ha | E8: ha | F8: ha | G8: ha
A9: 14 | B9: 100 | C9: 横浜市 | D9: 2,960 | E9: 172 | F9: 165 | G9: 2,790
A10: 14 | B10: 130 | C10: 川崎市 | D10: 605 | E10: 24 | F10: 23 | G10: 581
A11: 14 | B11: 150 | C11: 相模原市 | D11: 1,640 | E11: 126 | F11: 121 | G11: 1,520
A12: 14 | B12: 201 | C12: 横須賀市 | D12: 541 | E12: 11 | F12: 11 | G12: 530
A13: 14 | B13: 203 | C13: 平塚市 | D13: 1,540 | E13: 772 | F13: 750 | G13: 766
A14: 14 | B14: 204 | C14: 鎌倉市 | D14: 109 | E14: 1 | F14: 1 | G14: 108
A15: 14 | B15: 205 | C15: 藤沢市 | D15: 939 | E15: 140 | F15: 131 | G15: 799
A16: 14 | B16: 206 | C16: 小田原市 | D16: 1,890 | E16: 537 | F16: 516 | G16: 1,360
A17: 14 | B17: 207 | C17: 茅ヶ崎市 | D17: 372 | E17: 49 | F17: 45 | G17: 323
A18: 14 | B18: 208 | C18: 逗子市 | D18: 9 | E18: 0 | F18: 0 | G18: 9
A19: 14 | B19: 210 | C19: 三浦市 | D19: 1,200 | E19: 6 | F19: 6 | G19: 1,190
A20: 14 | B20: 211 | C20: 秦野市 | D20: 1,200 | E20: 118 | F20: 102 | G20: 1,080
A21: 14 | B21: 212 | C21: 厚木市 | D21: 1,190 | E21: 515 | F21: 495 | G21: 678
A22: 14 | B22: 213 | C22: 大和市 | D22: 223 | E22: 11 | F22: 11 | G22: 212
A23: 14 | B23: 214 | C23: 伊勢原市 | D23: 1,140 | E23: 414 | F23: 396 | G23: 722
A24: 14 | B24: 215 | C24: 海老名市 | D24: 564 | E24: 260 | F24: 250 | G24: 304
A25: 14 | B25: 216 | C25: 座間市 | D25: 227 | E25: 90 | F25: 87 | G25: 137
A26: 14 | B26: 217 | C26: 南足柄市 | D26: 676 | E26: 180 | F26: 168 | G26: 496
A27: 14 | B27: 218 | C27: 綾瀬市 | D27: 271 | E27: 17 | F27: 16 | G27: 254
A28: 14 | B28: 301 | C28: 葉山町 | D28: 39 | E28: 4 | F28: 4 | G28: 35
A29: 14 | B29: 321 | C29: 寒川町 | D29: 246 | E29: 75 | F29: 71 | G29: 171
A30: 14 | B30: 341 | C30: 大磯町 | D30: 272 | E30: 24 | F30: 21 | G30: 248
A31: 14 | B31: 342 | C31: 二宮町 | D31: 129 | E31: 1 | F31: 1 | G31: 128
A32: 14 | B32: 361 | C32: 中井町 | D32: 468 | E32: 31 | F32: 27 | G32: 437
A33: 14 | B33: 362 | C33: 大井町 | D33: 349 | E33: 114 | F33: 105 | G33: 235
A34: 14 | B34: 363 | C34: 松田町 | D34: 161 | E34: 10 | F34: 8 | G34: 151
A35: 14 | B35: 364 | C35: 山北町 | D35: 405 | E35: 36 | F35: 32 | G35: 369
A36: 14 | B36: 366 | C36: 開成町 | D36: 202 | E36: 173 | F36: 161 | G36: 29
A37: 14 | B37: 382 | C37: 箱根町 | D37: 10 | E37: 2 | F37: 2 | G37: 8
A38: 14 | B38: 383 | C38: 真鶴町 | D38: 52 | E38: - | F38: - | G38: 52
A39: 14 | B39: 384 | C39: 湯河原町 | D39: 252 | E39: - | F39: - | G39: 252
A40: 14 | B40: 401 | C40: 愛川町 | D40: 345 | E40: 74 | F40: 71 | G40: 271
A41: 14 | B41: 402 | C41: 清川村 | D41: 46 | E41: 7 | F41: 7 | G41: 39
C43: 計 | D43: 20,300 | E43: 3,990 | F43: 3,800 | G43: 16,300
A45: 利用上の注意
A46: １ この市町村別統計は、「作物統計調査」を実施する上で把握した地域における標本調査及び現地見積りの結果、
A47: 関係機関からの情報等を踏まえ、都道府県計値の内訳として市町村別に作成した加工統計であり、作成するうえで
A48: 精度を設定しているものではない。
A49: なお、「作物統計調査」は都道府県計値を求めるために設計されている。
A50: ２ 耕作者の市町村間の出作・入作を考慮していない（属地統計）。
A51: ３ 数値は四捨五入しており、市町村値の計が都道府県値と一致しないことがある。

Sheet 24 (hidden)
A1: 農林水産関係市町村別統計
A2: 平成24年
A3: 耕地面積
A4: 神奈川県
A5: 都道 | B5: 市町 | D5: 耕地面積 | E5: 田耕地面積 | G5: 畑耕地面積
A6: 府県 | B6: 村 | C6: 市町村名 | F6: 田本地面積
A7: ｺｰﾄﾞ | B7: ｺｰﾄﾞ
D8: ha | E8: ha | F8: ha | G8: ha
A9: 14 | B9: 100 | C9: 横浜市 | D9: 2,950 | E9: 168 | F9: 162 | G9: 2,790
A10: 14 | B10: 130 | C10: 川崎市 | D10: 603 | E10: 23 | F10: 22 | G10: 580
A11: 14 | B11: 150 | C11: 相模原市 | D11: 1,640 | E11: 125 | F11: 120 | G11: 1,510
A12: 14 | B12: 201 | C12: 横須賀市 | D12: 539 | E12: 10 | F12: 10 | G12: 529
A13: 14 | B13: 203 | C13: 平塚市 | D13: 1,540 | E13: 771 | F13: 749 | G13: 764
A14: 14 | B14: 204 | C14: 鎌倉市 | D14: 109 | E14: 1 | F14: 1 | G14: 108
A15: 14 | B15: 205 | C15: 藤沢市 | D15: 929 | E15: 138 | F15: 129 | G15: 791
A16: 14 | B16: 206 | C16: 小田原市 | D16: 1,870 | E16: 536 | F16: 515 | G16: 1,340
A17: 14 | B17: 207 | C17: 茅ヶ崎市 | D17: 369 | E17: 49 | F17: 45 | G17: 320
A18: 14 | B18: 208 | C18: 逗子市 | D18: 9 | E18: 0 | F18: 0 | G18: 9
A19: 14 | B19: 210 | C19: 三浦市 | D19: 1,200 | E19: 6 | F19: 6 | G19: 1,190
A20: 14 | B20: 211 | C20: 秦野市 | D20: 1,170 | E20: 117 | F20: 101 | G20: 1,050
A21: 14 | B21: 212 | C21: 厚木市 | D21: 1,180 | E21: 509 | F21: 489 | G21: 669
A22: 14 | B22: 213 | C22: 大和市 | D22: 222 | E22: 11 | F22: 11 | G22: 211
A23: 14 | B23: 214 | C23: 伊勢原市 | D23: 1,130 | E23: 412 | F23: 394 | G23: 718
A24: 14 | B24: 215 | C24: 海老名市 | D24: 562 | E24: 259 | F24: 249 | G24: 303
A25: 14 | B25: 216 | C25: 座間市 | D25: 227 | E25: 90 | F25: 87 | G25: 137
A26: 14 | B26: 217 | C26: 南足柄市 | D26: 673 | E26: 180 | F26: 168 | G26: 493
A27: 14 | B27: 218 | C27: 綾瀬市 | D27: 271 | E27: 17 | F27: 16 | G27: 254
A28: 14 | B28: 301 | C28: 葉山町 | D28: 39 | E28: 4 | F28: 4 | G28: 35
A29: 14 | B29: 321 | C29: 寒川町 | D29: 244 | E29: 75 | F29: 71 | G29: 169
A30: 14 | B30: 341 | C30: 大磯町 | D30: 270 | E30: 24 | F30: 21 | G30: 246
A31: 14 | B31: 342 | C31: 二宮町 | D31: 127 | E31: 1 | F31: 1 | G31: 126
A32: 14 | B32: 361 | C32: 中井町 | D32: 464 | E32: 31 | F32: 27 | G32: 433
A33: 14 | B33: 362 | C33: 大井町 | D33: 349 | E33: 114 | F33: 105 | G33: 235
A34: 14 | B34: 363 | C34: 松田町 | D34: 160 | E34: 10 | F34: 8 | G34: 150
A35: 14 | B35: 364 | C35: 山北町 | D35: 404 | E35: 36 | F35: 32 | G35: 368
A36: 14 | B36: 366 | C36: 開成町 | D36: 201 | E36: 172 | F36: 160 | G36: 29
A37: 14 | B37: 382 | C37: 箱根町 | D37: 10 | E37: 2 | F37: 2 | G37: 8
A38: 14 | B38: 383 | C38: 真鶴町 | D38: 50 | E38: - | F38: - | G38: 50
A39: 14 | B39: 384 | C39: 湯河原町 | D39: 248 | E39: - | F39: - | G39: 248
A40: 14 | B40: 401 | C40: 愛川町 | D40: 345 | E40: 74 | F40: 71 | G40: 271
A41: 14 | B41: 402 | C41: 清川村 | D41: 46 | E41: 7 | F41: 7 | G41: 39
C43: 計 | D43: 20,100 | E43: 3,970 | F43: 3,780 | G43: 16,200
A45: 利用上の注意
A46: １ この市町村別統計は、「作物統計調査」を実施する上で把握した地域における標本調査及び現地見積りの結果、
A47: 関係機関からの情報等を踏まえ、都道府県計値の内訳として市町村別に作成した加工統計であり、作成する上で
A48: 精度を設定しているものではない。
A49: なお、「作物統計調査」は都道府県計値を求めるために設計されている。
A50: ２ 耕作者の市町村間の出作・入作を考慮していない（属地統計）。
A51: ３ 数値は四捨五入しており、市町村値の計が都道府県値と一致しないことがある。

Sheet 25 (hidden)
A1: 農林水産関係市町村別統計
A2: 平成25年
A3: 耕地面積
A4: 神奈川県
A5: 都道 | B5: 市町 | D5: 耕地面積 | E5: 田耕地面積 | G5: 畑耕地面積
A6: 府県 | B6: 村 | C6: 市町村名 | F6: 田本地面積
A7: ｺｰﾄﾞ | B7: ｺｰﾄﾞ
D8: ha | E8: ha | F8: ha | G8: ha
A9: 14 | B9: 100 | C9: 横浜市 | D9: 2,930 | E9: 163 | F9: 157 | G9: 2,770
A10: 14 | B10: 130 | C10: 川崎市 | D10: 598 | E10: 22 | F10: 21 | G10: 576
A11: 14 | B11: 150 | C11: 相模原市 | D11: 1,620 | E11: 123 | F11: 118 | G11: 1,490
A12: 14 | B12: 201 | C12: 横須賀市 | D12: 539 | E12: 10 | F12: 10 | G12: 529
A13: 14 | B13: 203 | C13: 平塚市 | D13: 1,530 | E13: 766 | F13: 744 | G13: 761
A14: 14 | B14: 204 | C14: 鎌倉市 | D14: 107 | E14: 1 | F14: 1 | G14: 106
A15: 14 | B15: 205 | C15: 藤沢市 | D15: 921 | E15: 137 | F15: 128 | G15: 784
A16: 14 | B16: 206 | C16: 小田原市 | D16: 1,860 | E16: 534 | F16: 513 | G16: 1,330
A17: 14 | B17: 207 | C17: 茅ヶ崎市 | D17: 362 | E17: 47 | F17: 43 | G17: 315
A18: 14 | B18: 208 | C18: 逗子市 | D18: 9 | E18: 0 | F18: 0 | G18: 9
A19: 14 | B19: 210 | C19: 三浦市 | D19: 1,200 | E19: 6 | F19: 6 | G19: 1,190
A20: 14 | B20: 211 | C20: 秦野市 | D20: 1,150 | E20: 114 | F20: 99 | G20: 1,030
A21: 14 | B21: 212 | C21: 厚木市 | D21: 1,160 | E21: 504 | F21: 485 | G21: 654
A22: 14 | B22: 213 | C22: 大和市 | D22: 221 | E22: 11 | F22: 11 | G22: 210
A23: 14 | B23: 214 | C23: 伊勢原市 | D23: 1,120 | E23: 410 | F23: 392 | G23: 712
A24: 14 | B24: 215 | C24: 海老名市 | D24: 559 | E24: 258 | F24: 248 | G24: 301
A25: 14 | B25: 216 | C25: 座間市 | D25: 225 | E25: 89 | F25: 86 | G25: 136
A26: 14 | B26: 217 | C26: 南足柄市 | D26: 669 | E26: 177 | F26: 166 | G26: 492
A27: 14 | B27: 218 | C27: 綾瀬市 | D27: 270 | E27: 17 | F27: 16 | G27: 253
A28: 14 | B28: 301 | C28: 葉山町 | D28: 38 | E28: 4 | F28: 4 | G28: 34
A29: 14 | B29: 321 | C29: 寒川町 | D29: 240 | E29: 71 | F29: 67 | G29: 169
A30: 14 | B30: 341 | C30: 大磯町 | D30: 269 | E30: 23 | F30: 20 | G30: 246
A31: 14 | B31: 342 | C31: 二宮町 | D31: 122 | E31: 0 | F31: 0 | G31: 122
A32: 14 | B32: 361 | C32: 中井町 | D32: 461 | E32: 30 | F32: 26 | G32: 431
A33: 14 | B33: 362 | C33: 大井町 | D33: 346 | E33: 111 | F33: 102 | G33: 235
A34: 14 | B34: 363 | C34: 松田町 | D34: 160 | E34: 10 | F34: 8 | G34: 150
A35: 14 | B35: 364 | C35: 山北町 | D35: 402 | E35: 35 | F35: 31 | G35: 367
A36: 14 | B36: 366 | C36: 開成町 | D36: 200 | E36: 169 | F36: 157 | G36: 31
A37: 14 | B37: 382 | C37: 箱根町 | D37: 10 | E37: 2 | F37: 2 | G37: 8
A38: 14 | B38: 383 | C38: 真鶴町 | D38: 50 | E38: - | F38: - | G38: 50
A39: 14 | B39: 384 | C39: 湯河原町 | D39: 244 | E39: - | F39: - | G39: 244
A40: 14 | B40: 401 | C40: 愛川町 | D40: 334 | E40: 73 | F40: 70 | G40: 261
A41: 14 | B41: 402 | C41: 清川村 | D41: 46 | E41: 7 | F41: 7 | G41: 39
C43: 計 | D43: 20,000 | E43: 3,920 | F43: 3,740 | G43: 16,000
A45: 利用上の注意
A46: １ この市町村別統計は、「作物統計調査」を実施する上で把握した地域における標本調査及び現地見積りの結果、
A47: 関係機関からの情報等を踏まえ、都道府県計値の内訳として市町村別に作成した加工統計であり、作成するうえで
A48: 精度を設定しているものではない。
A49: なお、「作物統計調査」は都道府県計値を求めるために設計されている。
A50: ２ 耕作者の市町村間の出作・入作を考慮していない（属地統計）。
A51: ３ 数値は四捨五入しており、市町村値の計が都道府県値と一致しないことがある。

Sheet 26 (hidden)
A1: 農林水産関係市町村別統計
A2: 平成26年
A3: 耕地面積
A4: 神奈川県
A5: 都道 | B5: 市町 | D5: 耕地面積 | E5: 田耕地面積 | G5: 畑耕地面積
A6: 府県 | B6: 村 | C6: 市町村名 | F6: 田本地面積
A7: ｺｰﾄﾞ | B7: ｺｰﾄﾞ
D8: ha | E8: ha | F8: ha | G8: ha
A9: 14 | B9: 100 | C9: 横浜市 | D9: 2,870 | E9: 160 | F9: 154 | G9: 2,710
A10: 14 | B10: 130 | C10: 川崎市 | D10: 573 | E10: 22 | F10: 21 | G10: 551
A11: 14 | B11: 150 | C11: 相模原市 | D11: 1,620 | E11: 122 | F11: 117 | G11: 1,500
A12: 14 | B12: 201 | C12: 横須賀市 | D12: 537 | E12: 10 | F12: 10 | G12: 527
A13: 14 | B13: 203 | C13: 平塚市 | D13: 1,520 | E13: 765 | F13: 743 | G13: 752
A14: 14 | B14: 204 | C14: 鎌倉市 | D14: 105 | E14: 1 | F14: 1 | G14: 104
A15: 14 | B15: 205 | C15: 藤沢市 | D15: 902 | E15: 137 | F15: 128 | G15: 765
A16: 14 | B16: 206 | C16: 小田原市 | D16: 1,850 | E16: 527 | F16: 506 | G16: 1,320
A17: 14 | B17: 207 | C17: 茅ヶ崎市 | D17: 352 | E17: 46 | F17: 42 | G17: 306
A18: 14 | B18: 208 | C18: 逗子市 | D18: 7 | E18: 0 | F18: 0 | G18: 7
A19: 14 | B19: 210 | C19: 三浦市 | D19: 1,200 | E19: 6 | F19: 6 | G19: 1,190
A20: 14 | B20: 211 | C20: 秦野市 | D20: 1,150 | E20: 113 | F20: 98 | G20: 1,030
A21: 14 | B21: 212 | C21: 厚木市 | D21: 1,150 | E21: 497 | F21: 478 | G21: 652
A22: 14 | B22: 213 | C22: 大和市 | D22: 215 | E22: 11 | F22: 11 | G22: 204
A23: 14 | B23: 214 | C23: 伊勢原市 | D23: 1,110 | E23: 405 | F23: 388 | G23: 704
A24: 14 | B24: 215 | C24: 海老名市 | D24: 552 | E24: 257 | F24: 247 | G24: 295
A25: 14 | B25: 216 | C25: 座間市 | D25: 219 | E25: 89 | F25: 86 | G25: 130
A26: 14 | B26: 217 | C26: 南足柄市 | D26: 669 | E26: 175 | F26: 165 | G26: 494
A27: 14 | B27: 218 | C27: 綾瀬市 | D27: 260 | E27: 15 | F27: 14 | G27: 245
A28: 14 | B28: 301 | C28: 葉山町 | D28: 36 | E28: 3 | F28: 3 | G28: 33
A29: 14 | B29: 321 | C29: 寒川町 | D29: 237 | E29: 71 | F29: 67 | G29: 166
A30: 14 | B30: 341 | C30: 大磯町 | D30: 267 | E30: 23 | F30: 20 | G30: 244
A31: 14 | B31: 342 | C31: 二宮町 | D31: 118 | E31: 0 | F31: 0 | G31: 118
A32: 14 | B32: 361 | C32: 中井町 | D32: 441 | E32: 29 | F32: 25 | G32: 412
A33: 14 | B33: 362 | C33: 大井町 | D33: 343 | E33: 111 | F33: 102 | G33: 232
A34: 14 | B34: 363 | C34: 松田町 | D34: 160 | E34: 10 | F34: 8 | G34: 150
A35: 14 | B35: 364 | C35: 山北町 | D35: 400 | E35: 34 | F35: 30 | G35: 366
A36: 14 | B36: 366 | C36: 開成町 | D36: 200 | E36: 169 | F36: 157 | G36: 31
A37: 14 | B37: 382 | C37: 箱根町 | D37: 10 | E37: 2 | F37: 2 | G37: 8
A38: 14 | B38: 383 | C38: 真鶴町 | D38: 49 | E38: - | F38: - | G38: 49
A39: 14 | B39: 384 | C39: 湯河原町 | D39: 243 | E39: - | F39: - | G39: 243
A40: 14 | B40: 401 | C40: 愛川町 | D40: 327 | E40: 73 | F40: 70 | G40: 254
A41: 14 | B41: 402 | C41: 清川村 | D41: 46 | E41: 7 | F41: 7 | G41: 39
C43: 計 | D43: 19,700 | E43: 3,890 | F43: 3,710 | G43: 15,800
A45: 利用上の注意
A46: １ この市町村別統計は、「作物統計調査」を実施する上で把握した地域における標本調査及び現地見積りの結果、
A47: 関係機関からの情報等を踏まえ、都道府県計値の内訳として市町村別に作成した加工統計であり、作成する上で
A48: 精度を設定しているものではない。
A49: なお、「作物統計調査」は都道府県計値を求めるために設計されている。
A50: ２ 耕作者の市町村間の出作・入作を考慮していない（属地統計）。
A51: ３ 数値は四捨五入しており、市町村値の計が都道府県値と一致しないことがある。

Sheet 27 (hidden)
A1: 農林水産関係市町村別統計
A2: 平成27年
A3: 耕地面積
A4: 神奈川県
A5: 都道 | B5: 市町 | D5: 耕地面積 | E5: 田耕地面積 | G5: 畑耕地面積
A6: 府県 | B6: 村 | C6: 市町村名 | F6: 田本地面積
A7: ｺｰﾄﾞ | B7: ｺｰﾄﾞ
D8: ha | E8: ha | F8: ha | G8: ha
A9: 14 | B9: 100 | C9: 横浜市 | D9: 2,850 | E9: 155 | F9: 149 | G9: 2,690
A10: 14 | B10: 130 | C10: 川崎市 | D10: 571 | E10: 21 | F10: 20 | G10: 550
A11: 14 | B11: 150 | C11: 相模原市 | D11: 1,610 | E11: 122 | F11: 117 | G11: 1,490
A12: 14 | B12: 201 | C12: 横須賀市 | D12: 533 | E12: 9 | F12: 9 | G12: 524
A13: 14 | B13: 203 | C13: 平塚市 | D13: 1,510 | E13: 761 | F13: 739 | G13: 749
A14: 14 | B14: 204 | C14: 鎌倉市 | D14: 105 | E14: 1 | F14: 1 | G14: 104
A15: 14 | B15: 205 | C15: 藤沢市 | D15: 901 | E15: 136 | F15: 127 | G15: 765
A16: 14 | B16: 206 | C16: 小田原市 | D16: 1,840 | E16: 521 | F16: 500 | G16: 1,320
A17: 14 | B17: 207 | C17: 茅ヶ崎市 | D17: 349 | E17: 43 | F17: 40 | G17: 306
A18: 14 | B18: 208 | C18: 逗子市 | D18: 7 | E18: 0 | F18: 0 | G18: 7
A19: 14 | B19: 210 | C19: 三浦市 | D19: 1,190 | E19: 5 | F19: 5 | G19: 1,190
A20: 14 | B20: 211 | C20: 秦野市 | D20: 1,130 | E20: 112 | F20: 97 | G20: 1,020
A21: 14 | B21: 212 | C21: 厚木市 | D21: 1,140 | E21: 493 | F21: 474 | G21: 648
A22: 14 | B22: 213 | C22: 大和市 | D22: 213 | E22: 11 | F22: 11 | G22: 202
A23: 14 | B23: 214 | C23: 伊勢原市 | D23: 1,110 | E23: 404 | F23: 387 | G23: 701
A24: 14 | B24: 215 | C24: 海老名市 | D24: 545 | E24: 252 | F24: 243 | G24: 293
A25: 14 | B25: 216 | C25: 座間市 | D25: 218 | E25: 89 | F25: 86 | G25: 129
A26: 14 | B26: 217 | C26: 南足柄市 | D26: 660 | E26: 170 | F26: 160 | G26: 490
A27: 14 | B27: 218 | C27: 綾瀬市 | D27: 259 | E27: 15 | F27: 14 | G27: 244
A28: 14 | B28: 301 | C28: 葉山町 | D28: 36 | E28: 3 | F28: 3 | G28: 33
A29: 14 | B29: 321 | C29: 寒川町 | D29: 236 | E29: 71 | F29: 67 | G29: 165
A30: 14 | B30: 341 | C30: 大磯町 | D30: 267 | E30: 23 | F30: 20 | G30: 244
A31: 14 | B31: 342 | C31: 二宮町 | D31: 118 | E31: 0 | F31: 0 | G31: 118
A32: 14 | B32: 361 | C32: 中井町 | D32: 437 | E32: 28 | F32: 24 | G32: 409
A33: 14 | B33: 362 | C33: 大井町 | D33: 341 | E33: 111 | F33: 102 | G33: 230
A34: 14 | B34: 363 | C34: 松田町 | D34: 160 | E34: 10 | F34: 8 | G34: 150
A35: 14 | B35: 364 | C35: 山北町 | D35: 397 | E35: 33 | F35: 29 | G35: 364
A36: 14 | B36: 366 | C36: 開成町 | D36: 199 | E36: 168 | F36: 156 | G36: 31
A37: 14 | B37: 382 | C37: 箱根町 | D37: 9 | E37: 2 | F37: 2 | G37: 7
A38: 14 | B38: 383 | C38: 真鶴町 | D38: 49 | E38: - | F38: - | G38: 49
A39: 14 | B39: 384 | C39: 湯河原町 | D39: 242 | E39: - | F39: - | G39: 242
A40: 14 | B40: 401 | C40: 愛川町 | D40: 313 | E40: 70 | F40: 67 | G40: 243
A41: 14 | B41: 402 | C41: 清川村 | D41: 46 | E41: 7 | F41: 7 | G41: 39
C43: 計 | D43: 19,600 | E43: 3,850 | F43: 3,660 | G43: 15,700
A45: 利用上の注意
A46: １ この市町村別統計は、「作物統計調査」を実施する上で把握した地域における標本調査及び現地見積りの結果、
A47: 関係機関からの情報等を踏まえ、都道府県計値の内訳として市町村別に作成した加工統計であり、作成するうえで
A48: 精度を設定しているものではない。
A49: なお、「作物統計調査」は都道府県計値を求めるために設計されている。
A50: ２ 耕作者の市町村間の出作・入作を考慮していない（属地統計）。
A51: ３ 数値は四捨五入しており、市町村値の計が都道府県値と一致しないことがある。

Sheet 28 (hidden)
A1: 農林水産関係市町村別統計
A2: 平成28年
A3: 耕地面積
A4: 神奈川県
A5: 都道 | B5: 市町 | D5: 耕地面積 | E5: 田耕地面積 | G5: 畑耕地面積
A6: 府県 | B6: 村 | C6: 市町村名 | F6: 田本地面積
A7: ｺｰﾄﾞ | B7: ｺｰﾄﾞ
D8: ha | E8: ha | F8: ha | G8: ha
A9: 14 | B9: 100 | C9: 横浜市 | D9: 2,820 | E9: 149 | F9: 143 | G9: 2,680
A10: 14 | B10: 130 | C10: 川崎市 | D10: 570 | E10: 21 | F10: 20 | G10: 549
A11: 14 | B11: 150 | C11: 相模原市 | D11: 1,580 | E11: 111 | F11: 107 | G11: 1,470
A12: 14 | B12: 201 | C12: 横須賀市 | D12: 533 | E12: 9 | F12: 9 | G12: 524
A13: 14 | B13: 203 | C13: 平塚市 | D13: 1,480 | E13: 739 | F13: 718 | G13: 740
A14: 14 | B14: 204 | C14: 鎌倉市 | D14: 104 | E14: 1 | F14: 1 | G14: 103
A15: 14 | B15: 205 | C15: 藤沢市 | D15: 900 | E15: 135 | F15: 126 | G15: 765
A16: 14 | B16: 206 | C16: 小田原市 | D16: 1,830 | E16: 521 | F16: 500 | G16: 1,310
A17: 14 | B17: 207 | C17: 茅ヶ崎市 | D17: 349 | E17: 43 | F17: 39 | G17: 306
A18: 14 | B18: 208 | C18: 逗子市 | D18: 7 | E18: 0 | F18: 0 | G18: 7
A19: 14 | B19: 210 | C19: 三浦市 | D19: 1,190 | E19: 5 | F19: 5 | G19: 1,190
A20: 14 | B20: 211 | C20: 秦野市 | D20: 1,120 | E20: 109 | F20: 95 | G20: 1,010
A21: 14 | B21: 212 | C21: 厚木市 | D21: 1,140 | E21: 493 | F21: 474 | G21: 645
A22: 14 | B22: 213 | C22: 大和市 | D22: 211 | E22: 11 | F22: 11 | G22: 200
A23: 14 | B23: 214 | C23: 伊勢原市 | D23: 1,100 | E23: 402 | F23: 385 | G23: 696
A24: 14 | B24: 215 | C24: 海老名市 | D24: 541 | E24: 248 | F24: 239 | G24: 293
A25: 14 | B25: 216 | C25: 座間市 | D25: 217 | E25: 89 | F25: 86 | G25: 128
A26: 14 | B26: 217 | C26: 南足柄市 | D26: 660 | E26: 170 | F26: 160 | G26: 490
A27: 14 | B27: 218 | C27: 綾瀬市 | D27: 251 | E27: 15 | F27: 14 | G27: 236
A28: 14 | B28: 301 | C28: 葉山町 | D28: 35 | E28: 3 | F28: 3 | G28: 32
A29: 14 | B29: 321 | C29: 寒川町 | D29: 235 | E29: 71 | F29: 67 | G29: 164
A30: 14 | B30: 341 | C30: 大磯町 | D30: 266 | E30: 22 | F30: 19 | G30: 244
A31: 14 | B31: 342 | C31: 二宮町 | D31: 118 | E31: 0 | F31: 0 | G31: 118
A32: 14 | B32: 361 | C32: 中井町 | D32: 436 | E32: 28 | F32: 24 | G32: 408
A33: 14 | B33: 362 | C33: 大井町 | D33: 341 | E33: 111 | F33: 102 | G33: 230
A34: 14 | B34: 363 | C34: 松田町 | D34: 160 | E34: 10 | F34: 8 | G34: 150
A35: 14 | B35: 364 | C35: 山北町 | D35: 390 | E35: 32 | F35: 28 | G35: 358
A36: 14 | B36: 366 | C36: 開成町 | D36: 198 | E36: 167 | F36: 155 | G36: 31
A37: 14 | B37: 382 | C37: 箱根町 | D37: 8 | E37: 1 | F37: 1 | G37: 7
A38: 14 | B38: 383 | C38: 真鶴町 | D38: 48 | E38: - | F38: - | G38: 48
A39: 14 | B39: 384 | C39: 湯河原町 | D39: 241 | E39: - | F39: - | G39: 241
A40: 14 | B40: 401 | C40: 愛川町 | D40: 310 | E40: 68 | F40: 65 | G40: 242
A41: 14 | B41: 402 | C41: 清川村 | D41: 46 | E41: 7 | F41: 7 | G41: 39
C43: 計 | D43: 19,400 | E43: 3,790 | F43: 3,610 | G43: 15,700
A45: 利用上の注意
A46: １ この市町村別統計は、「作物統計調査」を実施する上で把握した地域における標本調査及び現地見積りの結果、
A47: 関係機関からの情報等を踏まえ、都道府県計値の内訳として市町村別に作成した加工統計であり、作成するうえで
A48: 精度を設定しているものではない。
A49: なお、「作物統計調査」は都道府県計値を求めるために設計されている。
A50: ２ 耕作者の市町村間の出作・入作を考慮していない（属地統計）。
A51: ３ 数値は四捨五入しており、市町村値の計が都道府県値と一致しないことがある。

Sheet 29 (hidden)
A1: 農林水産関係市町村別統計
A2: 平成29年
A3: 耕地面積
A4: 神奈川県
A5: 都道 | B5: 市町 | D5: 耕地面積 | E5: 田耕地面積 | G5: 畑耕地面積
A6: 府県 | B6: 村 | C6: 市町村名 | F6: 田本地面積
A7: ｺｰﾄﾞ | B7: ｺｰﾄﾞ
D8: ha | E8: ha | F8: ha | G8: ha
A9: 14 | B9: 100 | C9: 横浜市 | D9: 2,800 | E9: 146 | F9: 141 | G9: 2,660
A10: 14 | B10: 130 | C10: 川崎市 | D10: 570 | E10: 21 | F10: 20 | G10: 549
A11: 14 | B11: 150 | C11: 相模原市 | D11: 1,560 | E11: 109 | F11: 105 | G11: 1,450
A12: 14 | B12: 201 | C12: 横須賀市 | D12: 531 | E12: 8 | F12: 8 | G12: 523
A13: 14 | B13: 203 | C13: 平塚市 | D13: 1,480 | E13: 737 | F13: 716 | G13: 738
A14: 14 | B14: 204 | C14: 鎌倉市 | D14: 103 | E14: 1 | F14: 1 | G14: 102
A15: 14 | B15: 205 | C15: 藤沢市 | D15: 897 | E15: 134 | F15: 126 | G15: 763
A16: 14 | B16: 206 | C16: 小田原市 | D16: 1,820 | E16: 514 | F16: 494 | G16: 1,310
A17: 14 | B17: 207 | C17: 茅ヶ崎市 | D17: 348 | E17: 43 | F17: 39 | G17: 305
A18: 14 | B18: 208 | C18: 逗子市 | D18: 7 | E18: 0 | F18: 0 | G18: 7
A19: 14 | B19: 210 | C19: 三浦市 | D19: 1,190 | E19: 5 | F19: 5 | G19: 1,190
A20: 14 | B20: 211 | C20: 秦野市 | D20: 1,110 | E20: 108 | F20: 95 | G20: 999
A21: 14 | B21: 212 | C21: 厚木市 | D21: 1,130 | E21: 489 | F21: 472 | G21: 637
A22: 14 | B22: 213 | C22: 大和市 | D22: 209 | E22: 11 | F22: 11 | G22: 198
A23: 14 | B23: 214 | C23: 伊勢原市 | D23: 1,090 | E23: 401 | F23: 385 | G23: 692
A24: 14 | B24: 215 | C24: 海老名市 | D24: 539 | E24: 247 | F24: 238 | G24: 292
A25: 14 | B25: 216 | C25: 座間市 | D25: 214 | E25: 88 | F25: 85 | G25: 126
A26: 14 | B26: 217 | C26: 南足柄市 | D26: 659 | E26: 169 | F26: 159 | G26: 490
A27: 14 | B27: 218 | C27: 綾瀬市 | D27: 244 | E27: 13 | F27: 13 | G27: 231
A28: 14 | B28: 301 | C28: 葉山町 | D28: 35 | E28: 3 | F28: 3 | G28: 32
A29: 14 | B29: 321 | C29: 寒川町 | D29: 232 | E29: 70 | F29: 66 | G29: 162
A30: 14 | B30: 341 | C30: 大磯町 | D30: 266 | E30: 22 | F30: 19 | G30: 244
A31: 14 | B31: 342 | C31: 二宮町 | D31: 117 | E31: 0 | F31: 0 | G31: 117
A32: 14 | B32: 361 | C32: 中井町 | D32: 430 | E32: 27 | F32: 23 | G32: 403
A33: 14 | B33: 362 | C33: 大井町 | D33: 339 | E33: 110 | F33: 102 | G33: 229
A34: 14 | B34: 363 | C34: 松田町 | D34: 157 | E34: 9 | F34: 8 | G34: 148
A35: 14 | B35: 364 | C35: 山北町 | D35: 312 | E35: 31 | F35: 28 | G35: 281
A36: 14 | B36: 366 | C36: 開成町 | D36: 196 | E36: 165 | F36: 153 | G36: 31
A37: 14 | B37: 382 | C37: 箱根町 | D37: 8 | E37: 1 | F37: 1 | G37: 7
A38: 14 | B38: 383 | C38: 真鶴町 | D38: 46 | E38: - | F38: - | G38: 46
A39: 14 | B39: 384 | C39: 湯河原町 | D39: 238 | E39: - | F39: - | G39: 238
A40: 14 | B40: 401 | C40: 愛川町 | D40: 306 | E40: 67 | F40: 65 | G40: 239
A41: 14 | B41: 402 | C41: 清川村 | D41: 46 | E41: 7 | F41: 7 | G41: 39
C43: 計 | D43: 19,200 | E43: 3,760 | F43: 3,590 | G43: 15,500
A45: 利用上の注意
A46: １ この市町村別統計は、「作物統計調査」を実施する上で把握した地域における標本調査及び現地見積りの結果、
A47: 関係機関からの情報等を踏まえ、都道府県計値の内訳として市町村別に作成した加工統計であり、作成するうえで
A48: 精度を設定しているものではない。
A49: なお、「作物統計調査」は都道府県計値を求めるために設計されている。
A50: ２ 耕作者の市町村間の出作・入作を考慮していない（属地統計）。
A51: ３ 数値は四捨五入しており、市町村値の計が都道府県値と一致しないことがある。

Sheet 30 (hidden)
A1: 農林水産関係市町村別統計
A2: 平成30年
A3: 耕地面積
A4: 神奈川県
A5: 都道 | B5: 市町 | D5: 耕地面積 | E5: 田耕地面積 | G5: 畑耕地面積
A6: 府県 | B6: 村 | C6: 市町村名 | F6: 田本地面積
A7: ｺｰﾄﾞ | B7: ｺｰﾄﾞ
D8: ha | E8: ha | F8: ha | G8: ha
A9: 14 | B9: 100 | C9: 横浜市 | D9: 2,780 | E9: 142 | F9: 137 | G9: 2,630
A10: 14 | B10: 130 | C10: 川崎市 | D10: 568 | E10: 21 | F10: 20 | G10: 547
A11: 14 | B11: 150 | C11: 相模原市 | D11: 1,540 | E11: 108 | F11: 104 | G11: 1,430
A12: 14 | B12: 201 | C12: 横須賀市 | D12: 528 | E12: 7 | F12: 7 | G12: 521
A13: 14 | B13: 203 | C13: 平塚市 | D13: 1,470 | E13: 735 | F13: 716 | G13: 732
A14: 14 | B14: 204 | C14: 鎌倉市 | D14: 102 | E14: 1 | F14: 1 | G14: 101
A15: 14 | B15: 205 | C15: 藤沢市 | D15: 894 | E15: 133 | F15: 125 | G15: 761
A16: 14 | B16: 206 | C16: 小田原市 | D16: 1,810 | E16: 508 | F16: 490 | G16: 1,300
A17: 14 | B17: 207 | C17: 茅ヶ崎市 | D17: 346 | E17: 43 | F17: 40 | G17: 303
A18: 14 | B18: 208 | C18: 逗子市 | D18: 7 | E18: 0 | F18: 0 | G18: 7
A19: 14 | B19: 210 | C19: 三浦市 | D19: 1,190 | E19: 5 | F19: 5 | G19: 1,190
A20: 14 | B20: 211 | C20: 秦野市 | D20: 1,100 | E20: 107 | F20: 95 | G20: 990
A21: 14 | B21: 212 | C21: 厚木市 | D21: 1,120 | E21: 485 | F21: 469 | G21: 632
A22: 14 | B22: 213 | C22: 大和市 | D22: 207 | E22: 11 | F22: 11 | G22: 196
A23: 14 | B23: 214 | C23: 伊勢原市 | D23: 1,090 | E23: 400 | F23: 385 | G23: 689
A24: 14 | B24: 215 | C24: 海老名市 | D24: 526 | E24: 245 | F24: 237 | G24: 281
A25: 14 | B25: 216 | C25: 座間市 | D25: 212 | E25: 88 | F25: 85 | G25: 124
A26: 14 | B26: 217 | C26: 南足柄市 | D26: 657 | E26: 168 | F26: 159 | G26: 489
A27: 14 | B27: 218 | C27: 綾瀬市 | D27: 240 | E27: 12 | F27: 12 | G27: 228
A28: 14 | B28: 301 | C28: 葉山町 | D28: 35 | E28: 3 | F28: 3 | G28: 32
A29: 14 | B29: 321 | C29: 寒川町 | D29: 229 | E29: 69 | F29: 65 | G29: 160
A30: 14 | B30: 341 | C30: 大磯町 | D30: 265 | E30: 22 | F30: 19 | G30: 243
A31: 14 | B31: 342 | C31: 二宮町 | D31: 116 | E31: 0 | F31: 0 | G31: 116
A32: 14 | B32: 361 | C32: 中井町 | D32: 427 | E32: 26 | F32: 23 | G32: 401
A33: 14 | B33: 362 | C33: 大井町 | D33: 338 | E33: 110 | F33: 102 | G33: 228
A34: 14 | B34: 363 | C34: 松田町 | D34: 151 | E34: 9 | F34: 8 | G34: 142
A35: 14 | B35: 364 | C35: 山北町 | D35: 311 | E35: 31 | F35: 28 | G35: 280
A36: 14 | B36: 366 | C36: 開成町 | D36: 195 | E36: 164 | F36: 154 | G36: 31
A37: 14 | B37: 382 | C37: 箱根町 | D37: 8 | E37: 1 | F37: 1 | G37: 7
A38: 14 | B38: 383 | C38: 真鶴町 | D38: 45 | E38: - | F38: - | G38: 45
A39: 14 | B39: 384 | C39: 湯河原町 | D39: 232 | E39: - | F39: - | G39: 232
A40: 14 | B40: 401 | C40: 愛川町 | D40: 303 | E40: 66 | F40: 64 | G40: 237
A41: 14 | B41: 402 | C41: 清川村 | D41: 46 | E41: 7 | F41: 7 | G41: 39
C43: 計 | D43: 19,100 | E43: 3,730 | F43: 3,570 | G43: 15,400
A45: 利用上の注意
A46: １ この市町村別統計は、「作物統計調査」を実施する上で把握した地域における標本調査及び現地見積りの結果、
A47: 関係機関からの情報等を踏まえ、都道府県計値の内訳として市町村別に作成した加工統計であり、作成するうえで
A48: 精度を設定しているものではない。
A49: なお、「作物統計調査」は都道府県計値を求めるために設計されている。
A50: ２ 耕作者の市町村間の出作・入作を考慮していない（属地統計）。
A51: ３ 数値は四捨五入しており、市町村値の計が都道府県値と一致しないことがある。

Sheet R1 (hidden)
A1: 農林水産関係市町村別統計
A2: 令和元年
A3: 耕地面積
A4: 神奈川県
A5: 都道 | B5: 市町 | D5: 耕地面積 | E5: 田耕地面積 | G5: 畑耕地面積
A6: 府県 | B6: 村 | C6: 市町村名 | F6: 田本地面積
A7: ｺｰﾄﾞ | B7: ｺｰﾄﾞ
D8: ha | E8: ha | F8: ha | G8: ha
A9: 14 | B9: 100 | C9: 横浜市 | D9: 2,710 | E9: 139 | F9: 134 | G9: 2,570
A10: 14 | B10: 130 | C10: 川崎市 | D10: 547 | E10: 20 | F10: 19 | G10: 527
A11: 14 | B11: 150 | C11: 相模原市 | D11: 1,510 | E11: 107 | F11: 103 | G11: 1,400
A12: 14 | B12: 201 | C12: 横須賀市 | D12: 522 | E12: 7 | F12: 7 | G12: 515
A13: 14 | B13: 203 | C13: 平塚市 | D13: 1,460 | E13: 732 | F13: 713 | G13: 727
A14: 14 | B14: 204 | C14: 鎌倉市 | D14: 100 | E14: 1 | F14: 1 | G14: 99
A15: 14 | B15: 205 | C15: 藤沢市 | D15: 880 | E15: 132 | F15: 124 | G15: 748
A16: 14 | B16: 206 | C16: 小田原市 | D16: 1,790 | E16: 492 | F16: 475 | G16: 1,300
A17: 14 | B17: 207 | C17: 茅ヶ崎市 | D17: 338 | E17: 43 | F17: 40 | G17: 295
A18: 14 | B18: 208 | C18: 逗子市 | D18: 6 | E18: 0 | F18: 0 | G18: 6
A19: 14 | B19: 210 | C19: 三浦市 | D19: 1,190 | E19: 5 | F19: 5 | G19: 1,190
A20: 14 | B20: 211 | C20: 秦野市 | D20: 1,090 | E20: 107 | F20: 95 | G20: 979
A21: 14 | B21: 212 | C21: 厚木市 | D21: 1,100 | E21: 478 | F21: 462 | G21: 622
A22: 14 | B22: 213 | C22: 大和市 | D22: 200 | E22: 11 | F22: 11 | G22: 189
A23: 14 | B23: 214 | C23: 伊勢原市 | D23: 1,080 | E23: 394 | F23: 379 | G23: 687
A24: 14 | B24: 215 | C24: 海老名市 | D24: 519 | E24: 243 | F24: 235 | G24: 276
A25: 14 | B25: 216 | C25: 座間市 | D25: 207 | E25: 86 | F25: 83 | G25: 121
A26: 14 | B26: 217 | C26: 南足柄市 | D26: 656 | E26: 168 | F26: 159 | G26: 488
A27: 14 | B27: 218 | C27: 綾瀬市 | D27: 239 | E27: 12 | F27: 12 | G27: 227
A28: 14 | B28: 301 | C28: 葉山町 | D28: 33 | E28: 3 | F28: 3 | G28: 30
A29: 14 | B29: 321 | C29: 寒川町 | D29: 225 | E29: 68 | F29: 65 | G29: 157
A30: 14 | B30: 341 | C30: 大磯町 | D30: 261 | E30: 21 | F30: 18 | G30: 240
A31: 14 | B31: 342 | C31: 二宮町 | D31: 115 | E31: 0 | F31: 0 | G31: 115
A32: 14 | B32: 361 | C32: 中井町 | D32: 419 | E32: 25 | F32: 22 | G32: 394
A33: 14 | B33: 362 | C33: 大井町 | D33: 333 | E33: 106 | F33: 99 | G33: 227
A34: 14 | B34: 363 | C34: 松田町 | D34: 144 | E34: 8 | F34: 7 | G34: 136
A35: 14 | B35: 364 | C35: 山北町 | D35: 309 | E35: 30 | F35: 27 | G35: 279
A36: 14 | B36: 366 | C36: 開成町 | D36: 192 | E36: 161 | F36: 151 | G36: 31
A37: 14 | B37: 382 | C37: 箱根町 | D37: 8 | E37: 1 | F37: 1 | G37: 7
A38: 14 | B38: 383 | C38: 真鶴町 | D38: 44 | E38: - | F38: - | G38: 44
A39: 14 | B39: 384 | C39: 湯河原町 | D39: 217 | E39: - | F39: - | G39: 217
A40: 14 | B40: 401 | C40: 愛川町 | D40: 293 | E40: 65 | F40: 63 | G40: 228
A41: 14 | B41: 402 | C41: 清川村 | D41: 45 | E41: 6 | F41: 6 | G41: 39
C43: 計 | D43: 18,800 | E43: 3,670 | F43: 3,520 | G43: 15,100
A45: 利用上の注意
A46: １ この市町村別統計は、「作物統計調査」を実施する上で把握した地域における標本調査及び現地見積りの結果、
A47: 関係機関からの情報等を踏まえ、都道府県計値の内訳として市町村別に作成した加工統計であり、作成するうえで
A48: 精度を設定しているものではない。
A49: なお、「作物統計調査」は都道府県計値を求めるために設計されている。
A50: ２ 耕作者の市町村間の出作・入作を考慮していない（属地統計）。
A51: ３ 数値は四捨五入しており、市町村値の計が都道府県値と一致しないことがある。

Sheet R2 (hidden)
A1: 農林水産関係市町村別統計
A2: 令和2年
A3: 耕地面積
A4: 神奈川県
A5: 都道 | B5: 市町 | D5: 耕地面積 | E5: 田耕地面積 | G5: 畑耕地面積
A6: 府県 | B6: 村 | C6: 市町村名 | F6: 田本地面積
A7: ｺｰﾄﾞ | B7: ｺｰﾄﾞ
D8: ha | E8: ha | F8: ha | G8: ha
A9: 14 | B9: 100 | C9: 横浜市 | D9: 2650 | E9: 134 | F9: 129 | G9: 2520
A10: 14 | B10: 130 | C10: 川崎市 | D10: 526 | E10: 19 | F10: 18 | G10: 507
A11: 14 | B11: 150 | C11: 相模原市 | D11: 1460 | E11: 103 | F11: 99 | G11: 1360
A12: 14 | B12: 201 | C12: 横須賀市 | D12: 514 | E12: 7 | F12: 7 | G12: 507
A13: 14 | B13: 203 | C13: 平塚市 | D13: 1440 | E13: 722 | F13: 704 | G13: 718
A14: 14 | B14: 204 | C14: 鎌倉市 | D14: 99 | E14: 1 | F14: 1 | G14: 98
A15: 14 | B15: 205 | C15: 藤沢市 | D15: 866 | E15: 130 | F15: 122 | G15: 736
A16: 14 | B16: 206 | C16: 小田原市 | D16: 1780 | E16: 486 | F16: 469 | G16: 1290
A17: 14 | B17: 207 | C17: 茅ヶ崎市 | D17: 328 | E17: 43 | F17: 40 | G17: 285
A18: 14 | B18: 208 | C18: 逗子市 | D18: 6 | E18: 0 | F18: 0 | G18: 6
A19: 14 | B19: 210 | C19: 三浦市 | D19: 1190 | E19: 5 | F19: 5 | G19: 1180
A20: 14 | B20: 211 | C20: 秦野市 | D20: 1070 | E20: 105 | F20: 93 | G20: 962
A21: 14 | B21: 212 | C21: 厚木市 | D21: 1070 | E21: 472 | F21: 456 | G21: 602
A22: 14 | B22: 213 | C22: 大和市 | D22: 196 | E22: 11 | F22: 11 | G22: 185
A23: 14 | B23: 214 | C23: 伊勢原市 | D23: 1070 | E23: 391 | F23: 376 | G23: 681
A24: 14 | B24: 215 | C24: 海老名市 | D24: 509 | E24: 239 | F24: 231 | G24: 270
A25: 14 | B25: 216 | C25: 座間市 | D25: 203 | E25: 85 | F25: 82 | G25: 118
A26: 14 | B26: 217 | C26: 南足柄市 | D26: 654 | E26: 167 | F26: 158 | G26: 487
A27: 14 | B27: 218 | C27: 綾瀬市 | D27: 236 | E27: 12 | F27: 12 | G27: 224
A28: 14 | B28: 301 | C28: 葉山町 | D28: 32 | E28: 3 | F28: 3 | G28: 29
A29: 14 | B29: 321 | C29: 寒川町 | D29: 221 | E29: 67 | F29: 64 | G29: 154
A30: 14 | B30: 341 | C30: 大磯町 | D30: 257 | E30: 20 | F30: 18 | G30: 237
A31: 14 | B31: 342 | C31: 二宮町 | D31: 112 | E31: 0 | F31: 0 | G31: 112
A32: 14 | B32: 361 | C32: 中井町 | D32: 413 | E32: 24 | F32: 21 | G32: 389
A33: 14 | B33: 362 | C33: 大井町 | D33: 324 | E33: 103 | F33: 96 | G33: 221
A34: 14 | B34: 363 | C34: 松田町 | D34: 138 | E34: 7 | F34: 6 | G34: 131
A35: 14 | B35: 364 | C35: 山北町 | D35: 290 | E35: 27 | F35: 24 | G35: 263
A36: 14 | B36: 366 | C36: 開成町 | D36: 189 | E36: 159 | F36: 149 | G36: 30
A37: 14 | B37: 382 | C37: 箱根町 | D37: 6 | E37: 0 | F37: 0 | G37: 6
A38: 14 | B38: 383 | C38: 真鶴町 | D38: 41 | E38: - | F38: - | G38: 41
A39: 14 | B39: 384 | C39: 湯河原町 | D39: 215 | E39: - | F39: - | G39: 215
A40: 14 | B40: 401 | C40: 愛川町 | D40: 283 | E40: 64 | F40: 62 | G40: 219
A41: 14 | B41: 402 | C41: 清川村 | D41: 40 | E41: 6 | F41: 6 | G41: 34
C43: 計 | D43: 18400 | E43: 3610 | F43: 3460 | G43: 14800
A45: 利用上の注意
A46: １ この市町村別統計は、「作物統計調査」を実施する上で把握した地域における標本調査及び現地見積りの結果、
A47: 関係機関からの情報等を踏まえ、都道府県計値の内訳として市町村別に作成した加工統計であり、作成するうえで
A48: 精度を設定しているものではない。
A49: なお、「作物統計調査」は都道府県計値を求めるために設計されている。
A50: ２ 耕作者の市町村間の出作・入作を考慮していない（属地統計）。
A51: ３ 数値は四捨五入しており、市町村値の計が都道府県値と一致しないことがある。

Sheet R3 (hidden)
A1: 農林水産関係市町村別統計
A2: 令和3年
A3: 耕地面積
A4: 神奈川県
A5: 都道 | B5: 市町 | C5: 市町村名 | D5: 耕地面積 | E5: 田耕地面積 | G5: 畑耕地面積
A6: 府県 | B6: 村 | F6: 田本地面積
A7: ｺｰﾄﾞ | B7: ｺｰﾄﾞ
D8: ha | E8: ha | F8: ha | G8: ha
A9: 14 | B9: 100 | C9: 横浜市 | D9: 2620 | E9: 131 | F9: 126 | G9: 2490
A10: 14 | B10: 130 | C10: 川崎市 | D10: 511 | E10: 19 | F10: 18 | G10: 492
A11: 14 | B11: 150 | C11: 相模原市 | D11: 1440 | E11: 102 | F11: 99 | G11: 1340
A12: 14 | B12: 201 | C12: 横須賀市 | D12: 510 | E12: 6 | F12: 6 | G12: 504
A13: 14 | B13: 203 | C13: 平塚市 | D13: 1430 | E13: 712 | F13: 694 | G13: 714
A14: 14 | B14: 204 | C14: 鎌倉市 | D14: 97 | E14: 1 | F14: 1 | G14: 96
A15: 14 | B15: 205 | C15: 藤沢市 | D15: 859 | E15: 130 | F15: 122 | G15: 729
A16: 14 | B16: 206 | C16: 小田原市 | D16: 1750 | E16: 473 | F16: 456 | G16: 1280
A17: 14 | B17: 207 | C17: 茅ヶ崎市 | D17: 315 | E17: 42 | F17: 39 | G17: 273
A18: 14 | B18: 208 | C18: 逗子市 | D18: 6 | E18: 0 | F18: 0 | G18: 6
A19: 14 | B19: 210 | C19: 三浦市 | D19: 1190 | E19: 4 | F19: 4 | G19: 1180
A20: 14 | B20: 211 | C20: 秦野市 | D20: 1050 | E20: 101 | F20: 89 | G20: 950
A21: 14 | B21: 212 | C21: 厚木市 | D21: 1050 | E21: 458 | F21: 443 | G21: 592
A22: 14 | B22: 213 | C22: 大和市 | D22: 194 | E22: 10 | F22: 10 | G22: 184
A23: 14 | B23: 214 | C23: 伊勢原市 | D23: 1070 | E23: 387 | F23: 372 | G23: 678
A24: 14 | B24: 215 | C24: 海老名市 | D24: 499 | E24: 231 | F24: 223 | G24: 268
A25: 14 | B25: 216 | C25: 座間市 | D25: 201 | E25: 85 | F25: 82 | G25: 116
A26: 14 | B26: 217 | C26: 南足柄市 | D26: 649 | E26: 163 | F26: 155 | G26: 486
A27: 14 | B27: 218 | C27: 綾瀬市 | D27: 233 | E27: 12 | F27: 12 | G27: 221
A28: 14 | B28: 301 | C28: 葉山町 | D28: 32 | E28: 3 | F28: 3 | G28: 29
A29: 14 | B29: 321 | C29: 寒川町 | D29: 218 | E29: 66 | F29: 63 | G29: 152
A30: 14 | B30: 341 | C30: 大磯町 | D30: 256 | E30: 19 | F30: 17 | G30: 237
A31: 14 | B31: 342 | C31: 二宮町 | D31: 110 | E31: 0 | F31: 0 | G31: 110
A32: 14 | B32: 361 | C32: 中井町 | D32: 408 | E32: 23 | F32: 20 | G32: 385
A33: 14 | B33: 362 | C33: 大井町 | D33: 314 | E33: 95 | F33: 88 | G33: 219
A34: 14 | B34: 363 | C34: 松田町 | D34: 137 | E34: 6 | F34: 5 | G34: 131
A35: 14 | B35: 364 | C35: 山北町 | D35: 284 | E35: 24 | F35: 22 | G35: 260
A36: 14 | B36: 366 | C36: 開成町 | D36: 186 | E36: 157 | F36: 147 | G36: 29
A37: 14 | B37: 382 | C37: 箱根町 | D37: 6 | E37: 0 | F37: 0 | G37: 6
A38: 14 | B38: 383 | C38: 真鶴町 | D38: 35 | E38: - | F38: - | G38: 35
A39: 14 | B39: 384 | C39: 湯河原町 | D39: 209 | E39: - | F39: - | G39: 209
A40: 14 | B40: 401 | C40: 愛川町 | D40: 278 | E40: 63 | F40: 61 | G40: 215
A41: 14 | B41: 402 | C41: 清川村 | D41: 37 | E41: 5 | F41: 5 | G41: 32
C43: 計 | D43: 18200 | E43: 3530 | F43: 3380 | G43: 14600
A45: 利用上の注意
A46: １ この市町村別統計は、「作物統計調査」を実施する上で把握した地域における標本調査、現地見積りの結果、関係機関
A47: からの情報等を踏まえ、都道府県計値の内訳として市町村別に配分することにより作成した加工統計であり、市町村別の
A48: 値を目的として設計された調査に基づいて直接得られたものではない。
A49: なお、「作物統計調査」は、都道府県計値を求めるために目標精度を設定し、調査の設計がされている。
A50: ２ 面積は、耕地の存在する市町村に計上しており（属地統計）、耕作者の市町村間の出作・入作を考慮していない。
A51: ３ 数値は四捨五入しており、市町村値の計が都道府県値と一致しないことがある。

Sheet R4 (hidden)
A1: 農林水産関係市町村別統計
A2: 令和4年
A3: 耕地面積
A4: 神奈川県
A5: 都道 | B5: 市町 | C5: 市町村名 | D5: 耕地面積 | E5: 田耕地面積 | G5: 畑耕地面積
A6: 府県 | B6: 村 | F6: 田本地面積
A7: ｺｰﾄﾞ | B7: ｺｰﾄﾞ
D8: ha | E8: ha | F8: ha | G8: ha
A9: 14 | B9: 100 | C9: 横浜市 | D9: 2590 | E9: 131 | F9: 126 | G9: 2460
A10: 14 | B10: 130 | C10: 川崎市 | D10: 496 | E10: 19 | F10: 18 | G10: 477
A11: 14 | B11: 150 | C11: 相模原市 | D11: 1430 | E11: 102 | F11: 99 | G11: 1330
A12: 14 | B12: 201 | C12: 横須賀市 | D12: 508 | E12: 6 | F12: 6 | G12: 502
A13: 14 | B13: 203 | C13: 平塚市 | D13: 1420 | E13: 711 | F13: 693 | G13: 710
A14: 14 | B14: 204 | C14: 鎌倉市 | D14: 96 | E14: 1 | F14: 1 | G14: 95
A15: 14 | B15: 205 | C15: 藤沢市 | D15: 856 | E15: 129 | F15: 121 | G15: 727
A16: 14 | B16: 206 | C16: 小田原市 | D16: 1740 | E16: 466 | F16: 449 | G16: 1280
A17: 14 | B17: 207 | C17: 茅ヶ崎市 | D17: 314 | E17: 42 | F17: 39 | G17: 272
A18: 14 | B18: 208 | C18: 逗子市 | D18: 6 | E18: 0 | F18: 0 | G18: 6
A19: 14 | B19: 210 | C19: 三浦市 | D19: 1190 | E19: 4 | F19: 4 | G19: 1180
A20: 14 | B20: 211 | C20: 秦野市 | D20: 1030 | E20: 99 | F20: 87 | G20: 932
A21: 14 | B21: 212 | C21: 厚木市 | D21: 1030 | E21: 441 | F21: 426 | G21: 591
A22: 14 | B22: 213 | C22: 大和市 | D22: 190 | E22: 10 | F22: 10 | G22: 180
A23: 14 | B23: 214 | C23: 伊勢原市 | D23: 1060 | E23: 384 | F23: 369 | G23: 671
A24: 14 | B24: 215 | C24: 海老名市 | D24: 492 | E24: 229 | F24: 221 | G24: 263
A25: 14 | B25: 216 | C25: 座間市 | D25: 199 | E25: 85 | F25: 82 | G25: 114
A26: 14 | B26: 217 | C26: 南足柄市 | D26: 650 | E26: 163 | F26: 155 | G26: 487
A27: 14 | B27: 218 | C27: 綾瀬市 | D27: 229 | E27: 12 | F27: 12 | G27: 217
A28: 14 | B28: 301 | C28: 葉山町 | D28: 32 | E28: 3 | F28: 3 | G28: 29
A29: 14 | B29: 321 | C29: 寒川町 | D29: 218 | E29: 66 | F29: 63 | G29: 152
A30: 14 | B30: 341 | C30: 大磯町 | D30: 255 | E30: 19 | F30: 17 | G30: 236
A31: 14 | B31: 342 | C31: 二宮町 | D31: 109 | E31: 0 | F31: 0 | G31: 109
A32: 14 | B32: 361 | C32: 中井町 | D32: 404 | E32: 23 | F32: 20 | G32: 381
A33: 14 | B33: 362 | C33: 大井町 | D33: 313 | E33: 94 | F33: 87 | G33: 219
A34: 14 | B34: 363 | C34: 松田町 | D34: 135 | E34: 5 | F34: 5 | G34: 130
A35: 14 | B35: 364 | C35: 山北町 | D35: 279 | E35: 24 | F35: 22 | G35: 255
A36: 14 | B36: 366 | C36: 開成町 | D36: 183 | E36: 154 | F36: 144 | G36: 29
A37: 14 | B37: 382 | C37: 箱根町 | D37: 6 | E37: 0 | F37: 0 | G37: 6
A38: 14 | B38: 383 | C38: 真鶴町 | D38: 34 | E38: - | F38: - | G38: 34
A39: 14 | B39: 384 | C39: 湯河原町 | D39: 206 | E39: - | F39: - | G39: 206
A40: 14 | B40: 401 | C40: 愛川町 | D40: 274 | E40: 61 | F40: 59 | G40: 213
A41: 14 | B41: 402 | C41: 清川村 | D41: 37 | E41: 5 | F41: 5 | G41: 32
C43: 計 | D43: 18000 | E43: 3490 | F43: 3340 | G43: 14500
A45: 利用上の注意
A46: １ この市町村別統計は、「作物統計調査」を実施する上で把握した地域における標本調査、現地見積りの結果、関係機関
A47: からの情報等を踏まえ、都道府県計値の内訳として市町村別に配分することにより作成した加工統計であり、市町村別の
A48: 値を目的として設計された調査に基づいて直接得られたものではない。
A49: なお、「作物統計調査」は、都道府県計値を求めるために目標精度を設定し、調査の設計がされている。
A50: ２ 面積は、耕地の存在する市町村に計上しており（属地統計）、耕作者の市町村間の出作・入作を考慮していない。
A51: ３ 数値は四捨五入しており、市町村値の計が都道府県値と一致しないことがある。

Sheet R5 (hidden)
A1: 農林水産関係市町村別統計
A2: 令和5年
A3: 耕地面積
A4: 神奈川県
A5: 都道府県ｺｰﾄﾞ | B5: 市町村 ｺｰﾄﾞ | C5: 市町村名 | D5: 耕地面積 | E5: 田耕地面積 | G5: 畑耕地面積
F6: 田本地面積
D8: ha | E8: ha | F8: ha | G8: ha
A9: 14 | B9: 100 | C9: 横浜市 | D9: 2580 | E9: 131 | F9: 126 | G9: 2450
A10: 14 | B10: 130 | C10: 川崎市 | D10: 483 | E10: 18 | F10: 17 | G10: 465
A11: 14 | B11: 150 | C11: 相模原市 | D11: 1420 | E11: 102 | F11: 99 | G11: 1320
A12: 14 | B12: 201 | C12: 横須賀市 | D12: 507 | E12: 6 | F12: 6 | G12: 501
A13: 14 | B13: 203 | C13: 平塚市 | D13: 1420 | E13: 711 | F13: 693 | G13: 705
A14: 14 | B14: 204 | C14: 鎌倉市 | D14: 93 | E14: 1 | F14: 1 | G14: 92
A15: 14 | B15: 205 | C15: 藤沢市 | D15: 847 | E15: 129 | F15: 121 | G15: 718
A16: 14 | B16: 206 | C16: 小田原市 | D16: 1730 | E16: 462 | F16: 445 | G16: 1270
A17: 14 | B17: 207 | C17: 茅ヶ崎市 | D17: 309 | E17: 42 | F17: 39 | G17: 267
A18: 14 | B18: 208 | C18: 逗子市 | D18: 6 | E18: 0 | F18: 0 | G18: 6
A19: 14 | B19: 210 | C19: 三浦市 | D19: 1180 | E19: 4 | F19: 4 | G19: 1180
A20: 14 | B20: 211 | C20: 秦野市 | D20: 1020 | E20: 99 | F20: 87 | G20: 916
A21: 14 | B21: 212 | C21: 厚木市 | D21: 1030 | E21: 436 | F21: 422 | G21: 589
A22: 14 | B22: 213 | C22: 大和市 | D22: 177 | E22: 8 | F22: 8 | G22: 169
A23: 14 | B23: 214 | C23: 伊勢原市 | D23: 1050 | E23: 383 | F23: 368 | G23: 664
A24: 14 | B24: 215 | C24: 海老名市 | D24: 478 | E24: 227 | F24: 219 | G24: 251
A25: 14 | B25: 216 | C25: 座間市 | D25: 196 | E25: 84 | F25: 81 | G25: 112
A26: 14 | B26: 217 | C26: 南足柄市 | D26: 649 | E26: 163 | F26: 155 | G26: 486
A27: 14 | B27: 218 | C27: 綾瀬市 | D27: 228 | E27: 12 | F27: 12 | G27: 216
A28: 14 | B28: 301 | C28: 葉山町 | D28: 32 | E28: 3 | F28: 3 | G28: 29
A29: 14 | B29: 321 | C29: 寒川町 | D29: 217 | E29: 66 | F29: 63 | G29: 151
A30: 14 | B30: 341 | C30: 大磯町 | D30: 254 | E30: 19 | F30: 17 | G30: 235
A31: 14 | B31: 342 | C31: 二宮町 | D31: 107 | E31: 0 | F31: 0 | G31: 107
A32: 14 | B32: 361 | C32: 中井町 | D32: 400 | E32: 23 | F32: 20 | G32: 377
A33: 14 | B33: 362 | C33: 大井町 | D33: 311 | E33: 93 | F33: 86 | G33: 218
A34: 14 | B34: 363 | C34: 松田町 | D34: 134 | E34: 5 | F34: 5 | G34: 129
A35: 14 | B35: 364 | C35: 山北町 | D35: 275 | E35: 24 | F35: 22 | G35: 251
A36: 14 | B36: 366 | C36: 開成町 | D36: 180 | E36: 151 | F36: 141 | G36: 29
A37: 14 | B37: 382 | C37: 箱根町 | D37: 6 | E37: 0 | F37: 0 | G37: 6
A38: 14 | B38: 383 | C38: 真鶴町 | D38: 33 | E38: - | F38: - | G38: 33
A39: 14 | B39: 384 | C39: 湯河原町 | D39: 202 | E39: - | F39: - | G39: 202
A40: 14 | B40: 401 | C40: 愛川町 | D40: 272 | E40: 61 | F40: 59 | G40: 211
A41: 14 | B41: 402 | C41: 清川村 | D41: 37 | E41: 5 | F41: 5 | G41: 32
C43: 計 | D43: 17800 | E43: 3470 | F43: 3320 | G43: 14400
A45: 利用上の注意
A46: １ この市町村別統計は、「作物統計調査」を実施する上で把握した地域における標本調査及び現地見積りの結果、関係機関
A47: からの情報等を踏まえ、都道府県計値の内訳として市町村別に配分することにより作成した加工統計であり、市町村別の値
A48: を目的として設計された調査に基づいて直接得られたものではない。
A49: なお、「作物統計調査」は、都道府県計値を求めるために目標精度を設定し、調査の設計がされている。
A50: ２ 面積は、耕地の存在する市町村に計上しており（属地統計）、耕作者の市町村間の出作・入作を考慮していない。
A51: ３ 数値は四捨五入しており、市町村値の計が都道府県値と一致しないことがある。

Sheet R6 (hidden)
A1: 農林水産関係市町村別統計
A2: 令和6年
A3: 耕地面積
A4: 神奈川県
A5: 都道府県ｺｰﾄﾞ | B5: 市町村 ｺｰﾄﾞ | C5: 市町村名 | D5: 耕地面積 | E5: 田耕地面積 | G5: 畑耕地面積
F6: 田本地面積
D8: ha | E8: ha | F8: ha | G8: ha
A9: 14 | B9: 100 | C9: 横浜市 | D9: 2570 | E9: 131 | F9: 126 | G9: 2440
A10: 14 | B10: 130 | C10: 川崎市 | D10: 479 | E10: 18 | F10: 17 | G10: 461
A11: 14 | B11: 150 | C11: 相模原市 | D11: 1410 | E11: 102 | F11: 99 | G11: 1310
A12: 14 | B12: 201 | C12: 横須賀市 | D12: 497 | E12: 6 | F12: 6 | G12: 491
A13: 14 | B13: 203 | C13: 平塚市 | D13: 1410 | E13: 711 | F13: 693 | G13: 699
A14: 14 | B14: 204 | C14: 鎌倉市 | D14: 92 | E14: 1 | F14: 1 | G14: 91
A15: 14 | B15: 205 | C15: 藤沢市 | D15: 841 | E15: 128 | F15: 120 | G15: 713
A16: 14 | B16: 206 | C16: 小田原市 | D16: 1720 | E16: 461 | F16: 444 | G16: 1260
A17: 14 | B17: 207 | C17: 茅ヶ崎市 | D17: 303 | E17: 42 | F17: 39 | G17: 261
A18: 14 | B18: 208 | C18: 逗子市 | D18: 6 | E18: 0 | F18: 0 | G18: 6
A19: 14 | B19: 210 | C19: 三浦市 | D19: 1180 | E19: 4 | F19: 4 | G19: 1180
A20: 14 | B20: 211 | C20: 秦野市 | D20: 1010 | E20: 99 | F20: 87 | G20: 910
A21: 14 | B21: 212 | C21: 厚木市 | D21: 1020 | E21: 432 | F21: 418 | G21: 585
A22: 14 | B22: 213 | C22: 大和市 | D22: 176 | E22: 8 | F22: 8 | G22: 168
A23: 14 | B23: 214 | C23: 伊勢原市 | D23: 1050 | E23: 385 | F23: 370 | G23: 662
A24: 14 | B24: 215 | C24: 海老名市 | D24: 475 | E24: 225 | F24: 217 | G24: 250
A25: 14 | B25: 216 | C25: 座間市 | D25: 196 | E25: 84 | F25: 81 | G25: 112
A26: 14 | B26: 217 | C26: 南足柄市 | D26: 647 | E26: 162 | F26: 154 | G26: 485
A27: 14 | B27: 218 | C27: 綾瀬市 | D27: 226 | E27: 12 | F27: 12 | G27: 214
A28: 14 | B28: 301 | C28: 葉山町 | D28: 32 | E28: 3 | F28: 3 | G28: 29
A29: 14 | B29: 321 | C29: 寒川町 | D29: 218 | E29: 66 | F29: 63 | G29: 152
A30: 14 | B30: 341 | C30: 大磯町 | D30: 254 | E30: 19 | F30: 17 | G30: 235
A31: 14 | B31: 342 | C31: 二宮町 | D31: 106 | E31: 0 | F31: 0 | G31: 106
A32: 14 | B32: 361 | C32: 中井町 | D32: 398 | E32: 22 | F32: 19 | G32: 376
A33: 14 | B33: 362 | C33: 大井町 | D33: 310 | E33: 93 | F33: 86 | G33: 217
A34: 14 | B34: 363 | C34: 松田町 | D34: 132 | E34: 5 | F34: 5 | G34: 127
A35: 14 | B35: 364 | C35: 山北町 | D35: 271 | E35: 23 | F35: 21 | G35: 248
A36: 14 | B36: 366 | C36: 開成町 | D36: 179 | E36: 150 | F36: 140 | G36: 29
A37: 14 | B37: 382 | C37: 箱根町 | D37: 6 | E37: 0 | F37: 0 | G37: 6
A38: 14 | B38: 383 | C38: 真鶴町 | D38: 33 | E38: - | F38: - | G38: 33
A39: 14 | B39: 384 | C39: 湯河原町 | D39: 202 | E39: - | F39: - | G39: 202
A40: 14 | B40: 401 | C40: 愛川町 | D40: 271 | E40: 62 | F40: 60 | G40: 209
A41: 14 | B41: 402 | C41: 清川村 | D41: 37 | E41: 5 | F41: 5 | G41: 32
C43: 計 | D43: 17800 | E43: 3460 | F43: 3320 | G43: 14300
A45: 利用上の注意
A46: １ この市町村別統計は、「作物統計調査」を実施する上で把握した地域における標本調査結果及び現地見積りの結果、関係機関
A47: からの情報等を踏まえ、都道府県計値の内訳として市町村別に配分することにより作成した加工統計であり、市町村別の値
A48: を目的として設計された調査に基づいて直接得られたものではない。
A49: なお、「作物統計調査」は、都道府県計値を求めるために目標精度を設定し、調査の設計がされている。
A50: ２ 面積は、耕地の存在する市町村に計上しており（属地統計）、耕作者の市町村間の出作・入作を考慮していない。
A51: ３ 数値は四捨五入しており、市町村値の計が都道府県値と一致しないことがある。

Sheet 合併 (hidden)
C1: 2004 | D1: 2005 | E1: 2006 | F1: 2007 | G1: 2008 | H1: 2009 | I1: 2010 | J1: 2011 | K1: 2012 | L1: 2013 | M1: 2014 | N1: 2015 | O1: 2016 | P1: 2017 | Q1: 2018 | R1: 2019 | S1: 2020 | T1: 2021 | U1: 2022 | V1: 2023 | W1: 2024
C2: H16 | D2: H17 | E2: H18 | F2: H19 | G2: H20 | H2: H21 | I2: H22 | J2: H23 | K2: H24 | L2: H25 | M2: H26 | N2: H27 | O2: H28 | P2: H29 | Q2: H30 | R2: R1 | S2: R2 | T2: R3 | U2: R4 | V2: R5 | W2: R6
A4: 100 | B4: 横浜市
A5: 130 | B5: 川崎市
A6: 150 | B6: 相模原市 | C6: 5 | D6: 3 | Y6: H21まで209
A7: 201 | B7: 横須賀市
A8: 203 | B8: 平塚市
A9: 204 | B9: 鎌倉市
A10: 205 | B10: 藤沢市
A11: 206 | B11: 小田原市
A12: 207 | B12: 茅ヶ崎市
A13: 208 | B13: 逗子市
A14: 210 | B14: 三浦市
A15: 211 | B15: 秦野市
A16: 212 | B16: 厚木市
A17: 213 | B17: 大和市
A18: 214 | B18: 伊勢原市
A19: 215 | B19: 海老名市
A20: 216 | B20: 座間市
A21: 217 | B21: 南足柄市
A22: 218 | B22: 綾瀬市
A23: 301 | B23: 葉山町
A24: 321 | B24: 寒川町
A25: 341 | B25: 大磯町
A26: 342 | B26: 二宮町
A27: 361 | B27: 中井町
A28: 362 | B28: 大井町
A29: 363 | B29: 松田町
A30: 364 | B30: 山北町
A31: 366 | B31: 開成町
A32: 382 | B32: 箱根町
A33: 383 | B33: 真鶴町
A34: 384 | B34: 湯河原町
A35: 401 | B35: 愛川町
A36: 402 | B36: 清川村
A45: 209 | B45: 相模原市 | C45: 1 | D45: 1 | Y45: H21まで209
A46: 421 | B46: 城山町 | C46: 1
A47: 422 | B47: 津久井町 | C47: 1
A48: 423 | B48: 相模湖町 | C48: 1 | D48: 1
A49: 424 | B49: 藤野町 | C49: 1 | D49: 1

Sheet データ田 (hidden)
D1: 16 | E1: 17 | F1: 18 | G1: 19 | H1: 20 | I1: 21 | J1: 22 | K1: 23 | L1: 24 | M1: 25 | N1: 26 | O1: 27 | P1: 28 | Q1: 29 | R1: 30 | S1: 1 | T1: 2 | U1: 3 | V1: 4 | W1: 5 | X1: 6
D2: 2004 | E2: 2005 | F2: 2006 | G2: 2007 | H2: 2008 | I2: 2009 | J2: 2010 | K2: 2011 | L2: 2012 | M2: 2013 | N2: 2014 | O2: 2015 | P2: 2016 | Q2: 2017 | R2: 2018 | S2: 2019 | T2: 2020 | U2: 2021 | V2: 2022 | W2: 2023 | X2: 2024
C3: 神奈川県 | J3: 4 030 | K3: 3990 | L3: 3970 | M3: 3920 | N3: 3890 | O3: 3850 | P3: 3790 | Q3: 3760 | R3: 3730 | S3: 3670 | T3: 3610 | U3: 3530 | V3: 3490 | W3: 3470 | X3: 3460
D4: =SUM(D5:D37) -> 4,309 | E4: =SUM(E5:E37) -> 4545 | F4: 4237 | G4: 4171 | H4: 4098 | I4: 4056 | J4: 4029 | K4: 3994 | L4: 3972 | M4: 3924 | N4: 3890 | O4: 3846 | P4: 3791 | Q4: 3756 | R4: 3727 | S4: 3671 | T4: 3612 | U4: 3528 | V4: 3488 | W4: 3468 | X4: 3459
B5: 100 | C5: 横浜市 | D5: 209 | E5: 208 | F5: 198 | G5: 190 | H5: 180 | I5: 178 | J5: 176 | K5: 172 | L5: 168 | M5: 163 | N5: 160 | O5: 155 | P5: 149 | Q5: 146 | R5: 142 | S5: 139 | T5: 134 | U5: 131 | V5: 131 | W5: 131 | X5: 131
B6: 130 | C6: 川崎市 | D6: 31 | E6: 30 | F6: 28 | G6: 28 | H6: 27 | I6: 27 | J6: 24 | K6: 24 | L6: 23 | M6: 22 | N6: 22 | O6: 21 | P6: 21 | Q6: 21 | R6: 21 | S6: 20 | T6: 19 | U6: 19 | V6: 19 | W6: 18 | X6: 18
B7: 150 | C7: 相模原市 | D7: =SUM(D41:D45) -> 142 | E7: =SUM(E41:E45) -> 407 | F7: 141 | G7: 138 | H7: 137 | I7: 137 | J7: 130 | K7: 126 | L7: 125 | M7: 123 | N7: 122 | O7: 122 | P7: 111 | Q7: 109 | R7: 108 | S7: 107 | T7: 103 | U7: 102 | V7: 102 | W7: 102 | X7: 102
B8: 201 | C8: 横須賀市 | D8: 19 | E8: 19 | F8: 18 | G8: 17 | H8: 16 | I8: 16 | J8: 12 | K8: 11 | L8: 10 | M8: 10 | N8: 10 | O8: 9 | P8: 9 | Q8: 8 | R8: 7 | S8: 7 | T8: 7 | U8: 6 | V8: 6 | W8: 6 | X8: 6
B9: 203 | C9: 平塚市 | D9: 777 | E9: 777 | F9: 777 | G9: 777 | H9: 777 | I9: 774 | J9: 772 | K9: 772 | L9: 771 | M9: 766 | N9: 765 | O9: 761 | P9: 739 | Q9: 737 | R9: 735 | S9: 732 | T9: 722 | U9: 712 | V9: 711 | W9: 711 | X9: 711
B10: 204 | C10: 鎌倉市 | D10: 1 | E10: 1 | F10: 1 | G10: 1 | H10: 1 | I10: 1 | J10: 1 | K10: 1 | L10: 1 | M10: 1 | N10: 1 | O10: 1 | P10: 1 | Q10: 1 | R10: 1 | S10: 1 | T10: 1 | U10: 1 | V10: 1 | W10: 1 | X10: 1
B11: 205 | C11: 藤沢市 | D11: 148 | E11: 148 | F11: 148 | G11: 148 | H11: 146 | I11: 143 | J11: 142 | K11: 140 | L11: 138 | M11: 137 | N11: 137 | O11: 136 | P11: 135 | Q11: 134 | R11: 133 | S11: 132 | T11: 130 | U11: 130 | V11: 129 | W11: 129 | X11: 128
B12: 206 | C12: 小田原市 | D12: 577 | E12: 569 | F12: 562 | G12: 556 | H12: 550 | I12: 546 | J12: 545 | K12: 537 | L12: 536 | M12: 534 | N12: 527 | O12: 521 | P12: 521 | Q12: 514 | R12: 508 | S12: 492 | T12: 486 | U12: 473 | V12: 466 | W12: 462 | X12: 461
B13: 207 | C13: 茅ヶ崎市 | D13: 61 | E13: 61 | F13: 61 | G13: 58 | H13: 54 | I13: 52 | J13: 51 | K13: 49 | L13: 49 | M13: 47 | N13: 46 | O13: 43 | P13: 43 | Q13: 43 | R13: 43 | S13: 43 | T13: 43 | U13: 42 | V13: 42 | W13: 42 | X13: 42
B14: 208 | C14: 逗子市 | D14: - | E14: - | F14: 0 | G14: 0 | H14: 0 | I14: 0 | J14: 0 | K14: 0 | L14: 0 | M14: 0 | N14: 0 | O14: 0 | P14: 0 | Q14: 0 | R14: 0 | S14: 0 | T14: 0 | U14: 0 | V14: 0 | W14: 0 | X14: 0
B15: 210 | C15: 三浦市 | D15: 10 | E15: 10 | F15: 10 | G15: 10 | H15: 10 | I15: 9 | J15: 6 | K15: 6 | L15: 6 | M15: 6 | N15: 6 | O15: 5 | P15: 5 | Q15: 5 | R15: 5 | S15: 5 | T15: 5 | U15: 4 | V15: 4 | W15: 4 | X15: 4
B16: 211 | C16: 秦野市 | D16: 146 | E16: 143 | F16: 137 | G16: 135 | H16: 134 | I16: 119 | J16: 119 | K16: 118 | L16: 117 | M16: 114 | N16: 113 | O16: 112 | P16: 109 | Q16: 108 | R16: 107 | S16: 107 | T16: 105 | U16: 101 | V16: 99 | W16: 99 | X16: 99
B17: 212 | C17: 厚木市 | D17: 550 | E17: 550 | F17: 549 | G17: 534 | H17: 522 | I17: 519 | J17: 520 | K17: 515 | L17: 509 | M17: 504 | N17: 497 | O17: 493 | P17: 493 | Q17: 489 | R17: 485 | S17: 478 | T17: 472 | U17: 458 | V17: 441 | W17: 436 | X17: 432
B18: 213 | C18: 大和市 | D18: 17 | E18: 17 | F18: 17 | G18: 16 | H18: 12 | I18: 12 | J18: 11 | K18: 11 | L18: 11 | M18: 11 | N18: 11 | O18: 11 | P18: 11 | Q18: 11 | R18: 11 | S18: 11 | T18: 11 | U18: 10 | V18: 10 | W18: 8 | X18: 8
B19: 214 | C19: 伊勢原市 | D19: 433 | E19: 431 | F19: 431 | G19: 430 | H19: 421 | I19: 419 | J19: 417 | K19: 414 | L19: 412 | M19: 410 | N19: 405 | O19: 404 | P19: 402 | Q19: 401 | R19: 400 | S19: 394 | T19: 391 | U19: 387 | V19: 384 | W19: 383 | X19: 385
B20: 215 | C20: 海老名市 | D20: 281 | E20: 281 | F20: 279 | G20: 266 | H20: 258 | I20: 258 | J20: 260 | K20: 260 | L20: 259 | M20: 258 | N20: 257 | O20: 252 | P20: 248 | Q20: 247 | R20: 245 | S20: 243 | T20: 239 | U20: 231 | V20: 229 | W20: 227 | X20: 225
B21: 216 | C21: 座間市 | D21: 92 | E21: 92 | F21: 92 | G21: 91 | H21: 91 | I21: 91 | J21: 90 | K21: 90 | L21: 90 | M21: 89 | N21: 89 | O21: 89 | P21: 89 | Q21: 88 | R21: 88 | S21: 86 | T21: 85 | U21: 85 | V21: 85 | W21: 84 | X21: 84
B22: 217 | C22: 南足柄市 | D22: 201 | E22: 199 | F22: 193 | G22: 187 | H22: 184 | I22: 182 | J22: 182 | K22: 180 | L22: 180 | M22: 177 | N22: 175 | O22: 170 | P22: 170 | Q22: 169 | R22: 168 | S22: 168 | T22: 167 | U22: 163 | V22: 163 | W22: 163 | X22: 162
B23: 218 | C23: 綾瀬市 | D23: 19 | E23: 19 | F23: 19 | G23: 18 | H23: 17 | I23: 17 | J23: 17 | K23: 17 | L23: 17 | M23: 17 | N23: 15 | O23: 15 | P23: 15 | Q23: 13 | R23: 12 | S23: 12 | T23: 12 | U23: 12 | V23: 12 | W23: 12 | X23: 12
B24: 301 | C24: 葉山町 | D24: 4 | E24: 4 | F24: 4 | G24: 4 | H24: 4 | I24: 4 | J24: 4 | K24: 4 | L24: 4 | M24: 4 | N24: 3 | O24: 3 | P24: 3 | Q24: 3 | R24: 3 | S24: 3 | T24: 3 | U24: 3 | V24: 3 | W24: 3 | X24: 3
B25: 321 | C25: 寒川町 | D25: 83 | E25: 81 | F25: 81 | G25: 78 | H25: 76 | I25: 76 | J25: 76 | K25: 75 | L25: 75 | M25: 71 | N25: 71 | O25: 71 | P25: 71 | Q25: 70 | R25: 69 | S25: 68 | T25: 67 | U25: 66 | V25: 66 | W25: 66 | X25: 66
B26: 341 | C26: 大磯町 | D26: 27 | E26: 27 | F26: 26 | G26: 26 | H26: 25 | I26: 25 | J26: 25 | K26: 24 | L26: 24 | M26: 23 | N26: 23 | O26: 23 | P26: 22 | Q26: 22 | R26: 22 | S26: 21 | T26: 20 | U26: 19 | V26: 19 | W26: 19 | X26: 19
B27: 342 | C27: 二宮町 | D27: 1 | E27: 1 | F27: 1 | G27: 1 | H27: 1 | I27: 1 | J27: 1 | K27: 1 | L27: 1 | M27: 0 | N27: 0 | O27: 0 | P27: 0 | Q27: 0 | R27: 0 | S27: 0 | T27: 0 | U27: 0 | V27: 0 | W27: 0 | X27: 0
B28: 361 | C28: 中井町 | D28: 34 | E28: 31 | F28: 31 | G28: 31 | H28: 31 | I28: 31 | J28: 31 | K28: 31 | L28: 31 | M28: 30 | N28: 29 | O28: 28 | P28: 28 | Q28: 27 | R28: 26 | S28: 25 | T28: 24 | U28: 23 | V28: 23 | W28: 23 | X28: 22
B29: 362 | C29: 大井町 | D29: 121 | E29: 119 | F29: 118 | G29: 117 | H29: 116 | I29: 115 | J29: 114 | K29: 114 | L29: 114 | M29: 111 | N29: 111 | O29: 111 | P29: 111 | Q29: 110 | R29: 110 | S29: 106 | T29: 103 | U29: 95 | V29: 94 | W29: 93 | X29: 93
B30: 363 | C30: 松田町 | D30: 13 | E30: 13 | F30: 12 | G30: 12 | H30: 12 | I30: 11 | J30: 11 | K30: 10 | L30: 10 | M30: 10 | N30: 10 | O30: 10 | P30: 10 | Q30: 9 | R30: 9 | S30: 8 | T30: 7 | U30: 6 | V30: 5 | W30: 5 | X30: 5
B31: 364 | C31: 山北町 | D31: 38 | E31: 38 | F31: 37 | G31: 37 | H31: 36 | I31: 36 | J31: 36 | K31: 36 | L31: 36 | M31: 35 | N31: 34 | O31: 33 | P31: 32 | Q31: 31 | R31: 31 | S31: 30 | T31: 27 | U31: 24 | V31: 24 | W31: 24 | X31: 23
B32: 366 | C32: 開成町 | D32: 185 | E32: 180 | F32: 177 | G32: 177 | H32: 176 | I32: 173 | J32: 173 | K32: 173 | L32: 172 | M32: 169 | N32: 169 | O32: 168 | P32: 167 | Q32: 165 | R32: 164 | S32: 161 | T32: 159 | U32: 157 | V32: 154 | W32: 151 | X32: 150
B33: 382 | C33: 箱根町 | D33: 2 | E33: 2 | F33: 2 | G33: 2 | H33: 2 | I33: 2 | J33: 2 | K33: 2 | L33: 2 | M33: 2 | N33: 2 | O33: 2 | P33: 1 | Q33: 1 | R33: 1 | S33: 1 | T33: 0 | U33: 0 | V33: 0 | W33: 0 | X33: 0
B34: 383 | C34: 真鶴町 | D34: - | E34: - | F34: - | G34: - | H34: - | I34: - | J34: - | K34: - | L34: - | M34: - | N34: - | O34: - | P34: - | Q34: - | R34: - | S34: - | T34: - | U34: - | V34: - | W34: - | X34: -
B35: 384 | C35: 湯河原町 | D35: - | E35: - | F35: - | G35: - | H35: - | I35: - | J35: - | K35: - | L35: - | M35: - | N35: - | O35: - | P35: - | Q35: - | R35: - | S35: - | T35: - | U35: - | V35: - | W35: - | X35: -
B36: 401 | C36: 愛川町 | D36: 78 | E36: 78 | F36: 78 | G36: 77 | H36: 74 | I36: 74 | J36: 74 | K36: 74 | L36: 74 | M36: 73 | N36: 73 | O36: 70 | P36: 68 | Q36: 67 | R36: 66 | S36: 65 | T36: 64 | U36: 63 | V36: 61 | W36: 61 | X36: 62
B37: 402 | C37: 清川村 | D37: 9 | E37: 9 | F37: 9 | G37: 9 | H37: 8 | I37: 8 | J37: 7 | K37: 7 | L37: 7 | M37: 7 | N37: 7 | O37: 7 | P37: 7 | Q37: 7 | R37: 7 | S37: 6 | T37: 6 | U37: 5 | V37: 5 | W37: 5 | X37: 5
B41: 209 | C41: 相模原市 | D41: 99 | E41: 119
B42: 421 | C42: 城山町 | D42: 19 | E42: 130
B43: 422 | C43: 津久井町 | D43: 14
B44: 423 | C44: 相模湖町 | D44: 7
B45: 424 | C45: 藤野町 | D45: 3 | E45: 158

Sheet グラフ田 (hidden)
D1: =データ田!J2 -> 2010 | E1: =データ田!K2 -> 2011 | F1: =データ田!L2 -> 2012 | G1: =データ田!M2 -> 2013 | H1: =データ田!N2 -> 2014 | I1: =データ田!O2 -> 2015 | J1: =データ田!P2 -> 2016 | K1: =データ田!Q2 -> 2017 | L1: =データ田!R2 -> 2018 | M1: =データ田!S2 -> 2019 | N1: =データ田!T2 -> 2020 | O1: =データ田!U2 -> 2021 | P1: =データ田!V2 -> 2022 | Q1: =データ田!W2 -> 2023 | R1: =データ田!X2 -> 2024
B2: 100 | C2: 横浜市 | D2: =データ田!J5 -> 176 | E2: =データ田!K5 -> 172 | F2: =データ田!L5 -> 168 | G2: =データ田!M5 -> 163 | H2: =データ田!N5 -> 160 | I2: =データ田!O5 -> 155 | J2: =データ田!P5 -> 149 | K2: =データ田!Q5 -> 146 | L2: =データ田!R5 -> 142 | M2: =データ田!S5 -> 139 | N2: =データ田!T5 -> 134 | O2: =データ田!U5 -> 131 | P2: =データ田!V5 -> 131 | Q2: =データ田!W5 -> 131 | R2: =データ田!X5 -> 131
B3: 130 | C3: 川崎市 | D3: =データ田!J6 -> 24 | E3: =データ田!K6 -> 24 | F3: =データ田!L6 -> 23 | G3: =データ田!M6 -> 22 | H3: =データ田!N6 -> 22 | I3: =データ田!O6 -> 21 | J3: =データ田!P6 -> 21 | K3: =データ田!Q6 -> 21 | L3: =データ田!R6 -> 21 | M3: =データ田!S6 -> 20 | N3: =データ田!T6 -> 19 | O3: =データ田!U6 -> 19 | P3: =データ田!V6 -> 19 | Q3: =データ田!W6 -> 18 | R3: =データ田!X6 -> 18
B4: 150 | C4: 相模原市 | D4: =データ田!J7 -> 130 | E4: =データ田!K7 -> 126 | F4: =データ田!L7 -> 125 | G4: =データ田!M7 -> 123 | H4: =データ田!N7 -> 122 | I4: =データ田!O7 -> 122 | J4: =データ田!P7 -> 111 | K4: =データ田!Q7 -> 109 | L4: =データ田!R7 -> 108 | M4: =データ田!S7 -> 107 | N4: =データ田!T7 -> 103 | O4: =データ田!U7 -> 102 | P4: =データ田!V7 -> 102 | Q4: =データ田!W7 -> 102 | R4: =データ田!X7 -> 102
B5: 201 | C5: 横須賀市 | D5: =データ田!J8 -> 12 | E5: =データ田!K8 -> 11 | F5: =データ田!L8 -> 10 | G5: =データ田!M8 -> 10 | H5: =データ田!N8 -> 10 | I5: =データ田!O8 -> 9 | J5: =データ田!P8 -> 9 | K5: =データ田!Q8 -> 8 | L5: =データ田!R8 -> 7 | M5: =データ田!S8 -> 7 | N5: =データ田!T8 -> 7 | O5: =データ田!U8 -> 6 | P5: =データ田!V8 -> 6 | Q5: =データ田!W8 -> 6 | R5: =データ田!X8 -> 6
B6: 203 | C6: 平塚市 | D6: =データ田!J9 -> 772 | E6: =データ田!K9 -> 772 | F6: =データ田!L9 -> 771 | G6: =データ田!M9 -> 766 | H6: =データ田!N9 -> 765 | I6: =データ田!O9 -> 761 | J6: =データ田!P9 -> 739 | K6: =データ田!Q9 -> 737 | L6: =データ田!R9 -> 735 | M6: =データ田!S9 -> 732 | N6: =データ田!T9 -> 722 | O6: =データ田!U9 -> 712 | P6: =データ田!V9 -> 711 | Q6: =データ田!W9 -> 711 | R6: =データ田!X9 -> 711
B7: 204 | C7: 鎌倉市 | D7: =データ田!J10 -> 1 | E7: =データ田!K10 -> 1 | F7: =データ田!L10 -> 1 | G7: =データ田!M10 -> 1 | H7: =データ田!N10 -> 1 | I7: =データ田!O10 -> 1 | J7: =データ田!P10 -> 1 | K7: =データ田!Q10 -> 1 | L7: =データ田!R10 -> 1 | M7: =データ田!S10 -> 1 | N7: =データ田!T10 -> 1 | O7: =データ田!U10 -> 1 | P7: =データ田!V10 -> 1 | Q7: =データ田!W10 -> 1 | R7: =データ田!X10 -> 1
B8: 205 | C8: 藤沢市 | D8: =データ田!J11 -> 142 | E8: =データ田!K11 -> 140 | F8: =データ田!L11 -> 138 | G8: =データ田!M11 -> 137 | H8: =データ田!N11 -> 137 | I8: =データ田!O11 -> 136 | J8: =データ田!P11 -> 135 | K8: =データ田!Q11 -> 134 | L8: =データ田!R11 -> 133 | M8: =データ田!S11 -> 132 | N8: =データ田!T11 -> 130 | O8: =データ田!U11 -> 130 | P8: =データ田!V11 -> 129 | Q8: =データ田!W11 -> 129 | R8: =データ田!X11 -> 128
B9: 206 | C9: 小田原市 | D9: =データ田!J12 -> 545 | E9: =データ田!K12 -> 537 | F9: =データ田!L12 -> 536 | G9: =データ田!M12 -> 534 | H9: =データ田!N12 -> 527 | I9: =データ田!O12 -> 521 | J9: =データ田!P12 -> 521 | K9: =データ田!Q12 -> 514 | L9: =データ田!R12 -> 508 | M9: =データ田!S12 -> 492 | N9: =データ田!T12 -> 486 | O9: =データ田!U12 -> 473 | P9: =データ田!V12 -> 466 | Q9: =データ田!W12 -> 462 | R9: =データ田!X12 -> 461
B10: 207 | C10: 茅ヶ崎市 | D10: =データ田!J13 -> 51 | E10: =データ田!K13 -> 49 | F10: =データ田!L13 -> 49 | G10: =データ田!M13 -> 47 | H10: =データ田!N13 -> 46 | I10: =データ田!O13 -> 43 | J10: =データ田!P13 -> 43 | K10: =データ田!Q13 -> 43 | L10: =データ田!R13 -> 43 | M10: =データ田!S13 -> 43 | N10: =データ田!T13 -> 43 | O10: =データ田!U13 -> 42 | P10: =データ田!V13 -> 42 | Q10: =データ田!W13 -> 42 | R10: =データ田!X13 -> 42
B11: 208 | C11: 逗子市 | D11: =データ田!J14 -> 0 | E11: =データ田!K14 -> 0 | F11: =データ田!L14 -> 0 | G11: =データ田!M14 -> 0 | H11: =データ田!N14 -> 0 | I11: =データ田!O14 -> 0 | J11: =データ田!P14 -> 0 | K11: =データ田!Q14 -> 0 | L11: =データ田!R14 -> 0 | M11: =データ田!S14 -> 0 | N11: =データ田!T14 -> 0 | O11: =データ田!U14 -> 0 | P11: =データ田!V14 -> 0 | Q11: =データ田!W14 -> 0 | R11: =データ田!X14 -> 0
B12: 210 | C12: 三浦市 | D12: =データ田!J15 -> 6 | E12: =データ田!K15 -> 6 | F12: =データ田!L15 -> 6 | G12: =データ田!M15 -> 6 | H12: =データ田!N15 -> 6 | I12: =データ田!O15 -> 5 | J12: =データ田!P15 -> 5 | K12: =データ田!Q15 -> 5 | L12: =データ田!R15 -> 5 | M12: =データ田!S15 -> 5 | N12: =データ田!T15 -> 5 | O12: =データ田!U15 -> 4 | P12: =データ田!V15 -> 4 | Q12: =データ田!W15 -> 4 | R12: =データ田!X15 -> 4
B13: 211 | C13: 秦野市 | D13: =データ田!J16 -> 119 | E13: =データ田!K16 -> 118 | F13: =データ田!L16 -> 117 | G13: =データ田!M16 -> 114 | H13: =データ田!N16 -> 113 | I13: =データ田!O16 -> 112 | J13: =データ田!P16 -> 109 | K13: =データ田!Q16 -> 108 | L13: =データ田!R16 -> 107 | M13: =データ田!S16 -> 107 | N13: =データ田!T16 -> 105 | O13: =データ田!U16 -> 101 | P13: =データ田!V16 -> 99 | Q13: =データ田!W16 -> 99 | R13: =データ田!X16 -> 99
B14: 212 | C14: 厚木市 | D14: =データ田!J17 -> 520 | E14: =データ田!K17 -> 515 | F14: =データ田!L17 -> 509 | G14: =データ田!M17 -> 504 | H14: =データ田!N17 -> 497 | I14: =データ田!O17 -> 493 | J14: =データ田!P17 -> 493 | K14: =データ田!Q17 -> 489 | L14: =データ田!R17 -> 485 | M14: =データ田!S17 -> 478 | N14: =データ田!T17 -> 472 | O14: =データ田!U17 -> 458 | P14: =データ田!V17 -> 441 | Q14: =データ田!W17 -> 436 | R14: =データ田!X17 -> 432
B15: 213 | C15: 大和市 | D15: =データ田!J18 -> 11 | E15: =データ田!K18 -> 11 | F15: =データ田!L18 -> 11 | G15: =データ田!M18 -> 11 | H15: =データ田!N18 -> 11 | I15: =データ田!O18 -> 11 | J15: =データ田!P18 -> 11 | K15: =データ田!Q18 -> 11 | L15: =データ田!R18 -> 11 | M15: =データ田!S18 -> 11 | N15: =データ田!T18 -> 11 | O15: =データ田!U18 -> 10 | P15: =データ田!V18 -> 10 | Q15: =データ田!W18 -> 8 | R15: =データ田!X18 -> 8
B16: 214 | C16: 伊勢原市 | D16: =データ田!J19 -> 417 | E16: =データ田!K19 -> 414 | F16: =データ田!L19 -> 412 | G16: =データ田!M19 -> 410 | H16: =データ田!N19 -> 405 | I16: =データ田!O19 -> 404 | J16: =データ田!P19 -> 402 | K16: =データ田!Q19 -> 401 | L16: =データ田!R19 -> 400 | M16: =データ田!S19 -> 394 | N16: =データ田!T19 -> 391 | O16: =データ田!U19 -> 387 | P16: =データ田!V19 -> 384 | Q16: =データ田!W19 -> 383 | R16: =データ田!X19 -> 385
B17: 215 | C17: 海老名市 | D17: =データ田!J20 -> 260 | E17: =データ田!K20 -> 260 | F17: =データ田!L20 -> 259 | G17: =データ田!M20 -> 258 | H17: =データ田!N20 -> 257 | I17: =データ田!O20 -> 252 | J17: =データ田!P20 -> 248 | K17: =データ田!Q20 -> 247 | L17: =データ田!R20 -> 245 | M17: =データ田!S20 -> 243 | N17: =データ田!T20 -> 239 | O17: =データ田!U20 -> 231 | P17: =データ田!V20 -> 229 | Q17: =データ田!W20 -> 227 | R17: =データ田!X20 -> 225
B18: 216 | C18: 座間市 | D18: =データ田!J21 -> 90 | E18: =データ田!K21 -> 90 | F18: =データ田!L21 -> 90 | G18: =データ田!M21 -> 89 | H18: =データ田!N21 -> 89 | I18: =データ田!O21 -> 89 | J18: =データ田!P21 -> 89 | K18: =データ田!Q21 -> 88 | L18: =データ田!R21 -> 88 | M18: =データ田!S21 -> 86 | N18: =データ田!T21 -> 85 | O18: =データ田!U21 -> 85 | P18: =データ田!V21 -> 85 | Q18: =データ田!W21 -> 84 | R18: =データ田!X21 -> 84
B19: 217 | C19: 南足柄市 | D19: =データ田!J22 -> 182 | E19: =データ田!K22 -> 180 | F19: =データ田!L22 -> 180 | G19: =データ田!M22 -> 177 | H19: =データ田!N22 -> 175 | I19: =データ田!O22 -> 170 | J19: =データ田!P22 -> 170 | K19: =データ田!Q22 -> 169 | L19: =データ田!R22 -> 168 | M19: =データ田!S22 -> 168 | N19: =データ田!T22 -> 167 | O19: =データ田!U22 -> 163 | P19: =データ田!V22 -> 163 | Q19: =データ田!W22 -> 163 | R19: =データ田!X22 -> 162
B20: 218 | C20: 綾瀬市 | D20: =データ田!J23 -> 17 | E20: =データ田!K23 -> 17 | F20: =データ田!L23 -> 17 | G20: =データ田!M23 -> 17 | H20: =データ田!N23 -> 15 | I20: =データ田!O23 -> 15 | J20: =データ田!P23 -> 15 | K20: =データ田!Q23 -> 13 | L20: =データ田!R23 -> 12 | M20: =データ田!S23 -> 12 | N20: =データ田!T23 -> 12 | O20: =データ田!U23 -> 12 | P20: =データ田!V23 -> 12 | Q20: =データ田!W23 -> 12 | R20: =データ田!X23 -> 12
B21: 301 | C21: 葉山町 | D21: =データ田!J24 -> 4 | E21: =データ田!K24 -> 4 | F21: =データ田!L24 -> 4 | G21: =データ田!M24 -> 4 | H21: =データ田!N24 -> 3 | I21: =データ田!O24 -> 3 | J21: =データ田!P24 -> 3 | K21: =データ田!Q24 -> 3 | L21: =データ田!R24 -> 3 | M21: =データ田!S24 -> 3 | N21: =データ田!T24 -> 3 | O21: =データ田!U24 -> 3 | P21: =データ田!V24 -> 3 | Q21: =データ田!W24 -> 3 | R21: =データ田!X24 -> 3
B22: 321 | C22: 寒川町 | D22: =データ田!J25 -> 76 | E22: =データ田!K25 -> 75 | F22: =データ田!L25 -> 75 | G22: =データ田!M25 -> 71 | H22: =データ田!N25 -> 71 | I22: =データ田!O25 -> 71 | J22: =データ田!P25 -> 71 | K22: =データ田!Q25 -> 70 | L22: =データ田!R25 -> 69 | M22: =データ田!S25 -> 68 | N22: =データ田!T25 -> 67 | O22: =データ田!U25 -> 66 | P22: =データ田!V25 -> 66 | Q22: =データ田!W25 -> 66 | R22: =データ田!X25 -> 66
B23: 341 | C23: 大磯町 | D23: =データ田!J26 -> 25 | E23: =データ田!K26 -> 24 | F23: =データ田!L26 -> 24 | G23: =データ田!M26 -> 23 | H23: =データ田!N26 -> 23 | I23: =データ田!O26 -> 23 | J23: =データ田!P26 -> 22 | K23: =データ田!Q26 -> 22 | L23: =データ田!R26 -> 22 | M23: =データ田!S26 -> 21 | N23: =データ田!T26 -> 20 | O23: =データ田!U26 -> 19 | P23: =データ田!V26 -> 19 | Q23: =データ田!W26 -> 19 | R23: =データ田!X26 -> 19
B24: 342 | C24: 二宮町 | D24: =データ田!J27 -> 1 | E24: =データ田!K27 -> 1 | F24: =データ田!L27 -> 1 | G24: =データ田!M27 -> 0 | H24: =データ田!N27 -> 0 | I24: =データ田!O27 -> 0 | J24: =データ田!P27 -> 0 | K24: =データ田!Q27 -> 0 | L24: =データ田!R27 -> 0 | M24: =データ田!S27 -> 0 | N24: =データ田!T27 -> 0 | O24: =データ田!U27 -> 0 | P24: =データ田!V27 -> 0 | Q24: =データ田!W27 -> 0 | R24: =データ田!X27 -> 0
B25: 361 | C25: 中井町 | D25: =データ田!J28 -> 31 | E25: =データ田!K28 -> 31 | F25: =データ田!L28 -> 31 | G25: =データ田!M28 -> 30 | H25: =データ田!N28 -> 29 | I25: =データ田!O28 -> 28 | J25: =データ田!P28 -> 28 | K25: =データ田!Q28 -> 27 | L25: =データ田!R28 -> 26 | M25: =データ田!S28 -> 25 | N25: =データ田!T28 -> 24 | O25: =データ田!U28 -> 23 | P25: =データ田!V28 -> 23 | Q25: =データ田!W28 -> 23 | R25: =データ田!X28 -> 22
B26: 362 | C26: 大井町 | D26: =データ田!J29 -> 114 | E26: =データ田!K29 -> 114 | F26: =データ田!L29 -> 114 | G26: =データ田!M29 -> 111 | H26: =データ田!N29 -> 111 | I26: =データ田!O29 -> 111 | J26: =データ田!P29 -> 111 | K26: =データ田!Q29 -> 110 | L26: =データ田!R29 -> 110 | M26: =データ田!S29 -> 106 | N26: =データ田!T29 -> 103 | O26: =データ田!U29 -> 95 | P26: =データ田!V29 -> 94 | Q26: =データ田!W29 -> 93 | R26: =データ田!X29 -> 93
B27: 363 | C27: 松田町 | D27: =データ田!J30 -> 11 | E27: =データ田!K30 -> 10 | F27: =データ田!L30 -> 10 | G27: =データ田!M30 -> 10 | H27: =データ田!N30 -> 10 | I27: =データ田!O30 -> 10 | J27: =データ田!P30 -> 10 | K27: =データ田!Q30 -> 9 | L27: =データ田!R30 -> 9 | M27: =データ田!S30 -> 8 | N27: =データ田!T30 -> 7 | O27: =データ田!U30 -> 6 | P27: =データ田!V30 -> 5 | Q27: =データ田!W30 -> 5 | R27: =データ田!X30 -> 5
B28: 364 | C28: 山北町 | D28: =データ田!J31 -> 36 | E28: =データ田!K31 -> 36 | F28: =データ田!L31 -> 36 | G28: =データ田!M31 -> 35 | H28: =データ田!N31 -> 34 | I28: =データ田!O31 -> 33 | J28: =データ田!P31 -> 32 | K28: =データ田!Q31 -> 31 | L28: =データ田!R31 -> 31 | M28: =データ田!S31 -> 30 | N28: =データ田!T31 -> 27 | O28: =データ田!U31 -> 24 | P28: =データ田!V31 -> 24 | Q28: =データ田!W31 -> 24 | R28: =データ田!X31 -> 23
B29: 366 | C29: 開成町 | D29: =データ田!J32 -> 173 | E29: =データ田!K32 -> 173 | F29: =データ田!L32 -> 172 | G29: =データ田!M32 -> 169 | H29: =データ田!N32 -> 169 | I29: =データ田!O32 -> 168 | J29: =データ田!P32 -> 167 | K29: =データ田!Q32 -> 165 | L29: =データ田!R32 -> 164 | M29: =データ田!S32 -> 161 | N29: =データ田!T32 -> 159 | O29: =データ田!U32 -> 157 | P29: =データ田!V32 -> 154 | Q29: =データ田!W32 -> 151 | R29: =データ田!X32 -> 150
B30: 382 | C30: 箱根町 | D30: =データ田!J33 -> 2 | E30: =データ田!K33 -> 2 | F30: =データ田!L33 -> 2 | G30: =データ田!M33 -> 2 | H30: =データ田!N33 -> 2 | I30: =データ田!O33 -> 2 | J30: =データ田!P33 -> 1 | K30: =データ田!Q33 -> 1 | L30: =データ田!R33 -> 1 | M30: =データ田!S33 -> 1 | N30: =データ田!T33 -> 0 | O30: =データ田!U33 -> 0 | P30: =データ田!V33 -> 0 | Q30: =データ田!W33 -> 0 | R30: =データ田!X33 -> 0
B31: 383 | C31: 真鶴町 | D31: =データ田!J34 -> - | E31: =データ田!K34 -> - | F31: =データ田!L34 -> - | G31: =データ田!M34 -> - | H31: =データ田!N34 -> - | I31: =データ田!O34 -> - | J31: =データ田!P34 -> - | K31: =データ田!Q34 -> - | L31: =データ田!R34 -> - | M31: =データ田!S34 -> - | N31: =データ田!T34 -> - | O31: =データ田!U34 -> - | P31: =データ田!V34 -> - | Q31: =データ田!W34 -> - | R31: =データ田!X34 -> -
B32: 384 | C32: 湯河原町 | D32: =データ田!J35 -> - | E32: =データ田!K35 -> - | F32: =データ田!L35 -> - | G32: =データ田!M35 -> - | H32: =データ田!N35 -> - | I32: =データ田!O35 -> - | J32: =データ田!P35 -> - | K32: =データ田!Q35 -> - | L32: =データ田!R35 -> - | M32: =データ田!S35 -> - | N32: =データ田!T35 -> - | O32: =データ田!U35 -> - | P32: =データ田!V35 -> - | Q32: =データ田!W35 -> - | R32: =データ田!X35 -> -
B33: 401 | C33: 愛川町 | D33: =データ田!J36 -> 74 | E33: =データ田!K36 -> 74 | F33: =データ田!L36 -> 74 | G33: =データ田!M36 -> 73 | H33: =データ田!N36 -> 73 | I33: =データ田!O36 -> 70 | J33: =データ田!P36 -> 68 | K33: =データ田!Q36 -> 67 | L33: =データ田!R36 -> 66 | M33: =データ田!S36 -> 65 | N33: =データ田!T36 -> 64 | O33: =データ田!U36 -> 63 | P33: =データ田!V36 -> 61 | Q33: =データ田!W36 -> 61 | R33: =データ田!X36 -> 62
B34: 402 | C34: 清川村 | D34: =データ田!J37 -> 7 | E34: =データ田!K37 -> 7 | F34: =データ田!L37 -> 7 | G34: =データ田!M37 -> 7 | H34: =データ田!N37 -> 7 | I34: =データ田!O37 -> 7 | J34: =データ田!P37 -> 7 | K34: =データ田!Q37 -> 7 | L34: =データ田!R37 -> 7 | M34: =データ田!S37 -> 6 | N34: =データ田!T37 -> 6 | O34: =データ田!U37 -> 5 | P34: =データ田!V37 -> 5 | Q34: =データ田!W37 -> 5 | R34: =データ田!X37 -> 5
C35: 神奈川県 | D35: =データ田!J3 -> 4030 | E35: =データ田!K3 -> 3990 | F35: =データ田!L3 -> 3970 | G35: =データ田!M3 -> 3920 | H35: =データ田!N3 -> 3890 | I35: =データ田!O3 -> 3850 | J35: =データ田!P3 -> 3790 | K35: =データ田!Q3 -> 3760 | L35: =データ田!R3 -> 3730 | M35: =データ田!S3 -> 3670 | N35: =データ田!T3 -> 3610 | O35: =データ田!U3 -> 3530 | P35: =データ田!V3 -> 3490 | Q35: =データ田!W3 -> 3470 | R35: =データ田!X3 -> 3460
D36: =D1 -> 2010 | E36: 2011 | F36: 2012 | G36: 2013 | H36: 2014 | I36: 2015 | J36: 2016 | K36: 2017 | L36: 2018 | M36: 2019 | N36: 2020 | O36: 2021 | P36: 2022 | Q36: 2023 | R36: 2024
C37: 神奈川県 | D37: =_xlfn.XLOOKUP($C$37,$C2:$C35,D$2:D$35) -> 4030 | E37: 3990 | F37: 3970 | G37: 3920 | H37: 3890 | I37: 3850 | J37: 3790 | K37: 3760 | L37: 3730 | M37: 3670 | N37: 3610 | O37: 3530 | P37: 3490 | Q37: 3470 | R37: 3460

Sheet データ畑 (hidden)
D1: 16 | E1: 17 | F1: 18 | G1: 19 | H1: 20 | I1: 21 | J1: 22 | K1: 23 | L1: 24 | M1: 25 | N1: 26 | O1: 27 | P1: 28 | Q1: 29 | R1: 30 | S1: 1 | T1: 2 | U1: 3 | V1: 4 | W1: 5 | X1: 6
D2: 2004 | E2: 2005 | F2: 2006 | G2: 2007 | H2: 2008 | I2: 2009 | J2: 2010 | K2: 2011 | L2: 2012 | M2: 2013 | N2: 2014 | O2: 2015 | P2: 2016 | Q2: 2017 | R2: 2018 | S2: 2019 | T2: 2020 | U2: 2021 | V2: 2022 | W2: 2023 | X2: 2024
C3: 神奈川県 | J3: 16 400 | K3: 16300 | L3: 16200 | M3: 16000 | N3: 15800 | O3: 15700 | P3: 15700 | Q3: 15500 | R3: 15400 | S3: 15100 | T3: 14800 | U3: 14600 | V3: 14500 | W3: 14400 | X3: 14300
D4: =SUM(D5:D83) -> 18508 | E4: 18464 | F4: 16785 | G4: 16699 | H4: 16594 | I4: 16461 | J4: 16352 | K4: =SUM(K5:K83) -> 16284 | L4: 16173 | M4: 16035 | N4: 15831 | O4: 15746 | P4: 15654 | Q4: 15478 | R4: 15344 | S4: 15110 | T4: 14817 | U4: 14648 | V4: 14525 | W4: 14387 | X4: 33076
B5: 100 | C5: 横浜市 | D5: 2,910 | E5: 2,910 | F5: 2,890 | G5: 2,870 | H5: 2,830 | I5: 2,810 | J5: 2,800 | K5: 2,790 | L5: 2,790 | M5: 2,770 | N5: 2,710 | O5: 2,690 | P5: 2,680 | Q5: 2,660 | R5: 2,630 | S5: 2,570 | T5: 2520 | U5: 2490 | V5: 2460 | W5: 2450 | X5: 2440
B6: 130 | C6: 川崎市 | D6: 615 | E6: 614 | F6: 609 | G6: 598 | H6: 593 | I6: 586 | J6: 584 | K6: 581 | L6: 580 | M6: 576 | N6: 551 | O6: 550 | P6: 549 | Q6: 549 | R6: 547 | S6: 527 | T6: 507 | U6: 492 | V6: 477 | W6: 465 | X6: 461
B7: 150 | C7: 相模原市 | D7: =SUM(D41:D45) -> 1,599 | E7: =SUM(E41:E45) -> 1,598 | F7: 1,590 | G7: 1,590 | H7: 1,570 | I7: 1,550 | J7: 1,530 | K7: 1,520 | L7: 1,510 | M7: 1,490 | N7: 1,500 | O7: 1,490 | P7: 1,470 | Q7: 1,450 | R7: 1,430 | S7: 1,400 | T7: 1360 | U7: 1340 | V7: 1330 | W7: 1320 | X7: 1310
B8: 201 | C8: 横須賀市 | D8: 489 | E8: 516 | F8: 541 | G8: 538 | H8: 537 | I8: 537 | J8: 531 | K8: 530 | L8: 529 | M8: 529 | N8: 527 | O8: 524 | P8: 524 | Q8: 523 | R8: 521 | S8: 515 | T8: 507 | U8: 504 | V8: 502 | W8: 501 | X8: 491
B9: 203 | C9: 平塚市 | D9: 798 | E9: 788 | F9: 780 | G9: 778 | H9: 775 | I9: 775 | J9: 766 | K9: 766 | L9: 764 | M9: 761 | N9: 752 | O9: 749 | P9: 740 | Q9: 738 | R9: 732 | S9: 727 | T9: 718 | U9: 714 | V9: 710 | W9: 705 | X9: 699
B10: 204 | C10: 鎌倉市 | D10: 121 | E10: 121 | F10: 119 | G10: 117 | H10: 114 | I10: 113 | J10: 109 | K10: 108 | L10: 108 | M10: 106 | N10: 104 | O10: 104 | P10: 103 | Q10: 102 | R10: 101 | S10: 99 | T10: 98 | U10: 96 | V10: 95 | W10: 92 | X10: 91
B11: 205 | C11: 藤沢市 | D11: 840 | E11: 836 | F11: 834 | G11: 834 | H11: 830 | I11: 820 | J11: 807 | K11: 799 | L11: 791 | M11: 784 | N11: 765 | O11: 765 | P11: 765 | Q11: 763 | R11: 761 | S11: 748 | T11: 736 | U11: 729 | V11: 727 | W11: 718 | X11: 713
B12: 206 | C12: 小田原市 | D12: 1,400 | E12: 1,380 | F12: 1,370 | G12: 1,370 | H12: 1,370 | I12: 1,360 | J12: 1,360 | K12: 1,360 | L12: 1,340 | M12: 1,330 | N12: 1,320 | O12: 1,320 | P12: 1,310 | Q12: 1,310 | R12: 1,300 | S12: 1,300 | T12: 1290 | U12: 1280 | V12: 1280 | W12: 1270 | X12: 1260
B13: 207 | C13: 茅ヶ崎市 | D13: 338 | E13: 333 | F13: 330 | G13: 333 | H13: 333 | I13: 329 | J13: 323 | K13: 323 | L13: 320 | M13: 315 | N13: 306 | O13: 306 | P13: 306 | Q13: 305 | R13: 303 | S13: 295 | T13: 285 | U13: 273 | V13: 272 | W13: 267 | X13: 261
B14: 208 | C14: 逗子市 | D14: 9 | E14: 9 | F14: 9 | G14: 9 | H14: 9 | I14: 9 | J14: 9 | K14: 9 | L14: 9 | M14: 9 | N14: 7 | O14: 7 | P14: 7 | Q14: 7 | R14: 7 | S14: 6 | T14: 6 | U14: 6 | V14: 6 | W14: 6 | X14: 6
B15: 210 | C15: 三浦市 | D15: 1,180 | E15: 1,190 | F15: 1,200 | G15: 1,200 | H15: 1,200 | I15: 1,200 | J15: 1,190 | K15: 1,190 | L15: 1,190 | M15: 1,190 | N15: 1,190 | O15: 1,190 | P15: 1,190 | Q15: 1,190 | R15: 1,190 | S15: 1,190 | T15: 1180 | U15: 1180 | V15: 1180 | W15: 1180 | X15: 1180
B16: 211 | C16: 秦野市 | D16: 1,150 | E16: 1,140 | F16: 1,130 | G16: 1,120 | H16: 1,120 | I16: 1,100 | J16: 1,090 | K16: 1,080 | L16: 1,050 | M16: 1,030 | N16: 1,030 | O16: 1,020 | P16: 1,010 | Q16: 999 | R16: 990 | S16: 979 | T16: 962 | U16: 950 | V16: 932 | W16: 916 | X16: 910
B17: 212 | C17: 厚木市 | D17: 700 | E17: 697 | F17: 694 | G17: 693 | H17: 691 | I17: 686 | J17: 683 | K17: 678 | L17: 669 | M17: 654 | N17: 652 | O17: 648 | P17: 645 | Q17: 637 | R17: 632 | S17: 622 | T17: 602 | U17: 592 | V17: 591 | W17: 589 | X17: 585
B18: 213 | C18: 大和市 | D18: 233 | E18: 233 | F18: 232 | G18: 231 | H18: 229 | I18: 214 | J18: 213 | K18: 212 | L18: 211 | M18: 210 | N18: 204 | O18: 202 | P18: 200 | Q18: 198 | R18: 196 | S18: 189 | T18: 185 | U18: 184 | V18: 180 | W18: 169 | X18: 168
B19: 214 | C19: 伊勢原市 | D19: 754 | E19: 746 | F19: 742 | G19: 739 | H19: 733 | I19: 728 | J19: 725 | K19: 722 | L19: 718 | M19: 712 | N19: 704 | O19: 701 | P19: 696 | Q19: 692 | R19: 689 | S19: 687 | T19: 681 | U19: 678 | V19: 671 | W19: 664 | X19: 662
B20: 215 | C20: 海老名市 | D20: 316 | E20: 315 | F20: 314 | G20: 307 | H20: 306 | I20: 305 | J20: 305 | K20: 304 | L20: 303 | M20: 301 | N20: 295 | O20: 293 | P20: 293 | Q20: 292 | R20: 281 | S20: 276 | T20: 270 | U20: 268 | V20: 263 | W20: 251 | X20: 250
B21: 216 | C21: 座間市 | D21: 141 | E21: 140 | F21: 140 | G21: 138 | H21: 137 | I21: 137 | J21: 137 | K21: 137 | L21: 137 | M21: 136 | N21: 130 | O21: 129 | P21: 128 | Q21: 126 | R21: 124 | S21: 121 | T21: 118 | U21: 116 | V21: 114 | W21: 112 | X21: 112
B22: 217 | C22: 南足柄市 | D22: 505 | E22: 503 | F22: 503 | G22: 502 | H22: 499 | I22: 497 | J22: 496 | K22: 496 | L22: 493 | M22: 492 | N22: 494 | O22: 490 | P22: 490 | Q22: 490 | R22: 489 | S22: 488 | T22: 487 | U22: 486 | V22: 487 | W22: 486 | X22: 485
B23: 218 | C23: 綾瀬市 | D23: 265 | E23: 264 | F23: 263 | G23: 257 | H23: 255 | I23: 255 | J23: 255 | K23: 254 | L23: 254 | M23: 253 | N23: 245 | O23: 244 | P23: 236 | Q23: 231 | R23: 228 | S23: 227 | T23: 224 | U23: 221 | V23: 217 | W23: 216 | X23: 214
B24: 301 | C24: 葉山町 | D24: 37 | E24: 37 | F24: 37 | G24: 35 | H24: 35 | I24: 36 | J24: 35 | K24: 35 | L24: 35 | M24: 34 | N24: 33 | O24: 33 | P24: 32 | Q24: 32 | R24: 32 | S24: 30 | T24: 29 | U24: 29 | V24: 29 | W24: 29 | X24: 29
B25: 321 | C25: 寒川町 | D25: 184 | E25: 182 | F25: 179 | G25: 179 | H25: 179 | I25: 177 | J25: 174 | K25: 171 | L25: 169 | M25: 169 | N25: 166 | O25: 165 | P25: 164 | Q25: 162 | R25: 160 | S25: 157 | T25: 154 | U25: 152 | V25: 152 | W25: 151 | X25: 152
B26: 341 | C26: 大磯町 | D26: 258 | E26: 257 | F26: 255 | G26: 254 | H26: 252 | I26: 250 | J26: 248 | K26: 248 | L26: 246 | M26: 246 | N26: 244 | O26: 244 | P26: 244 | Q26: 244 | R26: 243 | S26: 240 | T26: 237 | U26: 237 | V26: 236 | W26: 235 | X26: 235
B27: 342 | C27: 二宮町 | D27: 134 | E27: 133 | F27: 132 | G27: 132 | H27: 131 | I27: 129 | J27: 128 | K27: 128 | L27: 126 | M27: 122 | N27: 118 | O27: 118 | P27: 118 | Q27: 117 | R27: 116 | S27: 115 | T27: 112 | U27: 110 | V27: 109 | W27: 107 | X27: 106
B28: 361 | C28: 中井町 | D28: 476 | E28: 472 | F28: 457 | G28: 450 | H28: 448 | I28: 447 | J28: 447 | K28: 437 | L28: 433 | M28: 431 | N28: 412 | O28: 409 | P28: 408 | Q28: 403 | R28: 401 | S28: 394 | T28: 389 | U28: 385 | V28: 381 | W28: 377 | X28: 376
B29: 362 | C29: 大井町 | D29: 236 | E29: 236 | F29: 236 | G29: 235 | H29: 235 | I29: 235 | J29: 235 | K29: 235 | L29: 235 | M29: 235 | N29: 232 | O29: 230 | P29: 230 | Q29: 229 | R29: 228 | S29: 227 | T29: 221 | U29: 219 | V29: 219 | W29: 218 | X29: 217
B30: 363 | C30: 松田町 | D30: 155 | E30: 155 | F30: 155 | G30: 154 | H30: 152 | I30: 151 | J30: 151 | K30: 151 | L30: 150 | M30: 150 | N30: 150 | O30: 150 | P30: 150 | Q30: 148 | R30: 142 | S30: 136 | T30: 131 | U30: 131 | V30: 130 | W30: 129 | X30: 127
B31: 364 | C31: 山北町 | D31: 374 | E31: 374 | F31: 373 | G31: 372 | H31: 370 | I31: 369 | J31: 369 | K31: 369 | L31: 368 | M31: 367 | N31: 366 | O31: 364 | P31: 358 | Q31: 281 | R31: 280 | S31: 279 | T31: 263 | U31: 260 | V31: 255 | W31: 251 | X31: 248
B32: 366 | C32: 開成町 | D32: 31 | E32: 31 | F32: 30 | G32: 30 | H32: 30 | I32: 29 | J32: 29 | K32: 29 | L32: 29 | M32: 31 | N32: 31 | O32: 31 | P32: 31 | Q32: 31 | R32: 31 | S32: 31 | T32: 30 | U32: 29 | V32: 29 | W32: 29 | X32: 29
B33: 382 | C33: 箱根町 | D33: 8 | E33: 8 | F33: 8 | G33: 8 | H33: 8 | I33: 8 | J33: 8 | K33: 8 | L33: 8 | M33: 8 | N33: 8 | O33: 7 | P33: 7 | Q33: 7 | R33: 7 | S33: 7 | T33: 6 | U33: 6 | V33: 6 | W33: 6 | X33: 6
B34: 383 | C34: 真鶴町 | D34: 54 | E34: 53 | F34: 52 | G34: 52 | H34: 52 | I34: 52 | J34: 52 | K34: 52 | L34: 50 | M34: 50 | N34: 49 | O34: 49 | P34: 48 | Q34: 46 | R34: 45 | S34: 44 | T34: 41 | U34: 35 | V34: 34 | W34: 33 | X34: 33
B35: 384 | C35: 湯河原町 | D35: 280 | E35: 276 | F35: 262 | G35: 257 | H35: 256 | I35: 255 | J35: 253 | K35: 252 | L35: 248 | M35: 244 | N35: 243 | O35: 242 | P35: 241 | Q35: 238 | R35: 232 | S35: 217 | T35: 215 | U35: 209 | V35: 206 | W35: 202 | X35: 202
B36: 401 | C36: 愛川町 | D36: 278 | E36: 278 | F36: 278 | G36: 276 | H36: 275 | I36: 272 | J36: 271 | K36: 271 | L36: 271 | M36: 261 | N36: 254 | O36: 243 | P36: 242 | Q36: 239 | R36: 237 | S36: 228 | T36: 219 | U36: 215 | V36: 213 | W36: 211 | X36: 209
B37: 402 | C37: 清川村 | D37: 41 | E37: 41 | F37: 41 | G37: 41 | H37: 40 | I37: 40 | J37: 39 | K37: 39 | L37: 39 | M37: 39 | N37: 39 | O37: 39 | P37: 39 | Q37: 39 | R37: 39 | S37: 39 | T37: 34 | U37: 32 | V37: 32 | W37: 32 | X37: 32
B41: 209 | C41: 相模原市 | D41: 834 | E41: 1,310
B42: 421 | C42: 城山町 | D42: 130 | E42: 130
B43: 422 | C43: 津久井町 | D43: 365
B44: 423 | C44: 相模湖町 | D44: 112
B45: 424 | C45: 藤野町 | D45: 158 | E45: 158
X46: ='R6'!G21 -> 585
X49: ='R6'!G22 -> 168
X50: ='R6'!G23 -> 662
X53: ='R6'!G24 -> 250
X54: ='R6'!G25 -> 112
X55: ='R6'!G26 -> 485
X58: ='R6'!G27 -> 214
X59: ='R6'!G28 -> 29
X60: ='R6'!G29 -> 152
X61: ='R6'!G30 -> 235
X65: ='R6'!G31 -> 106
X68: ='R6'!G32 -> 376
X69: ='R6'!G33 -> 217
X70: ='R6'!G34 -> 127
X71: ='R6'!G35 -> 248
X72: ='R6'!G36 -> 29
X75: ='R6'!G37 -> 6
X76: ='R6'!G38 -> 33
X77: ='R6'!G39 -> 202
X78: ='R6'!G40 -> 209
X79: ='R6'!G41 -> 32
X80: ='R6'!G42 -> 0
X83: ='R6'!G43 -> 14300

Sheet グラフ畑 (hidden)
D1: =データ畑!J2 -> 2010 | E1: =データ畑!K2 -> 2011 | F1: =データ畑!L2 -> 2012 | G1: =データ畑!M2 -> 2013 | H1: =データ畑!N2 -> 2014 | I1: =データ畑!O2 -> 2015 | J1: =データ畑!P2 -> 2016 | K1: =データ畑!Q2 -> 2017 | L1: =データ畑!R2 -> 2018 | M1: =データ畑!S2 -> 2019 | N1: =データ畑!T2 -> 2020 | O1: =データ畑!U2 -> 2021 | P1: =データ畑!V2 -> 2022 | Q1: =データ畑!W2 -> 2023 | R1: =データ畑!X2 -> 2024
B2: 100 | C2: 横浜市 | D2: =データ畑!J5 -> 2800 | E2: =データ畑!K5 -> 2790 | F2: =データ畑!L5 -> 2790 | G2: =データ畑!M5 -> 2770 | H2: =データ畑!N5 -> 2710 | I2: =データ畑!O5 -> 2690 | J2: =データ畑!P5 -> 2680 | K2: =データ畑!Q5 -> 2660 | L2: =データ畑!R5 -> 2630 | M2: =データ畑!S5 -> 2570 | N2: =データ畑!T5 -> 2520 | O2: =データ畑!U5 -> 2490 | P2: =データ畑!V5 -> 2460 | Q2: =データ畑!W5 -> 2450 | R2: =データ畑!X5 -> 2440
B3: 130 | C3: 川崎市 | D3: =データ畑!J6 -> 584 | E3: =データ畑!K6 -> 581 | F3: =データ畑!L6 -> 580 | G3: =データ畑!M6 -> 576 | H3: =データ畑!N6 -> 551 | I3: =データ畑!O6 -> 550 | J3: =データ畑!P6 -> 549 | K3: =データ畑!Q6 -> 549 | L3: =データ畑!R6 -> 547 | M3: =データ畑!S6 -> 527 | N3: =データ畑!T6 -> 507 | O3: =データ畑!U6 -> 492 | P3: =データ畑!V6 -> 477 | Q3: =データ畑!W6 -> 465 | R3: =データ畑!X6 -> 461
B4: 150 | C4: 相模原市 | D4: =データ畑!J7 -> 1530 | E4: =データ畑!K7 -> 1520 | F4: =データ畑!L7 -> 1510 | G4: =データ畑!M7 -> 1490 | H4: =データ畑!N7 -> 1500 | I4: =データ畑!O7 -> 1490 | J4: =データ畑!P7 -> 1470 | K4: =データ畑!Q7 -> 1450 | L4: =データ畑!R7 -> 1430 | M4: =データ畑!S7 -> 1400 | N4: =データ畑!T7 -> 1360 | O4: =データ畑!U7 -> 1340 | P4: =データ畑!V7 -> 1330 | Q4: =データ畑!W7 -> 1320 | R4: =データ畑!X7 -> 1310
B5: 201 | C5: 横須賀市 | D5: =データ畑!J8 -> 531 | E5: =データ畑!K8 -> 530 | F5: =データ畑!L8 -> 529 | G5: =データ畑!M8 -> 529 | H5: =データ畑!N8 -> 527 | I5: =データ畑!O8 -> 524 | J5: =データ畑!P8 -> 524 | K5: =データ畑!Q8 -> 523 | L5: =データ畑!R8 -> 521 | M5: =データ畑!S8 -> 515 | N5: =データ畑!T8 -> 507 | O5: =データ畑!U8 -> 504 | P5: =データ畑!V8 -> 502 | Q5: =データ畑!W8 -> 501 | R5: =データ畑!X8 -> 491
B6: 203 | C6: 平塚市 | D6: =データ畑!J9 -> 766 | E6: =データ畑!K9 -> 766 | F6: =データ畑!L9 -> 764 | G6: =データ畑!M9 -> 761 | H6: =データ畑!N9 -> 752 | I6: =データ畑!O9 -> 749 | J6: =データ畑!P9 -> 740 | K6: =データ畑!Q9 -> 738 | L6: =データ畑!R9 -> 732 | M6: =データ畑!S9 -> 727 | N6: =データ畑!T9 -> 718 | O6: =データ畑!U9 -> 714 | P6: =データ畑!V9 -> 710 | Q6: =データ畑!W9 -> 705 | R6: =データ畑!X9 -> 699
B7: 204 | C7: 鎌倉市 | D7: =データ畑!J10 -> 109 | E7: =データ畑!K10 -> 108 | F7: =データ畑!L10 -> 108 | G7: =データ畑!M10 -> 106 | H7: =データ畑!N10 -> 104 | I7: =データ畑!O10 -> 104 | J7: =データ畑!P10 -> 103 | K7: =データ畑!Q10 -> 102 | L7: =データ畑!R10 -> 101 | M7: =データ畑!S10 -> 99 | N7: =データ畑!T10 -> 98 | O7: =データ畑!U10 -> 96 | P7: =データ畑!V10 -> 95 | Q7: =データ畑!W10 -> 92 | R7: =データ畑!X10 -> 91
B8: 205 | C8: 藤沢市 | D8: =データ畑!J11 -> 807 | E8: =データ畑!K11 -> 799 | F8: =データ畑!L11 -> 791 | G8: =データ畑!M11 -> 784 | H8: =データ畑!N11 -> 765 | I8: =データ畑!O11 -> 765 | J8: =データ畑!P11 -> 765 | K8: =データ畑!Q11 -> 763 | L8: =データ畑!R11 -> 761 | M8: =データ畑!S11 -> 748 | N8: =データ畑!T11 -> 736 | O8: =データ畑!U11 -> 729 | P8: =データ畑!V11 -> 727 | Q8: =データ畑!W11 -> 718 | R8: =データ畑!X11 -> 713
B9: 206 | C9: 小田原市 | D9: =データ畑!J12 -> 1360 | E9: =データ畑!K12 -> 1360 | F9: =データ畑!L12 -> 1340 | G9: =データ畑!M12 -> 1330 | H9: =データ畑!N12 -> 1320 | I9: =データ畑!O12 -> 1320 | J9: =データ畑!P12 -> 1310 | K9: =データ畑!Q12 -> 1310 | L9: =データ畑!R12 -> 1300 | M9: =データ畑!S12 -> 1300 | N9: =データ畑!T12 -> 1290 | O9: =データ畑!U12 -> 1280 | P9: =データ畑!V12 -> 1280 | Q9: =データ畑!W12 -> 1270 | R9: =データ畑!X12 -> 1260
B10: 207 | C10: 茅ヶ崎市 | D10: =データ畑!J13 -> 323 | E10: =データ畑!K13 -> 323 | F10: =データ畑!L13 -> 320 | G10: =データ畑!M13 -> 315 | H10: =データ畑!N13 -> 306 | I10: =データ畑!O13 -> 306 | J10: =データ畑!P13 -> 306 | K10: =データ畑!Q13 -> 305 | L10: =データ畑!R13 -> 303 | M10: =データ畑!S13 -> 295 | N10: =データ畑!T13 -> 285 | O10: =データ畑!U13 -> 273 | P10: =データ畑!V13 -> 272 | Q10: =データ畑!W13 -> 267 | R10: =データ畑!X13 -> 261
B11: 208 | C11: 逗子市 | D11: =データ畑!J14 -> 9 | E11: =データ畑!K14 -> 9 | F11: =データ畑!L14 -> 9 | G11: =データ畑!M14 -> 9 | H11: =データ畑!N14 -> 7 | I11: =データ畑!O14 -> 7 | J11: =データ畑!P14 -> 7 | K11: =データ畑!Q14 -> 7 | L11: =データ畑!R14 -> 7 | M11: =データ畑!S14 -> 6 | N11: =データ畑!T14 -> 6 | O11: =データ畑!U14 -> 6 | P11: =データ畑!V14 -> 6 | Q11: =データ畑!W14 -> 6 | R11: =データ畑!X14 -> 6
B12: 210 | C12: 三浦市 | D12: =データ畑!J15 -> 1190 | E12: =データ畑!K15 -> 1190 | F12: =データ畑!L15 -> 1190 | G12: =データ畑!M15 -> 1190 | H12: =データ畑!N15 -> 1190 | I12: =データ畑!O15 -> 1190 | J12: =データ畑!P15 -> 1190 | K12: =データ畑!Q15 -> 1190 | L12: =データ畑!R15 -> 1190 | M12: =データ畑!S15 -> 1190 | N12: =データ畑!T15 -> 1180 | O12: =データ畑!U15 -> 1180 | P12: =データ畑!V15 -> 1180 | Q12: =データ畑!W15 -> 1180 | R12: =データ畑!X15 -> 1180
B13: 211 | C13: 秦野市 | D13: =データ畑!J16 -> 1090 | E13: =データ畑!K16 -> 1080 | F13: =データ畑!L16 -> 1050 | G13: =データ畑!M16 -> 1030 | H13: =データ畑!N16 -> 1030 | I13: =データ畑!O16 -> 1020 | J13: =データ畑!P16 -> 1010 | K13: =データ畑!Q16 -> 999 | L13: =データ畑!R16 -> 990 | M13: =データ畑!S16 -> 979 | N13: =データ畑!T16 -> 962 | O13: =データ畑!U16 -> 950 | P13: =データ畑!V16 -> 932 | Q13: =データ畑!W16 -> 916 | R13: =データ畑!X16 -> 910
B14: 212 | C14: 厚木市 | D14: =データ畑!J17 -> 683 | E14: =データ畑!K17 -> 678 | F14: =データ畑!L17 -> 669 | G14: =データ畑!M17 -> 654 | H14: =データ畑!N17 -> 652 | I14: =データ畑!O17 -> 648 | J14: =データ畑!P17 -> 645 | K14: =データ畑!Q17 -> 637 | L14: =データ畑!R17 -> 632 | M14: =データ畑!S17 -> 622 | N14: =データ畑!T17 -> 602 | O14: =データ畑!U17 -> 592 | P14: =データ畑!V17 -> 591 | Q14: =データ畑!W17 -> 589 | R14: =データ畑!X17 -> 585
B15: 213 | C15: 大和市 | D15: =データ畑!J18 -> 213 | E15: =データ畑!K18 -> 212 | F15: =データ畑!L18 -> 211 | G15: =データ畑!M18 -> 210 | H15: =データ畑!N18 -> 204 | I15: =データ畑!O18 -> 202 | J15: =データ畑!P18 -> 200 | K15: =データ畑!Q18 -> 198 | L15: =データ畑!R18 -> 196 | M15: =データ畑!S18 -> 189 | N15: =データ畑!T18 -> 185 | O15: =データ畑!U18 -> 184 | P15: =データ畑!V18 -> 180 | Q15: =データ畑!W18 -> 169 | R15: =データ畑!X18 -> 168
B16: 214 | C16: 伊勢原市 | D16: =データ畑!J19 -> 725 | E16: =データ畑!K19 -> 722 | F16: =データ畑!L19 -> 718 | G16: =データ畑!M19 -> 712 | H16: =データ畑!N19 -> 704 | I16: =データ畑!O19 -> 701 | J16: =データ畑!P19 -> 696 | K16: =データ畑!Q19 -> 692 | L16: =データ畑!R19 -> 689 | M16: =データ畑!S19 -> 687 | N16: =データ畑!T19 -> 681 | O16: =データ畑!U19 -> 678 | P16: =データ畑!V19 -> 671 | Q16: =データ畑!W19 -> 664 | R16: =データ畑!X19 -> 662
B17: 215 | C17: 海老名市 | D17: =データ畑!J20 -> 305 | E17: =データ畑!K20 -> 304 | F17: =データ畑!L20 -> 303 | G17: =データ畑!M20 -> 301 | H17: =データ畑!N20 -> 295 | I17: =データ畑!O20 -> 293 | J17: =データ畑!P20 -> 293 | K17: =データ畑!Q20 -> 292 | L17: =データ畑!R20 -> 281 | M17: =データ畑!S20 -> 276 | N17: =データ畑!T20 -> 270 | O17: =データ畑!U20 -> 268 | P17: =データ畑!V20 -> 263 | Q17: =データ畑!W20 -> 251 | R17: =データ畑!X20 -> 250
B18: 216 | C18: 座間市 | D18: =データ畑!J21 -> 137 | E18: =データ畑!K21 -> 137 | F18: =データ畑!L21 -> 137 | G18: =データ畑!M21 -> 136 | H18: =データ畑!N21 -> 130 | I18: =データ畑!O21 -> 129 | J18: =データ畑!P21 -> 128 | K18: =データ畑!Q21 -> 126 | L18: =データ畑!R21 -> 124 | M18: =データ畑!S21 -> 121 | N18: =データ畑!T21 -> 118 | O18: =データ畑!U21 -> 116 | P18: =データ畑!V21 -> 114 | Q18: =データ畑!W21 -> 112 | R18: =データ畑!X21 -> 112
B19: 217 | C19: 南足柄市 | D19: =データ畑!J22 -> 496 | E19: =データ畑!K22 -> 496 | F19: =データ畑!L22 -> 493 | G19: =データ畑!M22 -> 492 | H19: =データ畑!N22 -> 494 | I19: =データ畑!O22 -> 490 | J19: =データ畑!P22 -> 490 | K19: =データ畑!Q22 -> 490 | L19: =データ畑!R22 -> 489 | M19: =データ畑!S22 -> 488 | N19: =データ畑!T22 -> 487 | O19: =データ畑!U22 -> 486 | P19: =データ畑!V22 -> 487 | Q19: =データ畑!W22 -> 486 | R19: =データ畑!X22 -> 485
B20: 218 | C20: 綾瀬市 | D20: =データ畑!J23 -> 255 | E20: =データ畑!K23 -> 254 | F20: =データ畑!L23 -> 254 | G20: =データ畑!M23 -> 253 | H20: =データ畑!N23 -> 245 | I20: =データ畑!O23 -> 244 | J20: =データ畑!P23 -> 236 | K20: =データ畑!Q23 -> 231 | L20: =データ畑!R23 -> 228 | M20: =データ畑!S23 -> 227 | N20: =データ畑!T23 -> 224 | O20: =データ畑!U23 -> 221 | P20: =データ畑!V23 -> 217 | Q20: =データ畑!W23 -> 216 | R20: =データ畑!X23 -> 214
B21: 301 | C21: 葉山町 | D21: =データ畑!J24 -> 35 | E21: =データ畑!K24 -> 35 | F21: =データ畑!L24 -> 35 | G21: =データ畑!M24 -> 34 | H21: =データ畑!N24 -> 33 | I21: =データ畑!O24 -> 33 | J21: =データ畑!P24 -> 32 | K21: =データ畑!Q24 -> 32 | L21: =データ畑!R24 -> 32 | M21: =データ畑!S24 -> 30 | N21: =データ畑!T24 -> 29 | O21: =データ畑!U24 -> 29 | P21: =データ畑!V24 -> 29 | Q21: =データ畑!W24 -> 29 | R21: =データ畑!X24 -> 29
B22: 321 | C22: 寒川町 | D22: =データ畑!J25 -> 174 | E22: =データ畑!K25 -> 171 | F22: =データ畑!L25 -> 169 | G22: =データ畑!M25 -> 169 | H22: =データ畑!N25 -> 166 | I22: =データ畑!O25 -> 165 | J22: =データ畑!P25 -> 164 | K22: =データ畑!Q25 -> 162 | L22: =データ畑!R25 -> 160 | M22: =データ畑!S25 -> 157 | N22: =データ畑!T25 -> 154 | O22: =データ畑!U25 -> 152 | P22: =データ畑!V25 -> 152 | Q22: =データ畑!W25 -> 151 | R22: =データ畑!X25 -> 152
B23: 341 | C23: 大磯町 | D23: =データ畑!J26 -> 248 | E23: =データ畑!K26 -> 248 | F23: =データ畑!L26 -> 246 | G23: =データ畑!M26 -> 246 | H23: =データ畑!N26 -> 244 | I23: =データ畑!O26 -> 244 | J23: =データ畑!P26 -> 244 | K23: =データ畑!Q26 -> 244 | L23: =データ畑!R26 -> 243 | M23: =データ畑!S26 -> 240 | N23: =データ畑!T26 -> 237 | O23: =データ畑!U26 -> 237 | P23: =データ畑!V26 -> 236 | Q23: =データ畑!W26 -> 235 | R23: =データ畑!X26 -> 235
B24: 342 | C24: 二宮町 | D24: =データ畑!J27 -> 128 | E24: =データ畑!K27 -> 128 | F24: =データ畑!L27 -> 126 | G24: =データ畑!M27 -> 122 | H24: =データ畑!N27 -> 118 | I24: =データ畑!O27 -> 118 | J24: =データ畑!P27 -> 118 | K24: =データ畑!Q27 -> 117 | L24: =データ畑!R27 -> 116 | M24: =データ畑!S27 -> 115 | N24: =データ畑!T27 -> 112 | O24: =データ畑!U27 -> 110 | P24: =データ畑!V27 -> 109 | Q24: =データ畑!W27 -> 107 | R24: =データ畑!X27 -> 106
B25: 361 | C25: 中井町 | D25: =データ畑!J28 -> 447 | E25: =データ畑!K28 -> 437 | F25: =データ畑!L28 -> 433 | G25: =データ畑!M28 -> 431 | H25: =データ畑!N28 -> 412 | I25: =データ畑!O28 -> 409 | J25: =データ畑!P28 -> 408 | K25: =データ畑!Q28 -> 403 | L25: =データ畑!R28 -> 401 | M25: =データ畑!S28 -> 394 | N25: =データ畑!T28 -> 389 | O25: =データ畑!U28 -> 385 | P25: =データ畑!V28 -> 381 | Q25: =データ畑!W28 -> 377 | R25: =データ畑!X28 -> 376
B26: 362 | C26: 大井町 | D26: =データ畑!J29 -> 235 | E26: =データ畑!K29 -> 235 | F26: =データ畑!L29 -> 235 | G26: =データ畑!M29 -> 235 | H26: =データ畑!N29 -> 232 | I26: =データ畑!O29 -> 230 | J26: =データ畑!P29 -> 230 | K26: =データ畑!Q29 -> 229 | L26: =データ畑!R29 -> 228 | M26: =データ畑!S29 -> 227 | N26: =データ畑!T29 -> 221 | O26: =データ畑!U29 -> 219 | P26: =データ畑!V29 -> 219 | Q26: =データ畑!W29 -> 218 | R26: =データ畑!X29 -> 217
B27: 363 | C27: 松田町 | D27: =データ畑!J30 -> 151 | E27: =データ畑!K30 -> 151 | F27: =データ畑!L30 -> 150 | G27: =データ畑!M30 -> 150 | H27: =データ畑!N30 -> 150 | I27: =データ畑!O30 -> 150 | J27: =データ畑!P30 -> 150 | K27: =データ畑!Q30 -> 148 | L27: =データ畑!R30 -> 142 | M27: =データ畑!S30 -> 136 | N27: =データ畑!T30 -> 131 | O27: =データ畑!U30 -> 131 | P27: =データ畑!V30 -> 130 | Q27: =データ畑!W30 -> 129 | R27: =データ畑!X30 -> 127
B28: 364 | C28: 山北町 | D28: =データ畑!J31 -> 369 | E28: =データ畑!K31 -> 369 | F28: =データ畑!L31 -> 368 | G28: =データ畑!M31 -> 367 | H28: =データ畑!N31 -> 366 | I28: =データ畑!O31 -> 364 | J28: =データ畑!P31 -> 358 | K28: =データ畑!Q31 -> 281 | L28: =データ畑!R31 -> 280 | M28: =データ畑!S31 -> 279 | N28: =データ畑!T31 -> 263 | O28: =データ畑!U31 -> 260 | P28: =データ畑!V31 -> 255 | Q28: =データ畑!W31 -> 251 | R28: =データ畑!X31 -> 248
B29: 366 | C29: 開成町 | D29: =データ畑!J32 -> 29 | E29: =データ畑!K32 -> 29 | F29: =データ畑!L32 -> 29 | G29: =データ畑!M32 -> 31 | H29: =データ畑!N32 -> 31 | I29: =データ畑!O32 -> 31 | J29: =データ畑!P32 -> 31 | K29: =データ畑!Q32 -> 31 | L29: =データ畑!R32 -> 31 | M29: =データ畑!S32 -> 31 | N29: =データ畑!T32 -> 30 | O29: =データ畑!U32 -> 29 | P29: =データ畑!V32 -> 29 | Q29: =データ畑!W32 -> 29 | R29: =データ畑!X32 -> 29
B30: 382 | C30: 箱根町 | D30: =データ畑!J33 -> 8 | E30: =データ畑!K33 -> 8 | F30: =データ畑!L33 -> 8 | G30: =データ畑!M33 -> 8 | H30: =データ畑!N33 -> 8 | I30: =データ畑!O33 -> 7 | J30: =データ畑!P33 -> 7 | K30: =データ畑!Q33 -> 7 | L30: =データ畑!R33 -> 7 | M30: =データ畑!S33 -> 7 | N30: =データ畑!T33 -> 6 | O30: =データ畑!U33 -> 6 | P30: =データ畑!V33 -> 6 | Q30: =データ畑!W33 -> 6 | R30: =データ畑!X33 -> 6
B31: 383 | C31: 真鶴町 | D31: =データ畑!J34 -> 52 | E31: =データ畑!K34 -> 52 | F31: =データ畑!L34 -> 50 | G31: =データ畑!M34 -> 50 | H31: =データ畑!N34 -> 49 | I31: =データ畑!O34 -> 49 | J31: =データ畑!P34 -> 48 | K31: =データ畑!Q34 -> 46 | L31: =データ畑!R34 -> 45 | M31: =データ畑!S34 -> 44 | N31: =データ畑!T34 -> 41 | O31: =データ畑!U34 -> 35 | P31: =データ畑!V34 -> 34 | Q31: =データ畑!W34 -> 33 | R31: =データ畑!X34 -> 33
B32: 384 | C32: 湯河原町 | D32: =データ畑!J35 -> 253 | E32: =データ畑!K35 -> 252 | F32: =データ畑!L35 -> 248 | G32: =データ畑!M35 -> 244 | H32: =データ畑!N35 -> 243 | I32: =データ畑!O35 -> 242 | J32: =データ畑!P35 -> 241 | K32: =データ畑!Q35 -> 238 | L32: =データ畑!R35 -> 232 | M32: =データ畑!S35 -> 217 | N32: =データ畑!T35 -> 215 | O32: =データ畑!U35 -> 209 | P32: =データ畑!V35 -> 206 | Q32: =データ畑!W35 -> 202 | R32: =データ畑!X35 -> 202
B33: 401 | C33: 愛川町 | D33: =データ畑!J36 -> 271 | E33: =データ畑!K36 -> 271 | F33: =データ畑!L36 -> 271 | G33: =データ畑!M36 -> 261 | H33: =データ畑!N36 -> 254 | I33: =データ畑!O36 -> 243 | J33: =データ畑!P36 -> 242 | K33: =データ畑!Q36 -> 239 | L33: =データ畑!R36 -> 237 | M33: =データ畑!S36 -> 228 | N33: =データ畑!T36 -> 219 | O33: =データ畑!U36 -> 215 | P33: =データ畑!V36 -> 213 | Q33: =データ畑!W36 -> 211 | R33: =データ畑!X36 -> 209
B34: 402 | C34: 清川村 | D34: =データ畑!J37 -> 39 | E34: =データ畑!K37 -> 39 | F34: =データ畑!L37 -> 39 | G34: =データ畑!M37 -> 39 | H34: =データ畑!N37 -> 39 | I34: =データ畑!O37 -> 39 | J34: =データ畑!P37 -> 39 | K34: =データ畑!Q37 -> 39 | L34: =データ畑!R37 -> 39 | M34: =データ畑!S37 -> 39 | N34: =データ畑!T37 -> 34 | O34: =データ畑!U37 -> 32 | P34: =データ畑!V37 -> 32 | Q34: =データ畑!W37 -> 32 | R34: =データ畑!X37 -> 32
C35: 神奈川県 | D35: =データ畑!J3 -> 16400 | E35: =データ畑!K3 -> 16300 | F35: =データ畑!L3 -> 16200 | G35: =データ畑!M3 -> 16000 | H35: =データ畑!N3 -> 15800 | I35: =データ畑!O3 -> 15700 | J35: =データ畑!P3 -> 15700 | K35: =データ畑!Q3 -> 15500 | L35: =データ畑!R3 -> 15400 | M35: =データ畑!S3 -> 15100 | N35: =データ畑!T3 -> 14800 | O35: =データ畑!U3 -> 14600 | P35: =データ畑!V3 -> 14500 | Q35: =データ畑!W3 -> 14400 | R35: =データ畑!X3 -> 14300
D36: =D1 -> 2010 | E36: 2011 | F36: 2012 | G36: 2013 | H36: 2014 | I36: 2015 | J36: 2016 | K36: 2017 | L36: 2018 | M36: 2019 | N36: 2020 | O36: 2021 | P36: 2022 | Q36: 2023 | R36: 2024
C37: 神奈川県 | D37: =_xlfn.XLOOKUP($C$37,$C2:$C35,D$2:D$35) -> 16400 | E37: 16300 | F37: 16200 | G37: 16000 | H37: 15800 | I37: 15700 | J37: 15700 | K37: 15500 | L37: 15400 | M37: 15100 | N37: 14800 | O37: 14600 | P37: 14500 | Q37: 14400 | R37: 14300

Sheet グラフ
D1: ↓こちらのタブからご覧になりたい（県）市町村を選択してください。
D2: 神奈川県
B3: (ha）
R26: (ha)
C28: 年 | D28: ='グラフ田 '!D1 -> 2010 | E28: ='グラフ田 '!E1 -> 2011 | F28: ='グラフ田 '!F1 -> 2012 | G28: ='グラフ田 '!G1 -> 2013 | H28: ='グラフ田 '!H1 -> 2014 | I28: ='グラフ田 '!I1 -> 2015 | J28: ='グラフ田 '!J1 -> 2016 | K28: ='グラフ田 '!K1 -> 2017 | L28: ='グラフ田 '!L1 -> 2018 | M28: ='グラフ田 '!M1 -> 2019 | N28: ='グラフ田 '!N1 -> 2020 | O28: ='グラフ田 '!O1 -> 2021 | P28: ='グラフ田 '!P1 -> 2022 | Q28: ='グラフ田 '!Q1 -> 2023 | R28: ='グラフ田 '!R1 -> 2024
B29: =D2 -> 神奈川県 | C29: 田 | D29: =_xlfn.XLOOKUP($D$2,'グラフ田 '!$C2:$C35,'グラフ田 '!D$2:D$35) -> 4,030 | E29: =_xlfn.XLOOKUP($D$2,'グラフ田 '!$C2:$C35,'グラフ田 '!E$2:E$35) -> 3,990 | F29: =_xlfn.XLOOKUP($D$2,'グラフ田 '!$C2:$C35,'グラフ田 '!F$2:F$35) -> 3,970 | G29: =_xlfn.XLOOKUP($D$2,'グラフ田 '!$C2:$C35,'グラフ田 '!G$2:G$35) -> 3,920 | H29: =_xlfn.XLOOKUP($D$2,'グラフ田 '!$C2:$C35,'グラフ田 '!H$2:H$35) -> 3,890 | I29: =_xlfn.XLOOKUP($D$2,'グラフ田 '!$C2:$C35,'グラフ田 '!I$2:I$35) -> 3,850 | J29: =_xlfn.XLOOKUP($D$2,'グラフ田 '!$C2:$C35,'グラフ田 '!J$2:J$35) -> 3,790 | K29: =_xlfn.XLOOKUP($D$2,'グラフ田 '!$C2:$C35,'グラフ田 '!K$2:K$35) -> 3,760 | L29: =_xlfn.XLOOKUP($D$2,'グラフ田 '!$C2:$C35,'グラフ田 '!L$2:L$35) -> 3,730 | M29: =_xlfn.XLOOKUP($D$2,'グラフ田 '!$C2:$C35,'グラフ田 '!M$2:M$35) -> 3,670 | N29: =_xlfn.XLOOKUP($D$2,'グラフ田 '!$C2:$C35,'グラフ田 '!N$2:N$35) -> 3,610 | O29: =_xlfn.XLOOKUP($D$2,'グラフ田 '!$C2:$C35,'グラフ田 '!O$2:O$35) -> 3,530 | P29: =_xlfn.XLOOKUP($D$2,'グラフ田 '!$C2:$C35,'グラフ田 '!P$2:P$35) -> 3,490 | Q29: =_xlfn.XLOOKUP($D$2,'グラフ田 '!$C2:$C35,'グラフ田 '!Q$2:Q$35) -> 3,470 | R29: =_xlfn.XLOOKUP($D$2,'グラフ田 '!$C2:$C35,'グラフ田 '!R$2:R$35) -> 3,460
C30: 畑 | D30: =_xlfn.XLOOKUP($D$2,グラフ畑!$C2:$C35,グラフ畑!D$2:D$35) -> 16,400 | E30: =_xlfn.XLOOKUP($D$2,グラフ畑!$C2:$C35,グラフ畑!E$2:E$35) -> 16,300 | F30: =_xlfn.XLOOKUP($D$2,グラフ畑!$C2:$C35,グラフ畑!F$2:F$35) -> 16,200 | G30: =_xlfn.XLOOKUP($D$2,グラフ畑!$C2:$C35,グラフ畑!G$2:G$35) -> 16,000 | H30: =_xlfn.XLOOKUP($D$2,グラフ畑!$C2:$C35,グラフ畑!H$2:H$35) -> 15,800 | I30: =_xlfn.XLOOKUP($D$2,グラフ畑!$C2:$C35,グラフ畑!I$2:I$35) -> 15,700 | J30: =_xlfn.XLOOKUP($D$2,グラフ畑!$C2:$C35,グラフ畑!J$2:J$35) -> 15,700 | K30: =_xlfn.XLOOKUP($D$2,グラフ畑!$C2:$C35,グラフ畑!K$2:K$35) -> 15,500 | L30: =_xlfn.XLOOKUP($D$2,グラフ畑!$C2:$C35,グラフ畑!L$2:L$35) -> 15,400 | M30: =_xlfn.XLOOKUP($D$2,グラフ畑!$C2:$C35,グラフ畑!M$2:M$35) -> 15,100 | N30: =_xlfn.XLOOKUP($D$2,グラフ畑!$C2:$C35,グラフ畑!N$2:N$35) -> 14,800 | O30: =_xlfn.XLOOKUP($D$2,グラフ畑!$C2:$C35,グラフ畑!O$2:O$35) -> 14,600 | P30: =_xlfn.XLOOKUP($D$2,グラフ畑!$C2:$C35,グラフ畑!P$2:P$35) -> 14,500 | Q30: =_xlfn.XLOOKUP($D$2,グラフ畑!$C2:$C35,グラフ畑!Q$2:Q$35) -> 14,400 | R30: =_xlfn.XLOOKUP($D$2,グラフ畑!$C2:$C35,グラフ畑!R$2:R$35) -> 14,300
C31: 調査の概要、利用上の注意 | H31: 10年前の2014年から田は、 | K31: =H29-R29 -> 430ha | L31: 減少 | M31: 5年前2019年から | O31: 田は、 | P31: =M29-R29 -> 210ha | Q31: 減少
B32: 出典： | C32: 面積調査：農林水産省 | H32: 10年前の2014年から畑は、 | K32: =H30-R30 -> 1500ha | L32: 減少 | M32: 5年前2019年から | O32: 畑は、 | P32: =M30-R30 -> 800ha | Q32: 減少
